Workbook

Sheet Main
B10: 2022-11-01
B12: Sheet No. | C12: Template Name | D12: Summary
B13: 1 | C13: Future Intra | D13: For Intraday trading in F&O segment
B14: 2 | C14: Cash Intra | D14: For Intraday trading in cash market segment
B15: 3 | C15: Mid-cap Intra | D15: For Intraday trading in Mid-cap stocks
B16: 4 | C16: Bulk Deals | D16: Reveals Bulk Deals carried on NSE & BSE
B17: 5 | C17: Call Tracker
K27: `

Sheet Future Intra
M5: Back to Main Page
A6: FOR INTRA DAY TRADING | L6: =Main!B10 -> 2022-11-01
A9: Sr.no | B9: Sector | C9: Scrip | D9: Expiry Date | E9: CLOSE RATE | F9: Pivot Point | G9: Supports | J9: Resistances
E10: Point | F10: Point | G10: S1 | H10: S2 | I10: S3 | J10: R1 | K10: R2 | L10: R3 | M10: HIGH | N10: LOW | O10: OI | P10: % Change in OI
A11: 1 | B11: Index | C11: NIFTY | D11: 2022-11-24 | E11: 18051.05 | F11: 18012.97 | G11: 17964.18 | H11: 17877.32 | I11: 17828.53 | J11: 18099.83 | K11: 18148.62 | L11: 18235.48 | M11: 18061.75 | N11: 17926.1 | O11: 12914750 | P11: 4.99%
A12: 2 | B12: Index | C12: BANKNIFTY | D12: 2022-11-24 | E12: 41466.80 | F12: 41419.63 | G12: 41317.17 | H12: 41167.53 | I12: 41065.07 | J12: 41569.27 | K12: 41671.73 | L12: 41821.37 | M12: 41522.1 | N12: 41270 | O12: 2034075 | P12: -0.37%
A13: 3 | B13: Index | C13: FINNIFTY | D13: 2022-11-29 | E13: 18587.30 | F13: 18550.43 | G13: 18437.47 | H13: 18287.63 | I13: 18174.67 | J13: 18700.27 | K13: 18813.23 | L13: 18963.07 | M13: 18663.4 | N13: 18400.6 | O13: 12240 | P13: 139.06%
A14: 4 | B14: Index | C14: MIDCPNIFTY | D14: 2022-11-29 | E14: 7448.00 | F14: 2482.67 | G14: 4965.33 | H14: 2482.67 | I14: 4965.33 | J14: 4965.33 | K14: 2482.67 | L14: 4965.33 | M14: 0 | N14: 0 | O14: 75 | P14: 0.00%
A15: 5 | B15: Chemical | C15: AARTIIND | D15: 2022-11-24 | E15: 691.40 | F15: 690.13 | G15: 685.82 | H15: 680.23 | I15: 675.92 | J15: 695.72 | K15: 700.03 | L15: 705.62 | M15: 694.45 | N15: 684.55 | O15: 1960950 | P15: -1.11%
A16: 6 | B16: Capital_Goods | C16: ABB | D16: 2022-11-24 | E16: 3066.45 | F16: 3042.08 | G16: 3004.37 | H16: 2942.28 | I16: 2904.57 | J16: 3104.17 | K16: 3141.88 | L16: 3203.97 | M16: 3079.8 | N16: 2980 | O16: 1371000 | P16: 3.18%
A17: 7 | B17: Pharma | C17: ABBOTINDIA | D17: 2022-11-24 | E17: 19350.20 | F17: 19303.65 | G17: 19157.30 | H17: 18964.40 | I17: 18818.05 | J17: 19496.55 | K17: 19642.90 | L17: 19835.80 | M17: 19450 | N17: 19110.75 | O17: 56760 | P17: 9.15%
A18: 8 | B18: Others | C18: ABCAPITAL | D18: 2022-11-24 | E18: 117.55 | F18: 117.38 | G18: 116.67 | H18: 115.78 | I18: 115.07 | J18: 118.27 | K18: 118.98 | L18: 119.87 | M18: 118.1 | N18: 116.5 | O18: 21708000 | P18: 1.41%
A19: 9 | B19: Textile | C19: ABFRL | D19: 2022-11-24 | E19: 355.85 | F19: 352.55 | G19: 347.60 | H19: 339.35 | I19: 334.40 | J19: 360.80 | K19: 365.75 | L19: 374.00 | M19: 357.5 | N19: 344.3 | O19: 8385000 | P19: 14.32%
A20: 10 | B20: Cement | C20: ACC | D20: 2022-11-24 | E20: 2404.50 | F20: 2383.17 | G20: 2355.33 | H20: 2306.17 | I20: 2278.33 | J20: 2432.33 | K20: 2460.17 | L20: 2509.33 | M20: 2411 | N20: 2334 | O20: 3984500 | P20: -0.94%
A21: 11 | B21: Others | C21: ADANIENT | D21: 2022-11-24 | E21: 3364.75 | F21: 3360.62 | G21: 3347.23 | H21: 3329.72 | I21: 3316.33 | J21: 3378.13 | K21: 3391.52 | L21: 3409.03 | M21: 3374 | N21: 3343.1 | O21: 14114750 | P21: -1.21%
A22: 12 | B22: Others | C22: ADANIPORTS | D22: 2022-11-24 | E22: 827.40 | F22: 828.33 | G22: 822.12 | H22: 816.83 | I22: 810.62 | J22: 833.62 | K22: 839.83 | L22: 845.12 | M22: 834.55 | N22: 823.05 | O22: 70016875 | P22: 0.91%
A23: 13 | B23: Pharma | C23: ALKEM | D23: 2022-11-24 | E23: 3167.85 | F23: 3160.43 | G23: 3144.87 | H23: 3121.88 | I23: 3106.32 | J23: 3183.42 | K23: 3198.98 | L23: 3221.97 | M23: 3176 | N23: 3137.45 | O23: 256800 | P23: 5.68%
A24: 14 | B24: Automobile | C24: AMARAJABAT | D24: 2022-11-24 | E24: 512.95 | F24: 510.37 | G24: 507.08 | H24: 501.22 | I24: 497.93 | J24: 516.23 | K24: 519.52 | L24: 525.38 | M24: 513.65 | N24: 504.5 | O24: 5744000 | P24: 0.54%
A25: 15 | B25: Cement | C25: AMBUJACEM | D25: 2022-11-24 | E25: 535.95 | F25: 533.43 | G25: 525.37 | H25: 514.78 | I25: 506.72 | J25: 544.02 | K25: 552.08 | L25: 562.67 | M25: 541.5 | N25: 522.85 | O25: 65395800 | P25: -0.78%
A26: 16 | B26: Others | C26: APOLLOHOSP | D26: 2022-11-24 | E26: 4542.35 | F26: 4562.80 | G26: 4490.95 | H26: 4439.55 | I26: 4367.70 | J26: 4614.20 | K26: 4686.05 | L26: 4737.45 | M26: 4634.65 | N26: 4511.4 | O26: 1553000 | P26: 1.99%
A27: 17 | B27: Automobile | C27: APOLLOTYRE | D27: 2022-11-24 | E27: 292.45 | F27: 292.48 | G27: 290.52 | H27: 288.58 | I27: 286.62 | J27: 294.42 | K27: 296.38 | L27: 298.32 | M27: 294.45 | N27: 290.55 | O27: 13044500 | P27: 2.39%
A28: 18 | B28: Automobile | C28: ASHOKLEY | D28: 2022-11-24 | E28: 153.85 | F28: 152.87 | G28: 151.48 | H28: 149.12 | I28: 147.73 | J28: 155.23 | K28: 156.62 | L28: 158.98 | M28: 154.25 | N28: 150.5 | O28: 60500000 | P28: 0.67%
A29: 19 | B29: FMCG | C29: ASIANPAINT | D29: 2022-11-24 | E29: 3119.00 | F29: 3105.20 | G29: 3086.45 | H29: 3053.90 | I29: 3035.15 | J29: 3137.75 | K29: 3156.50 | L29: 3189.05 | M29: 3123.95 | N29: 3072.65 | O29: 6194800 | P29: -3.87%
A30: 20 | B30: Others | C30: ASTRAL | D30: 2022-11-24 | E30: 2041.75 | F30: 2021.08 | G30: 1994.22 | H30: 1946.68 | I30: 1919.82 | J30: 2068.62 | K30: 2095.48 | L30: 2143.02 | M30: 2047.95 | N30: 1973.55 | O30: 1427525 | P30: -4.58%
A31: 21 | B31: Others | C31: ATUL | D31: 2022-11-24 | E31: 8402.30 | F31: 8387.77 | G31: 8338.03 | H31: 8273.77 | I31: 8224.03 | J31: 8452.03 | K31: 8501.77 | L31: 8566.03 | M31: 8437.5 | N31: 8323.5 | O31: 155325 | P31: 0.98%
A32: 22 | B32: Banking | C32: AUBANK | D32: 2022-11-24 | E32: 586.65 | F32: 583.63 | G32: 579.87 | H32: 573.08 | I32: 569.32 | J32: 590.42 | K32: 594.18 | L32: 600.97 | M32: 587.4 | N32: 576.85 | O32: 7115000 | P32: -2.36%
A33: 23 | B33: Pharma | C33: AUROPHARMA | D33: 2022-11-24 | E33: 539.85 | F33: 536.60 | G33: 530.30 | H33: 520.75 | I33: 514.45 | J33: 546.15 | K33: 552.45 | L33: 562.00 | M33: 542.9 | N33: 527.05 | O33: 12405000 | P33: -1.49%
A34: 24 | B34: Banking | C34: AXISBANK | D34: 2022-11-24 | E34: 909.25 | F34: 911.83 | G34: 903.67 | H34: 898.08 | I34: 889.92 | J34: 917.42 | K34: 925.58 | L34: 931.17 | M34: 920 | N34: 906.25 | O34: 40459200 | P34: -1.46%
A35: 25 | B35: Automobile | C35: BAJAJ-AUTO | D35: 2022-11-24 | E35: 3685.40 | F35: 3688.98 | G35: 3668.02 | H35: 3650.63 | I35: 3629.67 | J35: 3706.37 | K35: 3727.33 | L35: 3744.72 | M35: 3709.95 | N35: 3671.6 | O35: 1491500 | P35: -0.83%
A36: 26 | B36: Finance | C36: BAJAJFINSV | D36: 2022-11-24 | E36: 1695.55 | F36: 1687.18 | G36: 1676.37 | H36: 1657.18 | I36: 1646.37 | J36: 1706.37 | K36: 1717.18 | L36: 1736.37 | M36: 1698 | N36: 1668 | O36: 6066500 | P36: -7.50%
A37: 27 | B37: Finance | C37: BAJFINANCE | D37: 2022-11-24 | E37: 7183.70 | F37: 7150.87 | G37: 7111.73 | H37: 7039.77 | I37: 7000.63 | J37: 7222.83 | K37: 7261.97 | L37: 7333.93 | M37: 7190 | N37: 7078.9 | O37: 4780125 | P37: -4.80%
A38: 28 | B38: Automobile | C38: BALKRISIND | D38: 2022-11-24 | E38: 1973.00 | F38: 1970.13 | G38: 1958.87 | H38: 1944.73 | I38: 1933.47 | J38: 1984.27 | K38: 1995.53 | L38: 2009.67 | M38: 1981.4 | N38: 1956 | O38: 2081100 | P38: 0.87%
A39: 29 | B39: Others | C39: BALRAMCHIN | D39: 2022-11-24 | E39: 317.95 | F39: 315.97 | G39: 309.98 | H39: 302.02 | I39: 296.03 | J39: 323.93 | K39: 329.92 | L39: 337.88 | M39: 321.95 | N39: 308 | O39: 9360000 | P39: 0.24%
A40: 30 | B40: Banking | C40: BANDHANBNK | D40: 2022-11-24 | E40: 239.95 | F40: 246.93 | G40: 231.82 | H40: 223.68 | I40: 208.57 | J40: 255.07 | K40: 270.18 | L40: 278.32 | M40: 262.05 | N40: 238.8 | O40: 37854000 | P40: 37.89%
A41: 31 | B41: Banking | C41: BANKBARODA | D41: 2022-11-24 | E41: 148.55 | F41: 147.88 | G41: 146.37 | H41: 144.18 | I41: 142.67 | J41: 150.07 | K41: 151.58 | L41: 153.77 | M41: 149.4 | N41: 145.7 | O41: 110553300 | P41: 0.66%
A42: 32 | B42: FMCG | C42: BATAINDIA | D42: 2022-11-24 | E42: 1838.15 | F42: 1832.67 | G42: 1822.58 | H42: 1807.02 | I42: 1796.93 | J42: 1848.23 | K42: 1858.32 | L42: 1873.88 | M42: 1842.75 | N42: 1817.1 | O42: 1590875 | P42: 1.69%
A43: 33 | B43: Capital_Goods | C43: BEL | D43: 2022-11-24 | E43: 107.35 | F43: 106.92 | G43: 106.28 | H43: 105.22 | I43: 104.58 | J43: 107.98 | K43: 108.62 | L43: 109.68 | M43: 107.55 | N43: 105.85 | O43: 79440900 | P43: -1.98%
A44: 34 | B44: FMCG | C44: BERGEPAINT | D44: 2022-11-24 | E44: 587.80 | F44: 584.93 | G44: 581.02 | H44: 574.23 | I44: 570.32 | J44: 591.72 | K44: 595.63 | L44: 602.42 | M44: 588.85 | N44: 578.15 | O44: 8650400 | P44: -1.24%
A45: 35 | B45: Automobile | C45: BHARATFORG | D45: 2022-11-24 | E45: 835.10 | F45: 836.67 | G45: 826.93 | H45: 818.77 | I45: 809.03 | J45: 844.83 | K45: 854.57 | L45: 862.73 | M45: 846.4 | N45: 828.5 | O45: 7972000 | P45: -1.73%
A46: 36 | B46: Telecom | C46: BHARTIARTL | D46: 2022-11-24 | E46: 829.10 | F46: 826.03 | G46: 820.87 | H46: 812.63 | I46: 807.47 | J46: 834.27 | K46: 839.43 | L46: 847.67 | M46: 831.2 | N46: 817.8 | O46: 40281900 | P46: 0.77%
A47: 37 | B47: Capital_Goods | C47: BHEL | D47: 2022-11-24 | E47: 74.45 | F47: 74.23 | G47: 73.47 | H47: 72.48 | I47: 71.72 | J47: 75.22 | K47: 75.98 | L47: 76.97 | M47: 75 | N47: 73.25 | O47: 130872000 | P47: 0.39%
A48: 38 | B48: Pharma | C48: BIOCON | D48: 2022-11-24 | E48: 271.00 | F48: 273.20 | G48: 268.40 | H48: 265.80 | I48: 261.00 | J48: 275.80 | K48: 280.60 | L48: 283.20 | M48: 278 | N48: 270.6 | O48: 23857900 | P48: 10.22%
A49: 39 | B49: Automobile | C49: BOSCHLTD | D49: 2022-11-24 | E49: 16564.95 | F49: 16445.78 | G49: 16269.27 | H49: 15973.58 | I49: 15797.07 | J49: 16741.47 | K49: 16917.98 | L49: 17213.67 | M49: 16622.3 | N49: 16150.1 | O49: 208850 | P49: 0.17%
A50: 40 | B50: Oil_Gas | C50: BPCL | D50: 2022-11-24 | E50: 305.55 | F50: 305.38 | G50: 303.37 | H50: 301.18 | I50: 299.17 | J50: 307.57 | K50: 309.58 | L50: 311.77 | M50: 307.4 | N50: 303.2 | O50: 17613000 | P50: 5.45%
A51: 41 | B51: FMCG | C51: BRITANNIA | D51: 2022-11-24 | E51: 3786.95 | F51: 3788.55 | G51: 3758.10 | H51: 3729.25 | I51: 3698.80 | J51: 3817.40 | K51: 3847.85 | L51: 3876.70 | M51: 3819 | N51: 3759.7 | O51: 1376000 | P51: 1.49%
A52: 42 | B52: Technology | C52: BSOFT | D52: 2022-11-24 | E52: 270.90 | F52: 269.70 | G52: 266.65 | H52: 262.40 | I52: 259.35 | J52: 273.95 | K52: 277.00 | L52: 281.25 | M52: 272.75 | N52: 265.45 | O52: 10166700 | P52: -0.22%
A53: 43 | B53: Banking | C53: CANBK | D53: 2022-11-24 | E53: 291.25 | F53: 289.83 | G53: 287.47 | H53: 283.68 | I53: 281.32 | J53: 293.62 | K53: 295.98 | L53: 299.77 | M53: 292.2 | N53: 286.05 | O53: 42552000 | P53: -0.54%
A54: 44 | B54: Finance | C54: CANFINHOME | D54: 2022-11-24 | E54: 526.55 | F54: 525.00 | G54: 521.00 | H54: 515.45 | I54: 511.45 | J54: 530.55 | K54: 534.55 | L54: 540.10 | M54: 529 | N54: 519.45 | O54: 4522050 | P54: -1.80%
A55: 45 | B55: Others | C55: CHAMBLFERT | D55: 2022-11-24 | E55: 328.20 | F55: 325.30 | G55: 319.90 | H55: 311.60 | I55: 306.20 | J55: 333.60 | K55: 339.00 | L55: 347.30 | M55: 330.7 | N55: 317 | O55: 5943000 | P55: -0.15%
A56: 46 | B56: Finance | C56: CHOLAFIN | D56: 2022-11-24 | E56: 712.70 | F56: 714.32 | G56: 704.63 | H56: 696.57 | I56: 686.88 | J56: 722.38 | K56: 732.07 | L56: 740.13 | M56: 724 | N56: 706.25 | O56: 8325000 | P56: 12.80%
A57: 47 | B57: Pharma | C57: CIPLA | D57: 2022-11-24 | E57: 1168.00 | F57: 1166.13 | G57: 1159.37 | H57: 1150.73 | I57: 1143.97 | J57: 1174.77 | K57: 1181.53 | L57: 1190.17 | M57: 1172.9 | N57: 1157.5 | O57: 8927100 | P57: 2.17%
A58: 48 | B58: Others | C58: COALINDIA | D58: 2022-11-24 | E58: 246.80 | F58: 246.68 | G58: 244.82 | H58: 242.83 | I58: 240.97 | J58: 248.67 | K58: 250.53 | L58: 252.52 | M58: 248.55 | N58: 244.7 | O58: 23452800 | P58: -1.62%
A59: 49 | B59: Technology | C59: COFORGE | D59: 2022-11-24 | E59: 3788.35 | F59: 3764.57 | G59: 3725.43 | H59: 3662.52 | I59: 3623.38 | J59: 3827.48 | K59: 3866.62 | L59: 3929.53 | M59: 3803.7 | N59: 3701.65 | O59: 666150 | P59: -3.08%
A60: 50 | B60: FMCG | C60: COLPAL | D60: 2022-11-24 | E60: 1641.05 | F60: 1640.55 | G60: 1623.95 | H60: 1606.85 | I60: 1590.25 | J60: 1657.65 | K60: 1674.25 | L60: 1691.35 | M60: 1657.15 | N60: 1623.45 | O60: 2033150 | P60: 3.33%
A61: 51 | B61: Others | C61: CONCOR | D61: 2022-11-24 | E61: 798.80 | F61: 797.88 | G61: 787.57 | H61: 776.33 | I61: 766.02 | J61: 809.12 | K61: 819.43 | L61: 830.67 | M61: 808.2 | N61: 786.65 | O61: 6959000 | P61: 1.65%
A62: 52 | B62: Others | C62: COROMANDEL | D62: 2022-11-24 | E62: 968.35 | F62: 973.32 | G62: 961.63 | H62: 954.92 | I62: 943.23 | J62: 980.03 | K62: 991.72 | L62: 998.43 | M62: 985 | N62: 966.6 | O62: 1149400 | P62: 6.42%
A63: 53 | B63: Capital_Goods | C63: CROMPTON | D63: 2022-11-24 | E63: 363.45 | F63: 359.63 | G63: 354.82 | H63: 346.18 | I63: 341.37 | J63: 368.27 | K63: 373.08 | L63: 381.72 | M63: 364.45 | N63: 351 | O63: 5146500 | P63: -6.18%
A64: 54 | B64: Banking | C64: CUB | D64: 2022-11-24 | E64: 183.60 | F64: 182.92 | G64: 180.63 | H64: 177.67 | I64: 175.38 | J64: 185.88 | K64: 188.17 | L64: 191.13 | M64: 185.2 | N64: 179.95 | O64: 11035000 | P64: 12.20%
A65: 55 | B65: Capital_Goods | C65: CUMMINSIND | D65: 2022-11-24 | E65: 1351.50 | F65: 1337.28 | G65: 1319.32 | H65: 1287.13 | I65: 1269.17 | J65: 1369.47 | K65: 1387.43 | L65: 1419.62 | M65: 1355.25 | N65: 1305.1 | O65: 3273000 | P65: 0.00%
A66: 56 | B66: FMCG | C66: DABUR | D66: 2022-11-24 | E66: 554.50 | F66: 554.28 | G66: 551.07 | H66: 547.63 | I66: 544.42 | J66: 557.72 | K66: 560.93 | L66: 564.37 | M66: 557.5 | N66: 550.85 | O66: 14088750 | P66: 0.86%
A67: 57 | B67: Cement | C67: DALBHARAT | D67: 2022-11-24 | E67: 1607.30 | F67: 1590.15 | G67: 1570.30 | H67: 1533.30 | I67: 1513.45 | J67: 1627.15 | K67: 1647.00 | L67: 1684.00 | M67: 1610 | N67: 1553.15 | O67: 1366000 | P67: 8.07%
A68: 58 | B68: Chemical | C68: DEEPAKNTR | D68: 2022-11-24 | E68: 2314.90 | F68: 2298.67 | G68: 2263.28 | H68: 2211.67 | I68: 2176.28 | J68: 2350.28 | K68: 2385.67 | L68: 2437.28 | M68: 2334.05 | N68: 2247.05 | O68: 1598250 | P68: 11.01%
A69: 59 | B69: Others | C69: DELTACORP | D69: 2022-11-24 | E69: 224.55 | F69: 224.02 | G69: 222.23 | H69: 219.92 | I69: 218.13 | J69: 226.33 | K69: 228.12 | L69: 230.43 | M69: 225.8 | N69: 221.7 | O69: 15026800 | P69: -0.35%
A70: 60 | B70: Pharma | C70: DIVISLAB | D70: 2022-11-24 | E70: 3627.05 | F70: 3616.23 | G70: 3593.47 | H70: 3559.88 | I70: 3537.12 | J70: 3649.82 | K70: 3672.58 | L70: 3706.17 | M70: 3639 | N70: 3582.65 | O70: 2040600 | P70: -0.55%
A71: 61 | B71: Others | C71: DIXON | D71: 2022-11-24 | E71: 4525.55 | F71: 4487.98 | G71: 4440.12 | H71: 4354.68 | I71: 4306.82 | J71: 4573.42 | K71: 4621.28 | L71: 4706.72 | M71: 4535.85 | N71: 4402.55 | O71: 506750 | P71: 3.92%
A72: 62 | B72: Realty | C72: DLF | D72: 2022-11-24 | E72: 387.90 | F72: 387.82 | G72: 384.73 | H72: 381.57 | I72: 378.48 | J72: 390.98 | K72: 394.07 | L72: 397.23 | M72: 390.9 | N72: 384.65 | O72: 43563300 | P72: 0.56%
A73: 63 | B73: Pharma | C73: DRREDDY | D73: 2022-11-24 | E73: 4459.10 | F73: 4486.28 | G73: 4343.82 | H73: 4228.53 | I73: 4086.07 | J73: 4601.57 | K73: 4744.03 | L73: 4859.32 | M73: 4628.75 | N73: 4371 | O73: 1871750 | P73: 16.07%
A74: 64 | B74: Automobile | C74: EICHERMOT | D74: 2022-11-24 | E74: 3826.00 | F74: 3807.23 | G74: 3779.47 | H74: 3732.93 | I74: 3705.17 | J74: 3853.77 | K74: 3881.53 | L74: 3928.07 | M74: 3835 | N74: 3760.7 | O74: 2851975 | P74: 4.00%
A75: 65 | B75: Automobile | C75: ESCORTS | D75: 2022-11-24 | E75: 2040.50 | F75: 2034.83 | G75: 2016.67 | H75: 1992.83 | I75: 1974.67 | J75: 2058.67 | K75: 2076.83 | L75: 2100.67 | M75: 2053 | N75: 2011 | O75: 1116500 | P75: 8.24%
A76: 66 | B76: Automobile | C76: EXIDEIND | D76: 2022-11-24 | E76: 166.75 | F76: 166.93 | G76: 166.12 | H76: 165.48 | I76: 164.67 | J76: 167.57 | K76: 168.38 | L76: 169.02 | M76: 167.75 | N76: 166.3 | O76: 25534800 | P76: 0.95%
A77: 67 | B77: Banking | C77: FEDERALBNK | D77: 2022-11-24 | E77: 132.30 | F77: 131.82 | G77: 130.63 | H77: 128.97 | I77: 127.78 | J77: 133.48 | K77: 134.67 | L77: 136.33 | M77: 133 | N77: 130.15 | O77: 81490000 | P77: -0.17%
A78: 68 | B78: Technology | C78: FSL | D78: 2022-11-24 | E78: 104.40 | F78: 103.63 | G78: 102.47 | H78: 100.53 | I78: 99.37 | J78: 105.57 | K78: 106.73 | L78: 108.67 | M78: 104.8 | N78: 101.7 | O78: 14970800 | P78: 0.21%
A79: 69 | B79: Oil_Gas | C79: GAIL | D79: 2022-11-24 | E79: 91.75 | F79: 91.40 | G79: 90.80 | H79: 89.85 | I79: 89.25 | J79: 92.35 | K79: 92.95 | L79: 93.90 | M79: 92 | N79: 90.45 | O79: 48833550 | P79: 4.46%
A80: 70 | B80: Pharma | C80: GLENMARK | D80: 2022-11-24 | E80: 406.90 | F80: 406.77 | G80: 402.18 | H80: 397.47 | I80: 392.88 | J80: 411.48 | K80: 416.07 | L80: 420.78 | M80: 411.35 | N80: 402.05 | O80: 7871750 | P80: 1.81%
A81: 71 | B81: Infrastructure | C81: GMRINFRA | D81: 2022-11-24 | E81: 37.60 | F81: 37.43 | G81: 37.07 | H81: 36.53 | I81: 36.17 | J81: 37.97 | K81: 38.33 | L81: 38.87 | M81: 37.8 | N81: 36.9 | O81: 112545000 | P81: 1.23%
A82: 72 | B82: Others | C82: GNFC | D82: 2022-11-24 | E82: 713.55 | F82: 712.37 | G82: 705.43 | H82: 697.32 | I82: 690.38 | J82: 720.48 | K82: 727.42 | L82: 735.53 | M82: 719.3 | N82: 704.25 | O82: 5398900 | P82: 4.50%
A83: 73 | B83: FMCG | C83: GODREJCP | D83: 2022-11-24 | E83: 834.30 | F83: 837.45 | G83: 829.45 | H83: 824.60 | I83: 816.60 | J83: 842.30 | K83: 850.30 | L83: 855.15 | M83: 845.45 | N83: 832.6 | O83: 6590000 | P83: 4.27%
A84: 74 | B84: Realty | C84: GODREJPROP | D84: 2022-11-24 | E84: 1271.05 | F84: 1264.93 | G84: 1254.37 | H84: 1237.68 | I84: 1227.12 | J84: 1281.62 | K84: 1292.18 | L84: 1308.87 | M84: 1275.5 | N84: 1248.25 | O84: 4558050 | P84: 0.50%
A85: 75 | B85: Pharma | C85: GRANULES | D85: 2022-11-24 | E85: 374.35 | F85: 372.35 | G85: 369.70 | H85: 365.05 | I85: 362.40 | J85: 377.00 | K85: 379.65 | L85: 384.30 | M85: 375 | N85: 367.7 | O85: 7708000 | P85: 4.16%
A86: 76 | B86: Cement | C86: GRASIM | D86: 2022-11-24 | E86: 1732.10 | F86: 1722.00 | G86: 1705.30 | H86: 1678.50 | I86: 1661.80 | J86: 1748.80 | K86: 1765.50 | L86: 1792.30 | M86: 1738.7 | N86: 1695.2 | O86: 7269400 | P86: 0.11%
A87: 77 | B87: Oil_Gas | C87: GSPL | D87: 2022-11-24 | E87: 227.00 | F87: 225.80 | G87: 224.00 | H87: 221.00 | I87: 219.20 | J87: 228.80 | K87: 230.60 | L87: 233.60 | M87: 227.6 | N87: 222.8 | O87: 5570000 | P87: 1.27%
A88: 78 | B88: Oil_Gas | C88: GUJGASLTD | D88: 2022-11-24 | E88: 518.20 | F88: 516.72 | G88: 510.33 | H88: 502.47 | I88: 496.08 | J88: 524.58 | K88: 530.97 | L88: 538.83 | M88: 523.1 | N88: 508.85 | O88: 5107500 | P88: 0.89%
A89: 79 | B89: Others | C89: HAL | D89: 2022-11-24 | E89: 2539.70 | F89: 2541.78 | G89: 2522.67 | H89: 2505.63 | I89: 2486.52 | J89: 2558.82 | K89: 2577.93 | L89: 2594.97 | M89: 2560.9 | N89: 2524.75 | O89: 3780950 | P89: -0.85%
A90: 80 | B90: Capital_Goods | C90: HAVELLS | D90: 2022-11-24 | E90: 1220.60 | F90: 1211.88 | G90: 1200.42 | H90: 1180.23 | I90: 1168.77 | J90: 1232.07 | K90: 1243.53 | L90: 1263.72 | M90: 1223.35 | N90: 1191.7 | O90: 4178500 | P90: -2.35%
A91: 81 | B91: Technology | C91: HCLTECH | D91: 2022-11-24 | E91: 1044.65 | F91: 1047.25 | G91: 1037.65 | H91: 1030.65 | I91: 1021.05 | J91: 1054.25 | K91: 1063.85 | L91: 1070.85 | M91: 1056.85 | N91: 1040.25 | O91: 14892500 | P91: 1.32%
A92: 82 | B92: Finance | C92: HDFC | D92: 2022-11-24 | E92: 2479.25 | F92: 2460.73 | G92: 2439.52 | H92: 2399.78 | I92: 2378.57 | J92: 2500.47 | K92: 2521.68 | L92: 2561.42 | M92: 2481.95 | N92: 2421 | O92: 18830100 | P92: 1.31%
A93: 83 | B93: Finance | C93: HDFCAMC | D93: 2022-11-24 | E93: 2076.70 | F93: 2073.67 | G93: 2062.03 | H93: 2047.37 | I93: 2035.73 | J93: 2088.33 | K93: 2099.97 | L93: 2114.63 | M93: 2085.3 | N93: 2059 | O93: 1791900 | P93: 1.77%
A94: 84 | B94: Banking | C94: HDFCBANK | D94: 2022-11-24 | E94: 1503.25 | F94: 1493.98 | G94: 1482.47 | H94: 1461.68 | I94: 1450.17 | J94: 1514.77 | K94: 1526.28 | L94: 1547.07 | M94: 1505.5 | N94: 1473.2 | O94: 61922850 | P94: -1.22%
A95: 85 | B95: Finance | C95: HDFCLIFE | D95: 2022-11-24 | E95: 542.60 | F95: 539.95 | G95: 536.75 | H95: 530.90 | I95: 527.70 | J95: 545.80 | K95: 549.00 | L95: 554.85 | M95: 543.15 | N95: 534.1 | O95: 22139700 | P95: -0.86%
A96: 86 | B96: Automobile | C96: HEROMOTOCO | D96: 2022-11-24 | E96: 2682.15 | F96: 2686.45 | G96: 2665.70 | H96: 2649.25 | I96: 2628.50 | J96: 2702.90 | K96: 2723.65 | L96: 2740.10 | M96: 2707.2 | N96: 2670 | O96: 2559600 | P96: -0.14%
A97: 87 | B97: Metals | C97: HINDALCO | D97: 2022-11-24 | E97: 406.50 | F97: 406.65 | G97: 403.75 | H97: 401.00 | I97: 398.10 | J97: 409.40 | K97: 412.30 | L97: 415.05 | M97: 409.55 | N97: 403.9 | O97: 27380050 | P97: -3.08%
A98: 88 | B98: Metals | C98: HINDCOPPER | D98: 2022-11-24 | E98: 103.55 | F98: 104.22 | G98: 102.18 | H98: 100.82 | I98: 98.78 | J98: 105.58 | K98: 107.62 | L98: 108.98 | M98: 106.25 | N98: 102.85 | O98: 18241600 | P98: 3.95%
A99: 89 | B99: Oil_Gas | C99: HINDPETRO | D99: 2022-11-24 | E99: 214.75 | F99: 214.03 | G99: 212.82 | H99: 210.88 | I99: 209.67 | J99: 215.97 | K99: 217.18 | L99: 219.12 | M99: 215.25 | N99: 212.1 | O99: 19264500 | P99: 1.28%
A100: 90 | B100: FMCG | C100: HINDUNILVR | D100: 2022-11-24 | E100: 2547.90 | F100: 2550.08 | G100: 2536.17 | H100: 2524.43 | I100: 2510.52 | J100: 2561.82 | K100: 2575.73 | L100: 2587.47 | M100: 2564 | N100: 2538.35 | O100: 7979700 | P100: -1.24%
A101: 91 | B101: Others | C101: HONAUT | D101: 2022-11-24 | E101: 39517.55 | F101: 40046.33 | G101: 38700.97 | H101: 37884.38 | I101: 36539.02 | J101: 40862.92 | K101: 42208.28 | L101: 43024.87 | M101: 41391.7 | N101: 39229.75 | O101: 30720 | P101: -0.19%
A102: 92 | B102: Finance | C102: IBULHSGFIN | D102: 2022-11-24 | E102: 130.15 | F102: 128.92 | G102: 127.18 | H102: 124.22 | I102: 122.48 | J102: 131.88 | K102: 133.62 | L102: 136.58 | M102: 130.65 | N102: 125.95 | O102: 40688000 | P102: 2.50%
A103: 93 | B103: Banking | C103: ICICIBANK | D103: 2022-11-24 | E103: 913.65 | F103: 914.90 | G103: 908.75 | H103: 903.85 | I103: 897.70 | J103: 919.80 | K103: 925.95 | L103: 930.85 | M103: 921.05 | N103: 910 | O103: 77325625 | P103: 1.01%
A104: 94 | B104: Finance | C104: ICICIGI | D104: 2022-11-24 | E104: 1176.70 | F104: 1175.82 | G104: 1164.23 | H104: 1151.77 | I104: 1140.18 | J104: 1188.28 | K104: 1199.87 | L104: 1212.33 | M104: 1187.4 | N104: 1163.35 | O104: 4858175 | P104: 1.69%
A105: 95 | B105: Finance | C105: ICICIPRULI | D105: 2022-11-24 | E105: 510.00 | F105: 507.52 | G105: 503.53 | H105: 497.07 | I105: 493.08 | J105: 513.98 | K105: 517.97 | L105: 524.43 | M105: 511.5 | N105: 501.05 | O105: 7251000 | P105: 1.58%
A106: 96 | B106: Telecom | C106: IDEA | D106: 2022-11-24 | E106: 8.65 | F106: 8.65 | G106: 8.60 | H106: 8.55 | I106: 8.50 | J106: 8.70 | K106: 8.75 | L106: 8.80 | M106: 8.7 | N106: 8.6 | O106: 562800000 | P106: 0.49%
A107: 97 | B107: Finance | C107: IDFC | D107: 2022-11-24 | E107: 77.85 | F107: 77.47 | G107: 76.78 | H107: 75.72 | I107: 75.03 | J107: 78.53 | K107: 79.22 | L107: 80.28 | M107: 78.15 | N107: 76.4 | O107: 110790000 | P107: 0.14%
A108: 98 | B108: Banking | C108: IDFCFIRSTB | D108: 2022-11-24 | E108: 56.20 | F108: 56.23 | G108: 55.67 | H108: 55.13 | I108: 54.57 | J108: 56.77 | K108: 57.33 | L108: 57.87 | M108: 56.8 | N108: 55.7 | O108: 166170000 | P108: -2.43%
A109: 99 | B109: Others | C109: IEX | D109: 2022-11-24 | E109: 140.35 | F109: 139.75 | G109: 138.75 | H109: 137.15 | I109: 136.15 | J109: 141.35 | K109: 142.35 | L109: 143.95 | M109: 140.75 | N109: 138.15 | O109: 49965000 | P109: 1.41%
A110: 100 | B110: Oil_Gas | C110: IGL | D110: 2022-11-24 | E110: 429.55 | F110: 426.93 | G110: 422.62 | H110: 415.68 | I110: 411.37 | J110: 433.87 | K110: 438.18 | L110: 445.12 | M110: 431.25 | N110: 420 | O110: 10428000 | P110: -0.64%
A111: 101 | B111: Infrastructure | C111: INDHOTEL | D111: 2022-11-24 | E111: 334.70 | F111: 331.48 | G111: 327.67 | H111: 320.63 | I111: 316.82 | J111: 338.52 | K111: 342.33 | L111: 349.37 | M111: 335.3 | N111: 324.45 | O111: 28423452 | P111: 5.45%
A112: 102 | B112: Cement | C112: INDIACEM | D112: 2022-11-24 | E112: 242.55 | F112: 241.55 | G112: 237.50 | H112: 232.45 | I112: 228.40 | J112: 246.60 | K112: 250.65 | L112: 255.70 | M112: 245.6 | N112: 236.5 | O112: 12826700 | P112: 7.48%
A113: 103 | B113: Others | C113: INDIAMART | D113: 2022-11-24 | E113: 4574.45 | F113: 4527.67 | G113: 4465.18 | H113: 4355.92 | I113: 4293.43 | J113: 4636.93 | K113: 4699.42 | L113: 4808.68 | M113: 4590.15 | N113: 4418.4 | O113: 260400 | P113: 5.47%
A114: 104 | B114: Others | C114: INDIGO | D114: 2022-11-24 | E114: 1791.00 | F114: 1786.85 | G114: 1774.70 | H114: 1758.40 | I114: 1746.25 | J114: 1803.15 | K114: 1815.30 | L114: 1831.60 | M114: 1799 | N114: 1770.55 | O114: 4074000 | P114: 2.72%
A115: 105 | B115: Banking | C115: INDUSINDBK | D115: 2022-11-24 | E115: 1149.25 | F115: 1152.48 | G115: 1141.07 | H115: 1132.88 | I115: 1121.47 | J115: 1160.67 | K115: 1172.08 | L115: 1180.27 | M115: 1163.9 | N115: 1144.3 | O115: 27588150 | P115: 1.25%
A116: 106 | B116: Telecom | C116: INDUSTOWER | D116: 2022-11-24 | E116: 186.45 | F116: 187.17 | G116: 184.58 | H116: 182.72 | I116: 180.13 | J116: 189.03 | K116: 191.62 | L116: 193.48 | M116: 189.75 | N116: 185.3 | O116: 18104800 | P116: 5.05%
A117: 107 | B117: Technology | C117: INFY | D117: 2022-11-24 | E117: 1545.05 | F117: 1544.12 | G117: 1532.83 | H117: 1520.62 | I117: 1509.33 | J117: 1556.33 | K117: 1567.62 | L117: 1579.83 | M117: 1555.4 | N117: 1531.9 | O117: 29223900 | P117: 0.53%
A118: 108 | B118: Technology | C118: INTELLECT | D118: 2022-11-24 | E118: 434.45 | F118: 447.75 | G118: 416.45 | H118: 398.45 | I118: 367.15 | J118: 465.75 | K118: 497.05 | L118: 515.05 | M118: 479.05 | N118: 429.75 | O118: 3242250 | P118: 87.79%
A119: 109 | B119: Oil_Gas | C119: IOC | D119: 2022-11-24 | E119: 68.70 | F119: 68.73 | G119: 68.32 | H119: 67.93 | I119: 67.52 | J119: 69.12 | K119: 69.53 | L119: 69.92 | M119: 69.15 | N119: 68.35 | O119: 80252250 | P119: 2.39%
A120: 110 | B120: Pharma | C120: IPCALAB | D120: 2022-11-24 | E120: 907.00 | F120: 897.28 | G120: 881.27 | H120: 855.53 | I120: 839.52 | J120: 923.02 | K120: 939.03 | L120: 964.77 | M120: 913.3 | N120: 871.55 | O120: 1250600 | P120: 4.57%
A121: 111 | B121: Others | C121: IRCTC | D121: 2022-11-24 | E121: 737.85 | F121: 735.83 | G121: 730.02 | H121: 722.18 | I121: 716.37 | J121: 743.67 | K121: 749.48 | L121: 757.32 | M121: 741.65 | N121: 728 | O121: 13497750 | P121: -1.27%
A122: 112 | B122: FMCG | C122: ITC | D122: 2022-11-24 | E122: 349.75 | F122: 349.45 | G122: 347.10 | H122: 344.45 | I122: 342.10 | J122: 352.10 | K122: 354.45 | L122: 357.10 | M122: 351.8 | N122: 346.8 | O122: 74368000 | P122: -0.70%
A123: 113 | B123: Metals | C123: JINDALSTEL | D123: 2022-11-24 | E123: 461.15 | F123: 456.90 | G123: 451.65 | H123: 442.15 | I123: 436.90 | J123: 466.40 | K123: 471.65 | L123: 481.15 | M123: 462.15 | N123: 447.4 | O123: 25945000 | P123: 0.31%
A124: 114 | B124: Cement | C124: JKCEMENT | D124: 2022-11-24 | E124: 2718.25 | F124: 2681.68 | G124: 2636.52 | H124: 2554.78 | I124: 2509.62 | J124: 2763.42 | K124: 2808.58 | L124: 2890.32 | M124: 2726.85 | N124: 2599.95 | O124: 419750 | P124: 16.27%
A125: 115 | B125: Metals | C125: JSWSTEEL | D125: 2022-11-24 | E125: 677.90 | F125: 675.98 | G125: 672.47 | H125: 667.03 | I125: 663.52 | J125: 681.42 | K125: 684.93 | L125: 690.37 | M125: 679.5 | N125: 670.55 | O125: 26230500 | P125: 0.24%
A126: 116 | B126: Others | C126: JUBLFOOD | D126: 2022-11-24 | E126: 614.10 | F126: 610.13 | G126: 601.62 | H126: 589.13 | I126: 580.62 | J126: 622.62 | K126: 631.13 | L126: 643.62 | M126: 618.65 | N126: 597.65 | O126: 10848750 | P126: -2.27%
A127: 117 | B127: Banking | C127: KOTAKBANK | D127: 2022-11-24 | E127: 1907.15 | F127: 1906.30 | G127: 1894.75 | H127: 1882.35 | I127: 1870.80 | J127: 1918.70 | K127: 1930.25 | L127: 1942.65 | M127: 1917.85 | N127: 1893.9 | O127: 22664000 | P127: -2.78%
A128: 118 | B128: Finance | C128: L&TFH | D128: 2022-11-24 | E128: 81.60 | F128: 81.25 | G128: 80.65 | H128: 79.70 | I128: 79.10 | J128: 82.20 | K128: 82.80 | L128: 83.75 | M128: 81.85 | N128: 80.3 | O128: 53570772 | P128: 0.20%
A129: 119 | B129: Others | C129: LALPATHLAB | D129: 2022-11-24 | E129: 2553.35 | F129: 2557.15 | G129: 2526.20 | H129: 2499.05 | I129: 2468.10 | J129: 2584.30 | K129: 2615.25 | L129: 2642.40 | M129: 2588.1 | N129: 2530 | O129: 1014000 | P129: -0.29%
A130: 120 | B130: Pharma | C130: LAURUSLABS | D130: 2022-11-24 | E130: 456.70 | F130: 453.78 | G130: 449.37 | H130: 442.03 | I130: 437.62 | J130: 461.12 | K130: 465.53 | L130: 472.87 | M130: 458.2 | N130: 446.45 | O130: 7787400 | P130: 7.13%
A131: 121 | B131: Finance | C131: LICHSGFIN | D131: 2022-11-24 | E131: 406.40 | F131: 410.92 | G131: 396.83 | H131: 387.27 | I131: 373.18 | J131: 420.48 | K131: 434.57 | L131: 444.13 | M131: 425 | N131: 401.35 | O131: 13820000 | P131: -0.63%
A132: 122 | B132: Capital_Goods | C132: LT | D132: 2022-11-24 | E132: 2034.50 | F132: 2022.30 | G132: 2001.70 | H132: 1968.90 | I132: 1948.30 | J132: 2055.10 | K132: 2075.70 | L132: 2108.50 | M132: 2042.9 | N132: 1989.5 | O132: 9604500 | P132: 7.00%
A133: 123 | B133: Technology | C133: LTI | D133: 2022-11-24 | E133: 4755.55 | F133: 4717.52 | G133: 4672.83 | H133: 4590.12 | I133: 4545.43 | J133: 4800.23 | K133: 4844.92 | L133: 4927.63 | M133: 4762.2 | N133: 4634.8 | O133: 1116450 | P133: -3.59%
A134: 124 | B134: Technology | C134: LTTS | D134: 2022-11-24 | E134: 3535.75 | F134: 3513.15 | G134: 3479.55 | H134: 3423.35 | I134: 3389.75 | J134: 3569.35 | K134: 3602.95 | L134: 3659.15 | M134: 3546.75 | N134: 3456.95 | O134: 1119600 | P134: -2.37%
A135: 125 | B135: Pharma | C135: LUPIN | D135: 2022-11-24 | E135: 701.05 | F135: 700.02 | G135: 691.53 | H135: 682.02 | I135: 673.53 | J135: 709.53 | K135: 718.02 | L135: 727.53 | M135: 708.5 | N135: 690.5 | O135: 7192700 | P135: 2.46%
A136: 126 | B136: Automobile | C136: M&M | D136: 2022-11-24 | E136: 1353.40 | F136: 1347.53 | G136: 1329.02 | H136: 1304.63 | I136: 1286.12 | J136: 1371.92 | K136: 1390.43 | L136: 1414.82 | M136: 1366.05 | N136: 1323.15 | O136: 10421600 | P136: 1.55%
A137: 127 | B137: Finance | C137: M&MFIN | D137: 2022-11-24 | E137: 200.65 | F137: 201.80 | G137: 197.70 | H137: 194.75 | I137: 190.65 | J137: 204.75 | K137: 208.85 | L137: 211.80 | M137: 205.9 | N137: 198.85 | O137: 20608000 | P137: 12.22%
A138: 128 | B138: Finance | C138: MANAPPURAM | D138: 2022-11-24 | E138: 105.30 | F138: 104.87 | G138: 104.18 | H138: 103.07 | I138: 102.38 | J138: 105.98 | K138: 106.67 | L138: 107.78 | M138: 105.55 | N138: 103.75 | O138: 26982000 | P138: 4.15%
A139: 129 | B139: FMCG | C139: MARICO | D139: 2022-11-24 | E139: 526.30 | F139: 523.83 | G139: 520.17 | H139: 514.03 | I139: 510.37 | J139: 529.97 | K139: 533.63 | L139: 539.77 | M139: 527.5 | N139: 517.7 | O139: 8548800 | P139: -0.41%
A140: 130 | B140: Automobile | C140: MARUTI | D140: 2022-11-24 | E140: 9553.65 | F140: 9612.18 | G140: 9435.47 | H140: 9317.28 | I140: 9140.57 | J140: 9730.37 | K140: 9907.08 | L140: 10025.27 | M140: 9788.9 | N140: 9494 | O140: 3055100 | P140: -4.50%
A141: 131 | B141: FMCG | C141: MCDOWELL-N | D141: 2022-11-24 | E141: 900.40 | F141: 879.57 | G141: 855.13 | H141: 809.87 | I141: 785.43 | J141: 924.83 | K141: 949.27 | L141: 994.53 | M141: 904 | N141: 834.3 | O141: 19026875 | P141: 0.61%
A142: 132 | B142: Others | C142: MCX | D142: 2022-11-24 | E142: 1545.80 | F142: 1539.23 | G142: 1529.57 | H142: 1513.33 | I142: 1503.67 | J142: 1555.47 | K142: 1565.13 | L142: 1581.37 | M142: 1548.9 | N142: 1523 | O142: 2354400 | P142: 2.10%
A143: 133 | B143: Pharma | C143: METROPOLIS | D143: 2022-11-24 | E143: 1681.15 | F143: 1661.37 | G143: 1629.63 | H143: 1578.12 | I143: 1546.38 | J143: 1712.88 | K143: 1744.62 | L143: 1796.13 | M143: 1693.1 | N143: 1609.85 | O143: 744700 | P143: 15.65%
A144: 134 | B144: Finance | C144: MFSL | D144: 2022-11-24 | E144: 711.05 | F144: 712.62 | G144: 704.28 | H144: 697.52 | I144: 689.18 | J144: 719.38 | K144: 727.72 | L144: 734.48 | M144: 720.95 | N144: 705.85 | O144: 2276300 | P144: -4.89%
A145: 135 | B145: Oil_Gas | C145: MGL | D145: 2022-11-24 | E145: 866.60 | F145: 862.42 | G145: 855.33 | H145: 844.07 | I145: 836.98 | J145: 873.68 | K145: 880.77 | L145: 892.03 | M145: 869.5 | N145: 851.15 | O145: 3151200 | P145: 0.05%
A146: 136 | B146: Technology | C146: MINDTREE | D146: 2022-11-24 | E146: 3421.25 | F146: 3394.12 | G146: 3359.13 | H146: 3297.02 | I146: 3262.03 | J146: 3456.23 | K146: 3491.22 | L146: 3553.33 | M146: 3429.1 | N146: 3332 | O146: 2679000 | P146: -1.50%
A147: 137 | B147: Automobile | C147: MOTHERSON | D147: 2022-11-24 | E147: 64.75 | F147: 64.85 | G147: 63.90 | H147: 63.05 | I147: 62.10 | J147: 65.70 | K147: 66.65 | L147: 67.50 | M147: 65.8 | N147: 64 | O147: 101965500 | P147: 1.99%
A148: 138 | B148: Technology | C148: MPHASIS | D148: 2022-11-24 | E148: 1990.40 | F148: 1985.92 | G148: 1974.83 | H148: 1959.27 | I148: 1948.18 | J148: 2001.48 | K148: 2012.57 | L148: 2028.13 | M148: 1997 | N148: 1970.35 | O148: 2327200 | P148: -3.16%
A149: 139 | B149: Automobile | C149: MRF | D149: 2022-11-24 | E149: 91140.60 | F149: 90741.30 | G149: 89892.70 | H149: 88644.80 | I149: 87796.20 | J149: 91989.20 | K149: 92837.80 | L149: 94085.70 | M149: 91589.9 | N149: 89493.4 | O149: 50700 | P149: 0.56%
A150: 140 | B150: Finance | C150: MUTHOOTFIN | D150: 2022-11-24 | E150: 1043.15 | F150: 1041.60 | G150: 1035.95 | H150: 1028.75 | I150: 1023.10 | J150: 1048.80 | K150: 1054.45 | L150: 1061.65 | M150: 1047.25 | N150: 1034.4 | O150: 7105575 | P150: 2.45%
A151: 141 | B151: Metals | C151: NATIONALUM | D151: 2022-11-24 | E151: 70.35 | F151: 69.93 | G151: 69.12 | H151: 67.88 | I151: 67.07 | J151: 71.17 | K151: 71.98 | L151: 73.22 | M151: 70.75 | N151: 68.7 | O151: 65832000 | P151: -2.07%
A152: 142 | B152: Others | C152: NAUKRI | D152: 2022-11-24 | E152: 3942.85 | F152: 3913.10 | G152: 3877.20 | H152: 3811.55 | I152: 3775.65 | J152: 3978.75 | K152: 4014.65 | L152: 4080.30 | M152: 3949 | N152: 3847.45 | O152: 1692125 | P152: -1.31%
A153: 143 | B153: Chemical | C153: NAVINFLUOR | D153: 2022-11-24 | E153: 4558.40 | F153: 4550.23 | G153: 4526.62 | H153: 4494.83 | I153: 4471.22 | J153: 4582.02 | K153: 4605.63 | L153: 4637.42 | M153: 4573.85 | N153: 4518.45 | O153: 483525 | P153: 0.19%
A154: 144 | B154: FMCG | C154: NESTLEIND | D154: 2022-11-24 | E154: 20416.45 | F154: 20384.73 | G154: 20269.47 | H154: 20122.48 | I154: 20007.22 | J154: 20531.72 | K154: 20646.98 | L154: 20793.97 | M154: 20500 | N154: 20237.75 | O154: 259520 | P154: -4.31%
A155: 145 | B155: Metals | C155: NMDC | D155: 2022-11-24 | E155: 100.25 | F155: 100.50 | G155: 98.60 | H155: 96.95 | I155: 95.05 | J155: 102.15 | K155: 104.05 | L155: 105.70 | M155: 102.4 | N155: 98.85 | O155: 24106150 | P155: 28.34%
A156: 146 | B156: Power | C156: NTPC | D156: 2022-11-24 | E156: 173.10 | F156: 172.25 | G156: 170.25 | H156: 167.40 | I156: 165.40 | J156: 175.10 | K156: 177.10 | L156: 179.95 | M156: 174.25 | N156: 169.4 | O156: 45451800 | P156: -11.30%
A157: 147 | B157: Realty | C157: OBEROIRLTY | D157: 2022-11-24 | E157: 927.45 | F157: 923.37 | G157: 916.73 | H157: 906.02 | I157: 899.38 | J157: 934.08 | K157: 940.72 | L157: 951.43 | M157: 930 | N157: 912.65 | O157: 6111700 | P157: 0.17%
A158: 148 | B158: Technology | C158: OFSS | D158: 2022-11-24 | E158: 2930.55 | F158: 2925.48 | G158: 2910.97 | H158: 2891.38 | I158: 2876.87 | J158: 2945.07 | K158: 2959.58 | L158: 2979.17 | M158: 2940 | N158: 2905.9 | O158: 570600 | P158: 2.40%
A159: 149 | B159: Oil_Gas | C159: ONGC | D159: 2022-11-24 | E159: 134.85 | F159: 134.75 | G159: 133.50 | H159: 132.15 | I159: 130.90 | J159: 136.10 | K159: 137.35 | L159: 138.70 | M159: 136 | N159: 133.4 | O159: 40748400 | P159: -0.08%
A160: 150 | B160: Textile | C160: PAGEIND | D160: 2022-11-24 | E160: 49780.45 | F160: 49646.72 | G160: 49243.78 | H160: 48707.12 | I160: 48304.18 | J160: 50183.38 | K160: 50586.32 | L160: 51122.98 | M160: 50049.65 | N160: 49110.05 | O160: 101985 | P160: 2.29%
A161: 151 | B161: Pharma | C161: PEL | D161: 2022-11-24 | E161: 854.45 | F161: 857.47 | G161: 849.93 | H161: 845.42 | I161: 837.88 | J161: 861.98 | K161: 869.52 | L161: 874.03 | M161: 865 | N161: 852.95 | O161: 5168625 | P161: -0.33%
A162: 152 | B162: Technology | C162: PERSISTENT | D162: 2022-11-24 | E162: 3704.20 | F162: 3702.60 | G162: 3671.00 | H162: 3637.80 | I162: 3606.20 | J162: 3735.80 | K162: 3767.40 | L162: 3800.60 | M162: 3734.2 | N162: 3669.4 | O162: 607425 | P162: 7.86%
A163: 153 | B163: Oil_Gas | C163: PETRONET | D163: 2022-11-24 | E163: 206.25 | F163: 207.13 | G163: 203.72 | H163: 201.18 | I163: 197.77 | J163: 209.67 | K163: 213.08 | L163: 215.62 | M163: 210.55 | N163: 204.6 | O163: 14469000 | P163: 7.34%
A164: 154 | B164: Finance | C164: PFC | D164: 2022-11-24 | E164: 114.90 | F164: 114.27 | G164: 113.33 | H164: 111.77 | I164: 110.83 | J164: 115.83 | K164: 116.77 | L164: 118.33 | M164: 115.2 | N164: 112.7 | O164: 50145600 | P164: -4.70%
A165: 155 | B165: FMCG | C165: PIDILITIND | D165: 2022-11-24 | E165: 2594.45 | F165: 2588.38 | G165: 2572.77 | H165: 2551.08 | I165: 2535.47 | J165: 2610.07 | K165: 2625.68 | L165: 2647.37 | M165: 2604 | N165: 2566.7 | O165: 3052000 | P165: 2.15%
A166: 156 | B166: Chemical | C166: PIIND | D166: 2022-11-24 | E166: 3261.60 | F166: 3273.17 | G166: 3237.38 | H166: 3213.17 | I166: 3177.38 | J166: 3297.38 | K166: 3333.17 | L166: 3357.38 | M166: 3308.95 | N166: 3248.95 | O166: 1641500 | P166: 1.44%
A167: 157 | B167: Banking | C167: PNB | D167: 2022-11-24 | E167: 42.95 | F167: 42.93 | G167: 41.92 | H167: 40.88 | I167: 39.87 | J167: 43.97 | K167: 44.98 | L167: 46.02 | M167: 43.95 | N167: 41.9 | O167: 255952000 | P167: 4.99%
A168: 158 | B168: Others | C168: POLYCAB | D168: 2022-11-24 | E168: 2781.10 | F168: 2775.78 | G168: 2761.42 | H168: 2741.73 | I168: 2727.37 | J168: 2795.47 | K168: 2809.83 | L168: 2829.52 | M168: 2790.15 | N168: 2756.1 | O168: 683400 | P168: -2.65%
A169: 159 | B169: Power | C169: POWERGRID | D169: 2022-11-24 | E169: 227.30 | F169: 227.17 | G169: 225.43 | H169: 223.57 | I169: 221.83 | J169: 229.03 | K169: 230.77 | L169: 232.63 | M169: 228.9 | N169: 225.3 | O169: 28822500 | P169: 0.45%
A170: 160 | B170: Media | C170: PVR | D170: 2022-11-24 | E170: 1779.05 | F170: 1775.95 | G170: 1758.10 | H170: 1737.15 | I170: 1719.30 | J170: 1796.90 | K170: 1814.75 | L170: 1835.70 | M170: 1793.8 | N170: 1755 | O170: 2665036 | P170: -2.91%
A171: 161 | B171: Others | C171: RAIN | D171: 2022-11-24 | E171: 168.15 | F171: 166.52 | G171: 163.73 | H171: 159.32 | I171: 156.53 | J171: 170.93 | K171: 173.72 | L171: 178.13 | M171: 169.3 | N171: 162.1 | O171: 11119500 | P171: 8.02%
A172: 162 | B172: Cement | C172: RAMCOCEM | D172: 2022-11-24 | E172: 721.15 | F172: 710.85 | G172: 695.90 | H172: 670.65 | I172: 655.70 | J172: 736.10 | K172: 751.05 | L172: 776.30 | M172: 725.8 | N172: 685.6 | O172: 3149250 | P172: 2.86%
A173: 163 | B173: Banking | C173: RBLBANK | D173: 2022-11-24 | E173: 135.85 | F173: 136.78 | G173: 134.37 | H173: 132.88 | I173: 130.47 | J173: 138.27 | K173: 140.68 | L173: 142.17 | M173: 139.2 | N173: 135.3 | O173: 49065000 | P173: -1.24%
A174: 164 | B174: Power | C174: RECLTD | D174: 2022-11-24 | E174: 102.85 | F174: 102.02 | G174: 100.73 | H174: 98.62 | I174: 97.33 | J174: 104.13 | K174: 105.42 | L174: 107.53 | M174: 103.3 | N174: 99.9 | O174: 41304000 | P174: -3.94%
A175: 165 | B175: Oil_Gas | C175: RELIANCE | D175: 2022-11-24 | E175: 2556.80 | F175: 2557.53 | G175: 2543.27 | H175: 2529.73 | I175: 2515.47 | J175: 2571.07 | K175: 2585.33 | L175: 2598.87 | M175: 2571.8 | N175: 2544 | O175: 32032250 | P175: -1.66%
A176: 166 | B176: Metals | C176: SAIL | D176: 2022-11-24 | E176: 78.70 | F176: 78.53 | G176: 77.82 | H176: 76.93 | I176: 76.22 | J176: 79.42 | K176: 80.13 | L176: 81.02 | M176: 79.25 | N176: 77.65 | O176: 98854000 | P176: 2.44%
A177: 167 | B177: Banking | C177: SBICARD | D177: 2022-11-24 | E177: 830.40 | F177: 826.22 | G177: 820.68 | H177: 810.97 | I177: 805.43 | J177: 835.93 | K177: 841.47 | L177: 851.18 | M177: 831.75 | N177: 816.5 | O177: 6000000 | P177: -12.08%
A178: 168 | B178: Finance | C178: SBILIFE | D178: 2022-11-24 | E178: 1272.75 | F178: 1271.05 | G178: 1266.10 | H178: 1259.45 | I178: 1254.50 | J178: 1277.70 | K178: 1282.65 | L178: 1289.30 | M178: 1276 | N178: 1264.4 | O178: 5328000 | P178: 0.97%
A179: 169 | B179: Banking | C179: SBIN | D179: 2022-11-24 | E179: 576.40 | F179: 575.83 | G179: 572.07 | H179: 567.73 | I179: 563.97 | J179: 580.17 | K179: 583.93 | L179: 588.27 | M179: 579.6 | N179: 571.5 | O179: 60168000 | P179: 1.29%
A180: 170 | B180: Cement | C180: SHREECEM | D180: 2022-11-24 | E180: 22600.10 | F180: 22353.58 | G180: 21947.17 | H180: 21294.23 | I180: 20887.82 | J180: 23006.52 | K180: 23412.93 | L180: 24065.87 | M180: 22760 | N180: 21700.65 | O180: 291800 | P180: 3.13%
A181: 171 | B181: Capital_Goods | C181: SIEMENS | D181: 2022-11-24 | E181: 2944.00 | F181: 2950.12 | G181: 2925.28 | H181: 2906.57 | I181: 2881.73 | J181: 2968.83 | K181: 2993.67 | L181: 3012.38 | M181: 2974.95 | N181: 2931.4 | O181: 1465475 | P181: 2.09%
A182: 172 | B182: Textile | C182: SRF | D182: 2022-11-24 | E182: 2567.60 | F182: 2553.87 | G182: 2529.58 | H182: 2491.57 | I182: 2467.28 | J182: 2591.88 | K182: 2616.17 | L182: 2654.18 | M182: 2578.15 | N182: 2515.85 | O182: 3606750 | P182: -2.16%
A183: 173 | B183: Finance | C183: SRTRANSFIN | D183: 2022-11-24 | E183: 1215.85 | F183: 1223.57 | G183: 1201.33 | H183: 1186.82 | I183: 1164.58 | J183: 1238.08 | K183: 1260.32 | L183: 1274.83 | M183: 1245.8 | N183: 1209.05 | O183: 3811800 | P183: 3.98%
A184: 174 | B184: Pharma | C184: SUNPHARMA | D184: 2022-11-24 | E184: 1022.50 | F184: 1015.28 | G184: 1001.27 | H184: 980.03 | I184: 966.02 | J184: 1036.52 | K184: 1050.53 | L184: 1071.77 | M184: 1029.3 | N184: 994.05 | O184: 19250700 | P184: -0.88%
A185: 175 | B185: Media | C185: SUNTV | D185: 2022-11-24 | E185: 523.95 | F185: 522.83 | G185: 519.67 | H185: 515.38 | I185: 512.22 | J185: 527.12 | K185: 530.28 | L185: 534.57 | M185: 526 | N185: 518.55 | O185: 9703500 | P185: -0.69%
A186: 176 | B186: Pharma | C186: SYNGENE | D186: 2022-11-24 | E186: 632.55 | F186: 627.58 | G186: 621.22 | H186: 609.88 | I186: 603.52 | J186: 638.92 | K186: 645.28 | L186: 656.62 | M186: 633.95 | N186: 616.25 | O186: 2258000 | P186: -4.48%
A187: 177 | B187: Chemical | C187: TATACHEM | D187: 2022-11-24 | E187: 1138.65 | F187: 1139.23 | G187: 1126.47 | H187: 1114.28 | I187: 1101.52 | J187: 1151.42 | K187: 1164.18 | L187: 1176.37 | M187: 1152 | N187: 1127.05 | O187: 7466500 | P187: -6.97%
A188: 178 | B188: Telecom | C188: TATACOMM | D188: 2022-11-24 | E188: 1265.70 | F188: 1261.62 | G188: 1248.13 | H188: 1230.57 | I188: 1217.08 | J188: 1279.18 | K188: 1292.67 | L188: 1310.23 | M188: 1275.1 | N188: 1244.05 | O188: 2741000 | P188: 6.10%
A189: 179 | B189: FMCG | C189: TATACONSUM | D189: 2022-11-24 | E189: 774.50 | F189: 772.22 | G189: 768.28 | H189: 762.07 | I189: 758.13 | J189: 778.43 | K189: 782.37 | L189: 788.58 | M189: 776.15 | N189: 766 | O189: 8974800 | P189: -0.54%
A190: 180 | B190: Automobile | C190: TATAMOTORS | D190: 2022-11-24 | E190: 414.75 | F190: 415.28 | G190: 412.82 | H190: 410.88 | I190: 408.42 | J190: 417.22 | K190: 419.68 | L190: 421.62 | M190: 417.75 | N190: 413.35 | O190: 67307025 | P190: 1.58%
A191: 181 | B191: Power | C191: TATAPOWER | D191: 2022-11-24 | E191: 226.80 | F191: 227.03 | G191: 224.57 | H191: 222.33 | I191: 219.87 | J191: 229.27 | K191: 231.73 | L191: 233.97 | M191: 229.5 | N191: 224.8 | O191: 99336375 | P191: 3.68%
A192: 182 | B192: Metals | C192: TATASTEEL | D192: 2022-11-24 | E192: 101.70 | F192: 101.50 | G192: 100.65 | H192: 99.60 | I192: 98.75 | J192: 102.55 | K192: 103.40 | L192: 104.45 | M192: 102.35 | N192: 100.45 | O192: 208696000 | P192: 1.16%
A193: 183 | B193: Technology | C193: TCS | D193: 2022-11-24 | E193: 3204.50 | F193: 3203.55 | G193: 3193.10 | H193: 3181.70 | I193: 3171.25 | J193: 3214.95 | K193: 3225.40 | L193: 3236.80 | M193: 3214 | N193: 3192.15 | O193: 10649475 | P193: 0.37%
A194: 184 | B194: Technology | C194: TECHM | D194: 2022-11-24 | E194: 1055.25 | F194: 1056.08 | G194: 1044.27 | H194: 1033.28 | I194: 1021.47 | J194: 1067.07 | K194: 1078.88 | L194: 1089.87 | M194: 1067.9 | N194: 1045.1 | O194: 12996000 | P194: 3.25%
A195: 185 | B195: FMCG | C195: TITAN | D195: 2022-11-24 | E195: 2775.15 | F195: 2775.35 | G195: 2748.70 | H195: 2722.25 | I195: 2695.60 | J195: 2801.80 | K195: 2828.45 | L195: 2854.90 | M195: 2802 | N195: 2748.9 | O195: 5020500 | P195: 2.52%
A196: 186 | B196: Pharma | C196: TORNTPHARM | D196: 2022-11-24 | E196: 1654.95 | F196: 1641.78 | G196: 1623.62 | H196: 1592.28 | I196: 1574.12 | J196: 1673.12 | K196: 1691.28 | L196: 1722.62 | M196: 1659.95 | N196: 1610.45 | O196: 1621000 | P196: 2.66%
A197: 187 | B197: Power | C197: TORNTPOWER | D197: 2022-11-24 | E197: 506.60 | F197: 505.15 | G197: 502.40 | H197: 498.20 | I197: 495.45 | J197: 509.35 | K197: 512.10 | L197: 516.30 | M197: 507.9 | N197: 500.95 | O197: 3912000 | P197: 0.77%
A198: 188 | B198: Others | C198: TRENT | D198: 2022-11-24 | E198: 1536.60 | F198: 1518.82 | G198: 1489.68 | H198: 1442.77 | I198: 1413.63 | J198: 1565.73 | K198: 1594.87 | L198: 1641.78 | M198: 1547.95 | N198: 1471.9 | O198: 4438125 | P198: 6.30%
A199: 189 | B199: Automobile | C199: TVSMOTOR | D199: 2022-11-24 | E199: 1150.35 | F199: 1146.87 | G199: 1135.98 | H199: 1121.62 | I199: 1110.73 | J199: 1161.23 | K199: 1172.12 | L199: 1186.48 | M199: 1157.75 | N199: 1132.5 | O199: 5449500 | P199: 6.82%
A200: 190 | B200: FMCG | C200: UBL | D200: 2022-11-24 | E200: 1661.95 | F200: 1655.72 | G200: 1646.73 | H200: 1631.52 | I200: 1622.53 | J200: 1670.93 | K200: 1679.92 | L200: 1695.13 | M200: 1664.7 | N200: 1640.5 | O200: 994800 | P200: 4.28%
A201: 191 | B201: Cement | C201: ULTRACEMCO | D201: 2022-11-24 | E201: 6736.65 | F201: 6660.20 | G201: 6562.40 | H201: 6388.15 | I201: 6290.35 | J201: 6834.45 | K201: 6932.25 | L201: 7106.50 | M201: 6758 | N201: 6485.95 | O201: 2085600 | P201: 2.98%
A202: 192 | B202: Chemical | C202: UPL | D202: 2022-11-24 | E202: 734.15 | F202: 728.03 | G202: 719.77 | H202: 705.38 | I202: 697.12 | J202: 742.42 | K202: 750.68 | L202: 765.07 | M202: 736.3 | N202: 713.65 | O202: 23596300 | P202: 3.80%
A203: 193 | B203: Metals | C203: VEDL | D203: 2022-11-24 | E203: 282.50 | F203: 280.70 | G203: 274.80 | H203: 267.10 | I203: 261.20 | J203: 288.40 | K203: 294.30 | L203: 302.00 | M203: 286.6 | N203: 273 | O203: 33337550 | P203: 13.30%
A204: 194 | B204: Capital_Goods | C204: VOLTAS | D204: 2022-11-24 | E204: 879.65 | F204: 874.72 | G204: 865.48 | H204: 851.32 | I204: 842.08 | J204: 888.88 | K204: 898.12 | L204: 912.28 | M204: 883.95 | N204: 860.55 | O204: 4688600 | P204: 17.14%
A205: 195 | B205: Capital_Goods | C205: WHIRLPOOL | D205: 2022-11-24 | E205: 1582.15 | F205: 1575.52 | G205: 1566.03 | H205: 1549.92 | I205: 1540.43 | J205: 1591.63 | K205: 1601.12 | L205: 1617.23 | M205: 1585 | N205: 1559.4 | O205: 635250 | P205: 12.52%
A206: 196 | B206: Technology | C206: WIPRO | D206: 2022-11-24 | E206: 387.80 | F206: 387.58 | G206: 385.72 | H206: 383.63 | I206: 381.77 | J206: 389.67 | K206: 391.53 | L206: 393.62 | M206: 389.45 | N206: 385.5 | O206: 41361500 | P206: -0.66%
... 17 more rows

Sheet Cash Intra
M5: Back to Main Page
A6: FOR INTRA DAY TRADING | K6: =Main!B10 -> 2022-11-01
A8: Sr.no | C8: CLOSE RATE | D8: Pivot Point | E8: Supports | H8: Resistances
E9: S1 | F9: S2 | G9: S3 | H9: R1 | I9: R2 | J9: R3 | K9: HIGH | L9: LOW | M9: Total Trade Quanity in Lakhs
A10: 1 | B10: Nifty 50 | C10: 18012.20 | D10: 17978.30 | E10: 17933.80 | F10: 17855.40 | G10: 17810.90 | H10: 18056.70 | I10: 18101.20 | J10: 18179.60 | K10: 18022.80 | L10: 17899.90
A11: 2 | B11: Nifty Bank | C11: 41307.90 | D11: 41255.90 | E11: 41158.10 | F11: 41008.30 | G11: 40910.50 | H11: 41405.70 | I11: 41503.50 | J11: 41653.30 | K11: 41353.70 | L11: 41106.10
A12: 3 | B12: Nifty CPSE | C12: 2799.65 | D12: 2796.55 | E12: 2778.95 | F12: 2758.25 | G12: 2740.65 | H12: 2817.25 | I12: 2834.85 | J12: 2855.55 | K12: 2814.15 | L12: 2775.85
A13: 4 | B13: Nifty Infra | C13: 5234.70 | D13: 5218.33 | E13: 5198.22 | F13: 5161.73 | G13: 5141.62 | H13: 5254.82 | I13: 5274.93 | J13: 5311.42 | K13: 5238.45 | L13: 5181.85
A14: 5 | B14: Nifty IT | C14: 28727.60 | D14: 28714.67 | E14: 28586.18 | F14: 28444.77 | G14: 28316.28 | H14: 28856.08 | I14: 28984.57 | J14: 29125.98 | K14: 28843.15 | L14: 28573.25
A15: 6 | B15: Nifty PSE | C15: 4276.55 | D15: 4272.08 | E15: 4247.62 | F15: 4218.68 | G15: 4194.22 | H15: 4301.02 | I15: 4325.48 | J15: 4354.42 | K15: 4296.55 | L15: 4243.15
A16: 7 | B16: Nifty Midcap 50 | C16: 8690.35 | D16: 8667.88 | E16: 8640.82 | F16: 8591.28 | G16: 8564.22 | H16: 8717.42 | I16: 8744.48 | J16: 8794.02 | K16: 8694.95 | L16: 8618.35
A17: 8 | B17: ABB | C17: 3049.75 | D17: 3024.40 | E17: 2986.95 | F17: 2924.15 | G17: 2886.70 | H17: 3087.20 | I17: 3124.65 | J17: 3187.45 | K17: 3061.85 | L17: 2961.6 | M17: 3.19759
A18: 9 | B18: ACC | C18: 2390.3 | D18: 2372.03 | E18: 2346.17 | F18: 2302.03 | G18: 2276.17 | H18: 2416.17 | I18: 2442.03 | J18: 2486.17 | K18: 2397.9 | L18: 2327.9 | M18: 5.84214
A19: 10 | B19: AUBANK | C19: 589.55 | D19: 585.63 | E19: 581.07 | F19: 572.58 | G19: 568.02 | H19: 594.12 | I19: 598.68 | J19: 607.17 | K19: 590.2 | L19: 577.15 | M19: 11.70001
A20: 11 | B20: ABBOTINDIA | C20: 19246.95 | D20: 19183.33 | E20: 19033.67 | F20: 18820.38 | G20: 18670.72 | H20: 19396.62 | I20: 19546.28 | J20: 19759.57 | K20: 19333 | L20: 18970.05 | M20: 0.18533
A21: 12 | B21: ADANIENT | C21: 3347.45 | D21: 3344.52 | E21: 3329.03 | F21: 3310.62 | G21: 3295.13 | H21: 3362.93 | I21: 3378.42 | J21: 3396.83 | K21: 3360 | L21: 3326.1 | M21: 5.75722
A22: 13 | B22: ADANIGREEN | C22: 2102.9 | D22: 2101.63 | E22: 2082.27 | F22: 2061.63 | G22: 2042.27 | H22: 2122.27 | I22: 2141.63 | J22: 2162.27 | K22: 2121 | L22: 2081 | M22: 8.54149
A23: 14 | B23: ADANIPORTS | C23: 823.55 | D23: 824.68 | E23: 818.37 | F23: 813.18 | G23: 806.87 | H23: 829.87 | I23: 836.18 | J23: 841.37 | K23: 831 | L23: 819.5 | M23: 44.87537
A24: 15 | B24: ATGL | C24: 3602.85 | D24: 3561.52 | E24: 3464.33 | F24: 3325.82 | G24: 3228.63 | H24: 3700.03 | I24: 3797.22 | J24: 3935.73 | K24: 3658.7 | L24: 3423 | M24: 2.84614
A25: 16 | B25: ADANITRANS | C25: 3348.7 | D25: 3327.72 | E25: 3280.43 | F25: 3212.17 | G25: 3164.88 | H25: 3395.98 | I25: 3443.27 | J25: 3511.53 | K25: 3375 | L25: 3259.45 | M25: 5.41936
A26: 17 | B26: AWL | C26: 672.4 | D26: 673.48 | E26: 665.92 | F26: 659.43 | G26: 651.87 | H26: 679.97 | I26: 687.53 | J26: 694.02 | K26: 681.05 | L26: 667 | M26: 13.47016
A27: 18 | B27: ABCAPITAL | C27: 116.85 | D27: 116.80 | E27: 115.90 | F27: 114.95 | G27: 114.05 | H27: 117.75 | I27: 118.65 | J27: 119.60 | K27: 117.7 | L27: 115.85 | M27: 14.9563
A28: 19 | B28: ABFRL | C28: 353.9 | D28: 350.77 | E28: 346.13 | F28: 338.37 | G28: 333.73 | H28: 358.53 | I28: 363.17 | J28: 370.93 | K28: 355.4 | L28: 343 | M28: 32.77184
A29: 20 | B29: ALKEM | C29: 3155.2 | D29: 3144.87 | E29: 3129.73 | F29: 3104.27 | G29: 3089.13 | H29: 3170.33 | I29: 3185.47 | J29: 3210.93 | K29: 3160 | L29: 3119.4 | M29: 0.39597
A30: 21 | B30: AMBUJACEM | C30: 532.95 | D30: 530.97 | E30: 523.33 | F30: 513.72 | G30: 506.08 | H30: 540.58 | I30: 548.22 | J30: 557.83 | K30: 538.6 | L30: 521.35 | M30: 86.0198
A31: 22 | B31: APOLLOHOSP | C31: 4517.5 | D31: 4544.67 | E31: 4464.33 | F31: 4411.17 | G31: 4330.83 | H31: 4597.83 | I31: 4678.17 | J31: 4731.33 | K31: 4625 | L31: 4491.5 | M31: 4.33481
A32: 23 | B32: ASHOKLEY | C32: 153.3 | D32: 152.23 | E32: 150.67 | F32: 148.03 | G32: 146.47 | H32: 154.87 | I32: 156.43 | J32: 159.07 | K32: 153.8 | L32: 149.6 | M32: 137.7045
A33: 24 | B33: ASIANPAINT | C33: 3107.7 | D33: 3093.92 | E33: 3074.83 | F33: 3041.97 | G33: 3022.88 | H33: 3126.78 | I33: 3145.87 | J33: 3178.73 | K33: 3113 | L33: 3061.05 | M33: 8.14364
A34: 25 | B34: ASTRAL | C34: 2031.15 | D34: 2012.88 | E34: 1980.97 | F34: 1930.78 | G34: 1898.87 | H34: 2063.07 | I34: 2094.98 | J34: 2145.17 | K34: 2044.8 | L34: 1962.7 | M34: 4.51563
A35: 26 | B35: AUROPHARMA | C35: 538.15 | D35: 534.05 | E35: 528.10 | F35: 518.05 | G35: 512.10 | H35: 544.10 | I35: 550.05 | J35: 560.10 | K35: 540 | L35: 524 | M35: 14.71383
A36: 27 | B36: DMART | C36: 4320.9 | D36: 4319.63 | E36: 4291.27 | F36: 4261.63 | G36: 4233.27 | H36: 4349.27 | I36: 4377.63 | J36: 4407.27 | K36: 4348 | L36: 4290 | M36: 1.86409
A37: 28 | B37: AXISBANK | C37: 906 | D37: 908.70 | E37: 899.40 | F37: 892.80 | G37: 883.50 | H37: 915.30 | I37: 924.60 | J37: 931.20 | K37: 918 | L37: 902.1 | M37: 90.38777
A38: 29 | B38: BAJAJ-AUTO | C38: 3671.85 | D38: 3679.10 | E38: 3651.85 | F38: 3631.85 | G38: 3604.60 | H38: 3699.10 | I38: 3726.35 | J38: 3746.35 | K38: 3706.35 | L38: 3659.1 | M38: 3.14769
A39: 30 | B39: BAJFINANCE | C39: 7144.1 | D39: 7113.23 | E39: 7076.87 | F39: 7009.63 | G39: 6973.27 | H39: 7180.47 | I39: 7216.83 | J39: 7284.07 | K39: 7149.6 | L39: 7046 | M39: 8.18986
A40: 31 | B40: BAJAJFINSV | C40: 1687.5 | D40: 1679.83 | E40: 1669.82 | F40: 1652.13 | G40: 1642.12 | H40: 1697.52 | I40: 1707.53 | J40: 1725.22 | K40: 1689.85 | L40: 1662.15 | M40: 22.17631
A41: 32 | B41: BAJAJHLDNG | C41: 6660.6 | D41: 6653.15 | E41: 6606.30 | F41: 6552.00 | G41: 6505.15 | H41: 6707.45 | I41: 6754.30 | J41: 6808.60 | K41: 6700 | L41: 6598.85 | M41: 0.77196
A42: 33 | B42: BALKRISIND | C42: 1962.75 | D42: 1960.92 | E42: 1947.83 | F42: 1932.92 | G42: 1919.83 | H42: 1975.83 | I42: 1988.92 | J42: 2003.83 | K42: 1974 | L42: 1946 | M42: 2.96991
A43: 34 | B43: BANDHANBNK | C43: 238.55 | D43: 245.42 | E43: 230.38 | F43: 222.22 | G43: 207.18 | H43: 253.58 | I43: 268.62 | J43: 276.78 | K43: 260.45 | L43: 237.25 | M43: 489.27022
A44: 35 | B44: BANKBARODA | C44: 147.7 | D44: 147.10 | E44: 145.60 | F44: 143.50 | G44: 142.00 | H44: 149.20 | I44: 150.70 | J44: 152.80 | K44: 148.6 | L44: 145 | M44: 213.73095
A45: 36 | B45: BANKINDIA | C45: 60.25 | D45: 59.77 | E45: 58.78 | F45: 57.32 | G45: 56.33 | H45: 61.23 | I45: 62.22 | J45: 63.68 | K45: 60.75 | L45: 58.3 | M45: 176.16159
A46: 37 | B46: BATAINDIA | C46: 1828.35 | D46: 1823.47 | E46: 1814.93 | F46: 1801.52 | G46: 1792.98 | H46: 1836.88 | I46: 1845.42 | J46: 1858.83 | K46: 1832 | L46: 1810.05 | M46: 2.46552
A47: 38 | B47: BERGEPAINT | C47: 585.8 | D47: 583.08 | E47: 579.17 | F47: 572.53 | G47: 568.62 | H47: 589.72 | I47: 593.63 | J47: 600.27 | K47: 587 | L47: 576.45 | M47: 4.72921
A48: 39 | B48: BEL | C48: 106.85 | D48: 106.40 | E48: 105.60 | F48: 104.35 | G48: 103.55 | H48: 107.65 | I48: 108.45 | J48: 109.70 | K48: 107.2 | L48: 105.15 | M48: 127.93983
A49: 40 | B49: BHARATFORG | C49: 834.2 | D49: 835.58 | E49: 824.17 | F49: 814.13 | G49: 802.72 | H49: 845.62 | I49: 857.03 | J49: 867.07 | K49: 847 | L49: 825.55 | M49: 18.05765
A50: 41 | B50: BHEL | C50: 74.05 | D50: 73.90 | E50: 73.10 | F50: 72.15 | G50: 71.35 | H50: 74.85 | I50: 75.65 | J50: 76.60 | K50: 74.7 | L50: 72.95 | M50: 325.7152
A51: 42 | B51: BPCL | C51: 303.65 | D51: 303.68 | E51: 301.37 | F51: 299.08 | G51: 296.77 | H51: 305.97 | I51: 308.28 | J51: 310.57 | K51: 306 | L51: 301.4 | M51: 40.8406
A52: 43 | B52: BHARTIARTL | C52: 832 | D52: 828.60 | E52: 823.40 | F52: 814.80 | G52: 809.60 | H52: 837.20 | I52: 842.40 | J52: 851.00 | K52: 833.8 | L52: 820 | M52: 54.87233
A53: 44 | B53: BIOCON | C53: 269.85 | D53: 271.87 | E53: 267.18 | F53: 264.52 | G53: 259.83 | H53: 274.53 | I53: 279.22 | J53: 281.88 | K53: 276.55 | L53: 269.2 | M53: 13.69705
A54: 45 | B54: BOSCHLTD | C54: 16488.6 | D54: 16388.73 | E54: 16222.47 | F54: 15956.33 | G54: 15790.07 | H54: 16654.87 | I54: 16821.13 | J54: 17087.27 | K54: 16555 | L54: 16122.6 | M54: 0.30738
A55: 46 | B55: BRITANNIA | C55: 3766.55 | D55: 3768.63 | E55: 3737.27 | F55: 3707.98 | G55: 3676.62 | H55: 3797.92 | I55: 3829.28 | J55: 3858.57 | K55: 3800 | L55: 3739.35 | M55: 1.98318
A56: 47 | B56: CANBK | C56: 290.4 | D56: 289.13 | E56: 286.47 | F56: 282.53 | G56: 279.87 | H56: 293.07 | I56: 295.73 | J56: 299.67 | K56: 291.8 | L56: 285.2 | M56: 116.06785
A57: 48 | B57: CHOLAFIN | C57: 709.35 | D57: 712.25 | E57: 701.40 | F57: 693.45 | G57: 682.60 | H57: 720.20 | I57: 731.05 | J57: 739.00 | K57: 723.1 | L57: 704.3 | M57: 17.06648
A58: 49 | B58: CIPLA | C58: 1167.4 | D58: 1168.10 | E58: 1158.35 | F58: 1149.30 | G58: 1139.55 | H58: 1177.15 | I58: 1186.90 | J58: 1195.95 | K58: 1177.85 | L58: 1159.05 | M58: 15.5467
A59: 50 | B59: CLEAN | C59: 1572.2 | D59: 1584.05 | E59: 1553.15 | F59: 1534.10 | G59: 1503.20 | H59: 1603.10 | I59: 1634.00 | J59: 1653.05 | K59: 1614.95 | L59: 1565 | M59: 0.70042
A60: 51 | B60: COALINDIA | C60: 245.95 | D60: 245.67 | E60: 243.83 | F60: 241.72 | G60: 239.88 | H60: 247.78 | I60: 249.62 | J60: 251.73 | K60: 247.5 | L60: 243.55 | M60: 83.65329
A61: 52 | B61: COFORGE | C61: 3809.6 | D61: 3795.03 | E61: 3763.07 | F61: 3716.53 | G61: 3684.57 | H61: 3841.57 | I61: 3873.53 | J61: 3920.07 | K61: 3827 | L61: 3748.5 | M61: 1.53364
A62: 53 | B62: COLPAL | C62: 1631.75 | D62: 1632.25 | E62: 1617.60 | F62: 1603.45 | G62: 1588.80 | H62: 1646.40 | I62: 1661.05 | J62: 1675.20 | K62: 1646.9 | L62: 1618.1 | M62: 2.8563
A63: 54 | B63: CONCOR | C63: 798 | D63: 798.98 | E63: 787.02 | F63: 776.03 | G63: 764.07 | H63: 809.97 | I63: 821.93 | J63: 832.92 | K63: 810.95 | L63: 788 | M63: 28.54067
A64: 55 | B64: COROMANDEL | C64: 962.35 | D64: 967.47 | E64: 955.48 | F64: 948.62 | G64: 936.63 | H64: 974.33 | I64: 986.32 | J64: 993.18 | K64: 979.45 | L64: 960.6 | M64: 2.26908
A65: 56 | B65: CROMPTON | C65: 362.3 | D65: 358.75 | E65: 354.15 | F65: 346.00 | G65: 341.40 | H65: 366.90 | I65: 371.50 | J65: 379.65 | K65: 363.35 | L65: 350.6 | M65: 25.3825
A66: 57 | B66: CUMMINSIND | C66: 1347.9 | D66: 1333.28 | E66: 1314.62 | F66: 1281.33 | G66: 1262.67 | H66: 1366.57 | I66: 1385.23 | J66: 1418.52 | K66: 1351.95 | L66: 1300 | M66: 16.22116
A67: 58 | B67: DLF | C67: 385.5 | D67: 385.80 | E67: 382.00 | F67: 378.50 | G67: 374.70 | H67: 389.30 | I67: 393.10 | J67: 396.60 | K67: 389.6 | L67: 382.3 | M67: 33.15136
A68: 59 | B68: DABUR | C68: 554.7 | D68: 554.47 | E68: 550.43 | F68: 546.17 | G68: 542.13 | H68: 558.73 | I68: 562.77 | J68: 567.03 | K68: 558.5 | L68: 550.2 | M68: 15.17302
A69: 60 | B69: DALBHARAT | C69: 1600.95 | D69: 1580.48 | E69: 1555.97 | F69: 1510.98 | G69: 1486.47 | H69: 1625.47 | I69: 1649.98 | J69: 1694.97 | K69: 1605 | L69: 1535.5 | M69: 3.13925
A70: 61 | B70: DEEPAKNTR | C70: 2313.95 | D70: 2297.00 | E70: 2267.60 | F70: 2221.25 | G70: 2191.85 | H70: 2343.35 | I70: 2372.75 | J70: 2419.10 | K70: 2326.4 | L70: 2250.65 | M70: 10.49252
A71: 62 | B71: DELHIVERY | C71: 344.2 | D71: 347.50 | E71: 338.00 | F71: 331.80 | G71: 322.30 | H71: 353.70 | I71: 363.20 | J71: 369.40 | K71: 357 | L71: 341.3 | M71: 17.83658
A72: 63 | B72: DIVISLAB | C72: 3608.9 | D72: 3598.78 | E72: 3577.57 | F72: 3546.23 | G72: 3525.02 | H72: 3630.12 | I72: 3651.33 | J72: 3682.67 | K72: 3620 | L72: 3567.45 | M72: 3.56104
A73: 64 | B73: DIXON | C73: 4516.6 | D73: 4477.87 | E73: 4430.73 | F73: 4344.87 | G73: 4297.73 | H73: 4563.73 | I73: 4610.87 | J73: 4696.73 | K73: 4525 | L73: 4392 | M73: 2.44152
A74: 65 | B74: LALPATHLAB | C74: 2563.05 | D74: 2571.00 | E74: 2532.05 | F74: 2501.05 | G74: 2462.10 | H74: 2602.00 | I74: 2640.95 | J74: 2671.95 | K74: 2609.95 | L74: 2540 | M74: 1.13509
A75: 66 | B75: DRREDDY | C75: 4433.7 | D75: 4467.78 | E75: 4310.57 | F75: 4187.43 | G75: 4030.22 | H75: 4590.92 | I75: 4748.13 | J75: 4871.27 | K75: 4625 | L75: 4344.65 | M75: 18.25761
A76: 67 | B76: EICHERMOT | C76: 3850.45 | D76: 3824.18 | E76: 3784.27 | F76: 3718.08 | G76: 3678.17 | H76: 3890.37 | I76: 3930.28 | J76: 3996.47 | K76: 3864.1 | L76: 3758 | M76: 6.78149
A77: 68 | B77: EMAMILTD | C77: 474.05 | D77: 471.92 | E77: 466.18 | F77: 458.32 | G77: 452.58 | H77: 479.78 | I77: 485.52 | J77: 493.38 | K77: 477.65 | L77: 464.05 | M77: 1.09006
A78: 69 | B78: ESCORTS | C78: 2038.35 | D78: 2028.78 | E78: 2010.57 | F78: 1982.78 | G78: 1964.57 | H78: 2056.57 | I78: 2074.78 | J78: 2102.57 | K78: 2047 | L78: 2001 | M78: 3.24319
A79: 70 | B79: NYKAA | C79: 1152.75 | D79: 1105.08 | E79: 1029.92 | F79: 907.08 | G79: 831.92 | H79: 1227.92 | I79: 1303.08 | J79: 1425.92 | K79: 1180.25 | L79: 982.25 | M79: 92.19935
A80: 71 | B80: FEDERALBNK | C80: 131.5 | D80: 131.23 | E80: 129.87 | F80: 128.23 | G80: 126.87 | H80: 132.87 | I80: 134.23 | J80: 135.87 | K80: 132.6 | L80: 129.6 | M80: 144.41082
A81: 72 | B81: FORTIS | C81: 277.45 | D81: 276.93 | E81: 274.17 | F81: 270.88 | G81: 268.12 | H81: 280.22 | I81: 282.98 | J81: 286.27 | K81: 279.7 | L81: 273.65 | M81: 6.819
A82: 73 | B82: GAIL | C82: 91.3 | D82: 91.00 | E82: 90.50 | F82: 89.70 | G82: 89.20 | H82: 91.80 | I82: 92.30 | J82: 93.10 | K82: 91.5 | L82: 90.2 | M82: 126.58201
A83: 74 | B83: GLAND | C83: 1784.35 | D83: 1787.40 | E83: 1676.95 | F83: 1569.55 | G83: 1459.10 | H83: 1894.80 | I83: 2005.25 | J83: 2112.65 | K83: 1897.85 | L83: 1680 | M83: 34.487
A84: 75 | B84: GODREJCP | C84: 829.3 | D84: 832.50 | E84: 824.30 | F84: 819.30 | G84: 811.10 | H84: 837.50 | I84: 845.70 | J84: 850.70 | K84: 840.7 | L84: 827.5 | M84: 7.48108
A85: 76 | B85: GODREJPROP | C85: 1263 | D85: 1258.28 | E85: 1247.57 | F85: 1232.13 | G85: 1221.42 | H85: 1273.72 | I85: 1284.43 | J85: 1299.87 | K85: 1269 | L85: 1242.85 | M85: 4.01807
A86: 77 | B86: GRASIM | C86: 1721.7 | D86: 1713.40 | E86: 1696.80 | F86: 1671.90 | G86: 1655.30 | H86: 1738.30 | I86: 1754.90 | J86: 1779.80 | K86: 1730 | L86: 1688.5 | M86: 5.91913
A87: 78 | B87: GUJGASLTD | C87: 518.6 | D87: 516.20 | E87: 509.65 | F87: 500.70 | G87: 494.15 | H87: 525.15 | I87: 531.70 | J87: 540.65 | K87: 522.75 | L87: 507.25 | M87: 12.9978
A88: 79 | B88: GSPL | C88: 226.15 | D88: 224.62 | E88: 222.43 | F88: 218.72 | G88: 216.53 | H88: 228.33 | I88: 230.52 | J88: 234.23 | K88: 226.8 | L88: 220.9 | M88: 7.18261
A89: 80 | B89: HCLTECH | C89: 1041.15 | D89: 1043.35 | E89: 1034.20 | F89: 1027.25 | G89: 1018.10 | H89: 1050.30 | I89: 1059.45 | J89: 1066.40 | K89: 1052.5 | L89: 1036.4 | M89: 24.18565
A90: 81 | B90: HDFCAMC | C90: 2074.6 | D90: 2077.60 | E90: 2062.50 | F90: 2050.40 | G90: 2035.30 | H90: 2089.70 | I90: 2104.80 | J90: 2116.90 | K90: 2092.7 | L90: 2065.5 | M90: 1.04592
A91: 82 | B91: HDFCBANK | C91: 1496.7 | D91: 1487.32 | E91: 1476.63 | F91: 1456.57 | G91: 1445.88 | H91: 1507.38 | I91: 1518.07 | J91: 1538.13 | K91: 1498 | L91: 1467.25 | M91: 64.15264
A92: 83 | B92: HDFCLIFE | C92: 540.45 | D92: 537.95 | E92: 534.60 | F92: 528.75 | G92: 525.40 | H92: 543.80 | I92: 547.15 | J92: 553.00 | K92: 541.3 | L92: 532.1 | M92: 16.2535
A93: 84 | B93: HAVELLS | C93: 1216.3 | D93: 1208.13 | E93: 1196.27 | F93: 1176.23 | G93: 1164.37 | H93: 1228.17 | I93: 1240.03 | J93: 1260.07 | K93: 1220 | L93: 1188.1 | M93: 7.18591
A94: 85 | B94: HEROMOTOCO | C94: 2676.85 | D94: 2675.83 | E94: 2657.52 | F94: 2638.18 | G94: 2619.87 | H94: 2695.17 | I94: 2713.48 | J94: 2732.82 | K94: 2694.15 | L94: 2656.5 | M94: 5.11816
A95: 86 | B95: HINDALCO | C95: 405.65 | D95: 405.80 | E95: 402.85 | F95: 400.05 | G95: 397.10 | H95: 408.60 | I95: 411.55 | J95: 414.35 | K95: 408.75 | L95: 403 | M95: 42.57977
A96: 87 | B96: HAL | C96: 2530.05 | D96: 2531.47 | E96: 2510.98 | F96: 2491.92 | G96: 2471.43 | H96: 2550.53 | I96: 2571.02 | J96: 2590.08 | K96: 2551.95 | L96: 2512.4 | M96: 5.1941
A97: 88 | B97: HINDPETRO | C97: 213.85 | D97: 213.18 | E97: 211.92 | F97: 209.98 | G97: 208.72 | H97: 215.12 | I97: 216.38 | J97: 218.32 | K97: 214.45 | L97: 211.25 | M97: 14.61628
A98: 89 | B98: HINDUNILVR | C98: 2550.7 | D98: 2554.92 | E98: 2537.83 | F98: 2524.97 | G98: 2507.88 | H98: 2567.78 | I98: 2584.87 | J98: 2597.73 | K98: 2572 | L98: 2542.05 | M98: 13.24443
A99: 90 | B99: HINDZINC | C99: 283.7 | D99: 283.63 | E99: 282.17 | F99: 280.63 | G99: 279.17 | H99: 285.17 | I99: 286.63 | J99: 288.17 | K99: 285.1 | L99: 282.1 | M99: 4.19177
A100: 91 | B100: HONAUT | C100: 39332.85 | D100: 39844.28 | E100: 38588.57 | F100: 37844.28 | G100: 36588.57 | H100: 40588.57 | I100: 41844.28 | J100: 42588.57 | K100: 41100 | L100: 39100 | M100: 0.08424
A101: 92 | B101: HDFC | C101: 2469.8 | D101: 2452.45 | E101: 2429.90 | F101: 2390.00 | G101: 2367.45 | H101: 2492.35 | I101: 2514.90 | J101: 2554.80 | K101: 2475 | L101: 2412.55 | M101: 31.68194
A102: 93 | B102: ICICIBANK | C102: 908.7 | D102: 910.12 | E102: 903.18 | F102: 897.67 | G102: 890.73 | H102: 915.63 | I102: 922.57 | J102: 928.08 | K102: 917.05 | L102: 904.6 | M102: 90.0084
A103: 94 | B103: ICICIGI | C103: 1169.95 | D103: 1170.12 | E103: 1156.33 | F103: 1142.72 | G103: 1128.93 | H103: 1183.73 | I103: 1197.52 | J103: 1211.13 | K103: 1183.9 | L103: 1156.5 | M103: 8.29508
A104: 95 | B104: ICICIPRULI | C104: 507.55 | D104: 505.27 | E104: 501.28 | F104: 495.02 | G104: 491.03 | H104: 511.53 | I104: 515.52 | J104: 521.78 | K104: 509.25 | L104: 499 | M104: 11.93917
A105: 96 | B105: ISEC | C105: 516.35 | D105: 513.73 | E105: 509.52 | F105: 502.68 | G105: 498.47 | H105: 520.57 | I105: 524.78 | J105: 531.62 | K105: 517.95 | L105: 506.9 | M105: 1.05486
A106: 97 | B106: IDFCFIRSTB | C106: 56.1 | D106: 56.10 | E106: 55.60 | F106: 55.10 | G106: 54.60 | H106: 56.60 | I106: 57.10 | J106: 57.60 | K106: 56.6 | L106: 55.6 | M106: 307.71336
A107: 98 | B107: ITC | C107: 348.7 | D107: 347.98 | E107: 345.47 | F107: 342.23 | G107: 339.72 | H107: 351.22 | I107: 353.73 | J107: 356.97 | K107: 350.5 | L107: 344.75 | M107: 138.2597
A108: 99 | B108: INDIAMART | C108: 4591.45 | D108: 4592.48 | E108: 4548.97 | F108: 4506.48 | G108: 4462.97 | H108: 4634.97 | I108: 4678.48 | J108: 4720.97 | K108: 4636 | L108: 4550 | M108: 0.71442
A109: 100 | B109: INDIANB | C109: 253.9 | D109: 252.13 | E109: 247.87 | F109: 241.83 | G109: 237.57 | H109: 258.17 | I109: 262.43 | J109: 268.47 | K109: 256.4 | L109: 246.1 | M109: 41.39222
A110: 101 | B110: IEX | C110: 139.9 | D110: 139.30 | E110: 138.30 | F110: 136.70 | G110: 135.70 | H110: 140.90 | I110: 141.90 | J110: 143.50 | K110: 140.3 | L110: 137.7 | M110: 39.90118
A111: 102 | B111: INDHOTEL | C111: 333.8 | D111: 330.32 | E111: 325.98 | F111: 318.17 | G111: 313.83 | H111: 338.13 | I111: 342.47 | J111: 350.28 | K111: 334.65 | L111: 322.5 | M111: 47.24395
A112: 103 | B112: IOC | C112: 68.25 | D112: 68.38 | E112: 67.97 | F112: 67.68 | G112: 67.27 | H112: 68.67 | I112: 69.08 | J112: 69.37 | K112: 68.8 | L112: 68.1 | M112: 105.49071
A113: 104 | B113: IRCTC | C113: 741.2 | D113: 744.02 | E113: 735.18 | F113: 729.17 | G113: 720.33 | H113: 750.03 | I113: 758.87 | J113: 764.88 | K113: 752.85 | L113: 738 | M113: 19.93381
A114: 105 | B114: IGL | C114: 428.25 | D114: 425.25 | E114: 421.50 | F114: 414.75 | G114: 411.00 | H114: 432.00 | I114: 435.75 | J114: 442.50 | K114: 429 | L114: 418.5 | M114: 14.66718
A115: 106 | B115: INDUSTOWER | C115: 185.5 | D115: 186.47 | E115: 183.78 | F115: 182.07 | G115: 179.38 | H115: 188.18 | I115: 190.87 | J115: 192.58 | K115: 189.15 | L115: 184.75 | M115: 24.12942
A116: 107 | B116: INDUSINDBK | C116: 1142.65 | D116: 1147.07 | E116: 1134.53 | F116: 1126.42 | G116: 1113.88 | H116: 1155.18 | I116: 1167.72 | J116: 1175.83 | K116: 1159.6 | L116: 1138.95 | M116: 20.4852
A117: 108 | B117: NAUKRI | C117: 3921.7 | D117: 3898.20 | E117: 3868.40 | F117: 3815.10 | G117: 3785.30 | H117: 3951.50 | I117: 3981.30 | J117: 4034.60 | K117: 3928 | L117: 3844.9 | M117: 2.28116
A118: 109 | B118: INFY | C118: 1537.65 | D118: 1538.10 | E118: 1529.80 | F118: 1521.95 | G118: 1513.65 | H118: 1545.95 | I118: 1554.25 | J118: 1562.10 | K118: 1546.4 | L118: 1530.25 | M118: 45.42336
A119: 110 | B119: INDIGO | C119: 1781.7 | D119: 1778.27 | E119: 1766.53 | F119: 1751.37 | G119: 1739.63 | H119: 1793.43 | I119: 1805.17 | J119: 1820.33 | K119: 1790 | L119: 1763.1 | M119: 4.62834
A120: 111 | B120: IPCALAB | C120: 905.1 | D120: 903.72 | E120: 894.93 | F120: 884.77 | G120: 875.98 | H120: 913.88 | I120: 922.67 | J120: 932.83 | K120: 912.5 | L120: 893.55 | M120: 1.62978
A121: 112 | B121: JSWENERGY | C121: 337.65 | D121: 334.32 | E121: 328.83 | F121: 320.02 | G121: 314.53 | H121: 343.13 | I121: 348.62 | J121: 357.43 | K121: 339.8 | L121: 325.5 | M121: 67.28426
A122: 113 | B122: JSWSTEEL | C122: 673.95 | D122: 673.15 | E122: 669.85 | F122: 665.75 | G122: 662.45 | H122: 677.25 | I122: 680.55 | J122: 684.65 | K122: 676.45 | L122: 669.05 | M122: 13.80329
A123: 114 | B123: JINDALSTEL | C123: 459.85 | D123: 455.70 | E123: 450.40 | F123: 440.95 | G123: 435.65 | H123: 465.15 | I123: 470.45 | J123: 479.90 | K123: 461 | L123: 446.25 | M123: 22.60943
A124: 115 | B124: JUBLFOOD | C124: 609.95 | D124: 606.58 | E124: 598.47 | F124: 586.98 | G124: 578.87 | H124: 618.07 | I124: 626.18 | J124: 637.67 | K124: 614.7 | L124: 595.1 | M124: 24.5352
A125: 116 | B125: KOTAKBANK | C125: 1901.95 | D125: 1900.98 | E125: 1889.97 | F125: 1877.98 | G125: 1866.97 | H125: 1912.97 | I125: 1923.98 | J125: 1935.97 | K125: 1912 | L125: 1889 | M125: 18.74348
A126: 117 | B126: L&TFH | C126: 81.1 | D126: 80.82 | E126: 80.28 | F126: 79.47 | G126: 78.93 | H126: 81.63 | I126: 82.17 | J126: 82.98 | K126: 81.35 | L126: 80 | M126: 42.531
A127: 118 | B127: LTTS | C127: 3538.9 | D127: 3521.65 | E127: 3493.30 | F127: 3447.70 | G127: 3419.35 | H127: 3567.25 | I127: 3595.60 | J127: 3641.20 | K127: 3550 | L127: 3476.05 | M127: 1.67504
A128: 119 | B128: LICHSGFIN | C128: 405.3 | D128: 409.82 | E128: 395.78 | F128: 386.27 | G128: 372.23 | H128: 419.33 | I128: 433.37 | J128: 442.88 | K128: 423.85 | L128: 400.3 | M128: 54.6115
A129: 120 | B129: LTI | C129: 4739.85 | D129: 4705.00 | E129: 4660.00 | F129: 4580.15 | G129: 4535.15 | H129: 4784.85 | I129: 4829.85 | J129: 4909.70 | K129: 4750 | L129: 4625.15 | M129: 2.84185
A130: 121 | B130: LT | C130: 2023.1 | D130: 2011.98 | E130: 1989.32 | F130: 1955.53 | G130: 1932.87 | H130: 2045.77 | I130: 2068.43 | J130: 2102.22 | K130: 2034.65 | L130: 1978.2 | M130: 31.76507
A131: 122 | B131: LAURUSLABS | C131: 454.55 | D131: 451.68 | E131: 447.42 | F131: 440.28 | G131: 436.02 | H131: 458.82 | I131: 463.08 | J131: 470.22 | K131: 455.95 | L131: 444.55 | M131: 34.432
A132: 123 | B132: LICI | C132: 603.95 | D132: 607.85 | E132: 598.90 | F132: 593.85 | G132: 584.90 | H132: 612.90 | I132: 621.85 | J132: 626.90 | K132: 616.8 | L132: 602.8 | M132: 29.29385
A133: 124 | B133: LINDEINDIA | C133: 3071.7 | D133: 3076.90 | E133: 3053.80 | F133: 3035.90 | G133: 3012.80 | H133: 3094.80 | I133: 3117.90 | J133: 3135.80 | K133: 3100 | L133: 3059 | M133: 0.14579
A134: 125 | B134: LUPIN | C134: 699 | D134: 697.62 | E134: 689.68 | F134: 680.37 | G134: 672.43 | H134: 706.93 | I134: 714.87 | J134: 724.18 | K134: 705.55 | L134: 688.3 | M134: 6.86201
A135: 126 | B135: MRF | C135: 90767 | D135: 90439.02 | E135: 89628.03 | F135: 88489.07 | G135: 87678.08 | H135: 91577.98 | I135: 92388.97 | J135: 93527.93 | K135: 91250 | L135: 89300.05 | M135: 0.1662
A136: 127 | B136: M&MFIN | C136: 202 | D136: 202.80 | E136: 199.55 | F136: 197.10 | G136: 193.85 | H136: 205.25 | I136: 208.50 | J136: 210.95 | K136: 206.05 | L136: 200.35 | M136: 23.38117
A137: 128 | B137: M&M | C137: 1348.6 | D137: 1341.23 | E137: 1323.97 | F137: 1299.33 | G137: 1282.07 | H137: 1365.87 | I137: 1383.13 | J137: 1407.77 | K137: 1358.5 | L137: 1316.6 | M137: 43.06893
A138: 129 | B138: MARICO | C138: 524.55 | D138: 522.47 | E138: 518.58 | F138: 512.62 | G138: 508.73 | H138: 528.43 | I138: 532.32 | J138: 538.28 | K138: 526.35 | L138: 516.5 | M138: 14.83039
A139: 130 | B139: MARUTI | C139: 9527.6 | D139: 9582.57 | E139: 9396.13 | F139: 9264.67 | G139: 9078.23 | H139: 9714.03 | I139: 9900.47 | J139: 10031.93 | K139: 9769 | L139: 9451.1 | M139: 19.3202
A140: 131 | B140: MFSL | C140: 708.05 | D140: 709.05 | E140: 700.70 | F140: 693.35 | G140: 685.00 | H140: 716.40 | I140: 724.75 | J140: 732.10 | K140: 717.4 | L140: 701.7 | M140: 3.67651
A141: 132 | B141: MAXHEALTH | C141: 456.3 | D141: 447.72 | E141: 435.43 | F141: 414.57 | G141: 402.28 | H141: 468.58 | I141: 480.87 | J141: 501.73 | K141: 460 | L141: 426.85 | M141: 39.89852
A142: 133 | B142: MSUMI | C142: 87.5 | D142: 87.15 | E142: 84.90 | F142: 82.30 | G142: 80.05 | H142: 89.75 | I142: 92.00 | J142: 94.60 | K142: 89.4 | L142: 84.55 | M142: 82.67553
A143: 134 | B143: MPHASIS | C143: 1978.5 | D143: 1975.73 | E143: 1961.77 | F143: 1945.03 | G143: 1931.07 | H143: 1992.47 | I143: 2006.43 | J143: 2023.17 | K143: 1989.7 | L143: 1959 | M143: 3.78914
A144: 135 | B144: MUTHOOTFIN | C144: 1043.45 | D144: 1043.22 | E144: 1034.48 | F144: 1025.52 | G144: 1016.78 | H144: 1052.18 | I144: 1060.92 | J144: 1069.88 | K144: 1051.95 | L144: 1034.25 | M144: 5.62845
A145: 136 | B145: NTPC | C145: 173.1 | D145: 172.05 | E145: 170.10 | F145: 167.10 | G145: 165.15 | H145: 175.05 | I145: 177.00 | J145: 180.00 | K145: 174 | L145: 169.05 | M145: 242.3376
A146: 137 | B146: NATIONALUM | C146: 70.2 | D146: 69.88 | E146: 69.22 | F146: 68.23 | G146: 67.57 | H146: 70.87 | I146: 71.53 | J146: 72.52 | K146: 70.55 | L146: 68.9 | M146: 80.29799
A147: 138 | B147: NAVINFLUOR | C147: 4551.75 | D147: 4538.92 | E147: 4512.83 | F147: 4473.92 | G147: 4447.83 | H147: 4577.83 | I147: 4603.92 | J147: 4642.83 | K147: 4565 | L147: 4500 | M147: 0.92168
A148: 139 | B148: NESTLEIND | C148: 20363.4 | D148: 20327.80 | E148: 20185.60 | F148: 20007.80 | G148: 19865.60 | H148: 20505.60 | I148: 20647.80 | J148: 20825.60 | K148: 20470 | L148: 20150 | M148: 0.79555
A149: 140 | B149: NAM-INDIA | C149: 270.5 | D149: 270.47 | E149: 269.18 | F149: 267.87 | G149: 266.58 | H149: 271.78 | I149: 273.07 | J149: 274.38 | K149: 271.75 | L149: 269.15 | M149: 2.86182
A150: 141 | B150: OBEROIRLTY | C150: 924.65 | D150: 919.58 | E150: 911.62 | F150: 898.58 | G150: 890.62 | H150: 932.62 | I150: 940.58 | J150: 953.62 | K150: 927.55 | L150: 906.55 | M150: 5.49586
A151: 142 | B151: ONGC | C151: 134.05 | D151: 134.02 | E151: 132.83 | F151: 131.62 | G151: 130.43 | H151: 135.23 | I151: 136.42 | J151: 137.63 | K151: 135.2 | L151: 132.8 | M151: 87.53855
A152: 143 | B152: OIL | C152: 193 | D152: 193.40 | E152: 191.15 | F152: 189.30 | G152: 187.05 | H152: 195.25 | I152: 197.50 | J152: 199.35 | K152: 195.65 | L152: 191.55 | M152: 10.34557
A153: 144 | B153: PAYTM | C153: 638.4 | D153: 639.92 | E153: 634.08 | F153: 629.77 | G153: 623.93 | H153: 644.23 | I153: 650.07 | J153: 654.38 | K153: 645.75 | L153: 635.6 | M153: 5.8258
A154: 145 | B154: OFSS | C154: 2912.85 | D154: 2909.88 | E154: 2895.82 | F154: 2878.78 | G154: 2864.72 | H154: 2926.92 | I154: 2940.98 | J154: 2958.02 | K154: 2923.95 | L154: 2892.85 | M154: 0.64732
A155: 146 | B155: POLICYBZR | C155: 386.05 | D155: 388.15 | E155: 380.45 | F155: 374.85 | G155: 367.15 | H155: 393.75 | I155: 401.45 | J155: 407.05 | K155: 395.85 | L155: 382.55 | M155: 10.9469
A156: 147 | B156: PIIND | C156: 3241.95 | D156: 3250.12 | E156: 3211.83 | F156: 3181.72 | G156: 3143.43 | H156: 3280.23 | I156: 3318.52 | J156: 3348.63 | K156: 3288.4 | L156: 3220 | M156: 1.80775
A157: 148 | B157: PAGEIND | C157: 49768.65 | D157: 49739.87 | E157: 49053.78 | F157: 48338.92 | G157: 47652.83 | H157: 50454.73 | I157: 51140.82 | J157: 51855.68 | K157: 50425.95 | L157: 49025 | M157: 0.2749
A158: 149 | B158: PATANJALI | C158: 1409.8 | D158: 1416.27 | E158: 1393.53 | F158: 1377.27 | G158: 1354.53 | H158: 1432.53 | I158: 1455.27 | J158: 1471.53 | K158: 1439 | L158: 1400 | M158: 2.06707
A159: 150 | B159: PERSISTENT | C159: 3693.05 | D159: 3689.42 | E159: 3655.13 | F159: 3617.22 | G159: 3582.93 | H159: 3727.33 | I159: 3761.62 | J159: 3799.53 | K159: 3723.7 | L159: 3651.5 | M159: 1.51484
A160: 151 | B160: PETRONET | C160: 205.55 | D160: 206.12 | E160: 203.23 | F160: 200.92 | G160: 198.03 | H160: 208.43 | I160: 211.32 | J160: 213.63 | K160: 209 | L160: 203.8 | M160: 24.54128
A161: 152 | B161: PIDILITIND | C161: 2584.4 | D161: 2578.12 | E161: 2559.88 | F161: 2535.37 | G161: 2517.13 | H161: 2602.63 | I161: 2620.87 | J161: 2645.38 | K161: 2596.35 | L161: 2553.6 | M161: 7.08497
A162: 153 | B162: POLYCAB | C162: 2777.45 | D162: 2772.48 | E162: 2754.97 | F162: 2732.48 | G162: 2714.97 | H162: 2794.97 | I162: 2812.48 | J162: 2834.97 | K162: 2790 | L162: 2750 | M162: 1.74844
A163: 154 | B163: POONAWALLA | C163: 314.4 | D163: 314.48 | E163: 311.07 | F163: 307.73 | G163: 304.32 | H163: 317.82 | I163: 321.23 | J163: 324.57 | K163: 317.9 | L163: 311.15 | M163: 21.09639
A164: 155 | B164: PFC | C164: 115.25 | D164: 114.58 | E164: 113.67 | F164: 112.08 | G164: 111.17 | H164: 116.17 | I164: 117.08 | J164: 118.67 | K164: 115.5 | L164: 113 | M164: 82.48485
A165: 156 | B165: POWERGRID | C165: 228.15 | D165: 228.37 | E165: 226.48 | F165: 224.82 | G165: 222.93 | H165: 230.03 | I165: 231.92 | J165: 233.58 | K165: 230.25 | L165: 226.7 | M165: 88.16762
A166: 157 | B166: PRESTIGE | C166: 442 | D166: 443.30 | E166: 438.90 | F166: 435.80 | G166: 431.40 | H166: 446.40 | I166: 450.80 | J166: 453.90 | K166: 447.7 | L166: 440.2 | M166: 0.81235
A167: 158 | B167: PGHH | C167: 14086.9 | D167: 14099.07 | E167: 13991.13 | F167: 13895.37 | G167: 13787.43 | H167: 14194.83 | I167: 14302.77 | J167: 14398.53 | K167: 14207 | L167: 14003.3 | M167: 0.16614
A168: 159 | B168: PNB | C168: 42.65 | D168: 42.72 | E168: 41.68 | F168: 40.72 | G168: 39.68 | H168: 43.68 | I168: 44.72 | J168: 45.68 | K168: 43.75 | L168: 41.75 | M168: 822.055
A169: 160 | B169: RECLTD | C169: 102.55 | D169: 101.78 | E169: 100.47 | F169: 98.38 | G169: 97.07 | H169: 103.87 | I169: 105.18 | J169: 107.27 | K169: 103.1 | L169: 99.7 | M169: 181.75401
A170: 161 | B170: RELIANCE | C170: 2549.6 | D170: 2547.58 | E170: 2534.22 | F170: 2518.83 | G170: 2505.47 | H170: 2562.97 | I170: 2576.33 | J170: 2591.72 | K170: 2560.95 | L170: 2532.2 | M170: 57.31802
A171: 162 | B171: SBICARD | C171: 826.65 | D171: 822.73 | E171: 817.52 | F171: 808.38 | G171: 803.17 | H171: 831.87 | I171: 837.08 | J171: 846.22 | K171: 827.95 | L171: 813.6 | M171: 18.24254
A172: 163 | B172: SBILIFE | C172: 1265.95 | D172: 1265.00 | E172: 1256.25 | F172: 1246.55 | G172: 1237.80 | H172: 1274.70 | I172: 1283.45 | J172: 1293.15 | K172: 1273.75 | L172: 1255.3 | M172: 5.39055
A173: 164 | B173: SRF | C173: 2558.65 | D173: 2542.88 | E173: 2520.77 | F173: 2482.88 | G173: 2460.77 | H173: 2580.77 | I173: 2602.88 | J173: 2640.77 | K173: 2565 | L173: 2505 | M173: 4.9349
A174: 165 | B174: MOTHERSON | C174: 64.5 | D174: 64.60 | E174: 63.70 | F174: 62.90 | G174: 62.00 | H174: 65.40 | I174: 66.30 | J174: 67.10 | K174: 65.5 | L174: 63.8 | M174: 129.83527
A175: 166 | B175: SHREECEM | C175: 22740.5 | D175: 22433.67 | E175: 22067.33 | F175: 21394.17 | G175: 21027.83 | H175: 23106.83 | I175: 23473.17 | J175: 24146.33 | K175: 22800 | L175: 21760.5 | M175: 0.74994
A176: 167 | B176: SRTRANSFIN | C176: 1229.15 | D176: 1242.70 | E176: 1211.45 | F176: 1193.75 | G176: 1162.50 | H176: 1260.40 | I176: 1291.65 | J176: 1309.35 | K176: 1273.95 | L176: 1225 | M176: 6.20831
A177: 168 | B177: SIEMENS | C177: 2925.6 | D177: 2934.53 | E177: 2909.07 | F177: 2892.53 | G177: 2867.07 | H177: 2951.07 | I177: 2976.53 | J177: 2993.07 | K177: 2960 | L177: 2918 | M177: 3.32485
A178: 169 | B178: SONACOMS | C178: 465.4 | D178: 467.30 | E178: 458.85 | F178: 452.30 | G178: 443.85 | H178: 473.85 | I178: 482.30 | J178: 488.85 | K178: 475.75 | L178: 460.75 | M178: 14.20328
A179: 170 | B179: SBIN | C179: 573.8 | D179: 573.22 | E179: 568.98 | F179: 564.17 | G179: 559.93 | H179: 578.03 | I179: 582.27 | J179: 587.08 | K179: 577.45 | L179: 568.4 | M179: 98.94639
A180: 171 | B180: SAIL | C180: 78.7 | D180: 78.72 | E180: 77.88 | F180: 77.07 | G180: 76.23 | H180: 79.53 | I180: 80.37 | J180: 81.18 | K180: 79.55 | L180: 77.9 | M180: 116.96554
A181: 172 | B181: SUNPHARMA | C181: 1016.9 | D181: 1011.80 | E181: 996.30 | F181: 975.70 | G181: 960.20 | H181: 1032.40 | I181: 1047.90 | J181: 1068.50 | K181: 1027.3 | L181: 991.2 | M181: 35.46309
A182: 173 | B182: SUNTV | C182: 522.85 | D182: 521.52 | E182: 518.33 | F182: 513.82 | G182: 510.63 | H182: 526.03 | I182: 529.22 | J182: 533.73 | K182: 524.7 | L182: 517 | M182: 5.75488
A183: 174 | B183: SYNGENE | C183: 631.3 | D183: 626.17 | E183: 619.58 | F183: 607.87 | G183: 601.28 | H183: 637.88 | I183: 644.47 | J183: 656.18 | K183: 632.75 | L183: 614.45 | M183: 10.58988
A184: 175 | B184: TVSMOTOR | C184: 1146.05 | D184: 1144.30 | E184: 1132.80 | F184: 1119.55 | G184: 1108.05 | H184: 1157.55 | I184: 1169.05 | J184: 1182.30 | K184: 1155.8 | L184: 1131.05 | M184: 12.01542
A185: 176 | B185: TATACHEM | C185: 1132.8 | D185: 1135.50 | E185: 1122.00 | F185: 1111.20 | G185: 1097.70 | H185: 1146.30 | I185: 1159.80 | J185: 1170.60 | K185: 1149 | L185: 1124.7 | M185: 19.26174
A186: 177 | B186: TATACOMM | C186: 1258.95 | D186: 1255.55 | E186: 1243.40 | F186: 1227.85 | G186: 1215.70 | H186: 1271.10 | I186: 1283.25 | J186: 1298.80 | K186: 1267.7 | L186: 1240 | M186: 7.68875
A187: 178 | B187: TCS | C187: 3193.15 | D187: 3189.98 | E187: 3180.97 | F187: 3168.78 | G187: 3159.77 | H187: 3202.17 | I187: 3211.18 | J187: 3223.37 | K187: 3199 | L187: 3177.8 | M187: 19.19414
A188: 179 | B188: TATACONSUM | C188: 770.15 | D188: 768.17 | E188: 763.88 | F188: 757.62 | G188: 753.33 | H188: 774.43 | I188: 778.72 | J188: 784.98 | K188: 772.45 | L188: 761.9 | M188: 9.97865
A189: 180 | B189: TATAELXSI | C189: 6995.85 | D189: 6995.93 | E189: 6899.92 | F189: 6803.98 | G189: 6707.97 | H189: 7091.87 | I189: 7187.88 | J189: 7283.82 | K189: 7091.95 | L189: 6900 | M189: 3.78242
A190: 181 | B190: TATAMOTORS | C190: 412.75 | D190: 413.55 | E190: 410.80 | F190: 408.85 | G190: 406.10 | H190: 415.50 | I190: 418.25 | J190: 420.20 | K190: 416.3 | L190: 411.6 | M190: 99.28218
A191: 182 | B191: TATAPOWER | C191: 226 | D191: 226.40 | E191: 223.80 | F191: 221.60 | G191: 219.00 | H191: 228.60 | I191: 231.20 | J191: 233.40 | K191: 229 | L191: 224.2 | M191: 226.9753
A192: 183 | B192: TATASTEEL | C192: 101.55 | D192: 101.33 | E192: 100.52 | F192: 99.48 | G192: 98.67 | H192: 102.37 | I192: 103.18 | J192: 104.22 | K192: 102.15 | L192: 100.3 | M192: 387.15841
A193: 184 | B193: TTML | C193: 101.95 | D193: 102.37 | E193: 101.23 | F193: 100.52 | G193: 99.38 | H193: 103.08 | I193: 104.22 | J193: 104.93 | K193: 103.5 | L193: 101.65 | M193: 5.26991
A194: 185 | B194: TECHM | C194: 1063.4 | D194: 1064.90 | E194: 1051.50 | F194: 1039.60 | G194: 1026.20 | H194: 1076.80 | I194: 1090.20 | J194: 1102.10 | K194: 1078.3 | L194: 1053 | M194: 26.29847
A195: 186 | B195: RAMCOCEM | C195: 721.8 | D195: 714.95 | E195: 705.90 | F195: 690.00 | G195: 680.95 | H195: 730.85 | I195: 739.90 | J195: 755.80 | K195: 724 | L195: 699.05 | M195: 4.4223
A196: 187 | B196: TITAN | C196: 2761.5 | D196: 2763.58 | E196: 2736.17 | F196: 2710.83 | G196: 2683.42 | H196: 2788.92 | I196: 2816.33 | J196: 2841.67 | K196: 2791 | L196: 2738.25 | M196: 11.44647
A197: 188 | B197: TORNTPHARM | C197: 1650 | D197: 1634.00 | E197: 1613.00 | F197: 1576.00 | G197: 1555.00 | H197: 1671.00 | I197: 1692.00 | J197: 1729.00 | K197: 1655 | L197: 1597 | M197: 5.95408
A198: 189 | B198: TORNTPOWER | C198: 504.35 | D198: 503.63 | E198: 499.92 | F198: 495.48 | G198: 491.77 | H198: 508.07 | I198: 511.78 | J198: 516.22 | K198: 507.35 | L198: 499.2 | M198: 1.36507
A199: 190 | B199: TRENT | C199: 1527.9 | D199: 1510.30 | E199: 1477.60 | F199: 1427.30 | G199: 1394.60 | H199: 1560.60 | I199: 1593.30 | J199: 1643.60 | K199: 1543 | L199: 1460 | M199: 20.85522
A200: 191 | B200: TRIDENT | C200: 35.25 | D200: 35.33 | E200: 35.07 | F200: 34.88 | G200: 34.62 | H200: 35.52 | I200: 35.78 | J200: 35.97 | K200: 35.6 | L200: 35.15 | M200: 30.11372
A201: 192 | B201: TIINDIA | C201: 2743.25 | D201: 2732.95 | E201: 2682.05 | F201: 2620.85 | G201: 2569.95 | H201: 2794.15 | I201: 2845.05 | J201: 2906.25 | K201: 2783.85 | L201: 2671.75 | M201: 2.06683
A202: 193 | B202: UPL | C202: 730.2 | D202: 724.40 | E202: 716.80 | F202: 703.40 | G202: 695.80 | H202: 737.80 | I202: 745.40 | J202: 758.80 | K202: 732 | L202: 711 | M202: 27.33496
A203: 194 | B203: ULTRACEMCO | C203: 6714.95 | D203: 6633.53 | E203: 6536.17 | F203: 6357.38 | G203: 6260.02 | H203: 6812.32 | I203: 6909.68 | J203: 7088.47 | K203: 6730.9 | L203: 6454.75 | M203: 5.38107
A204: 195 | B204: UNIONBANK | C204: 53.9 | D204: 53.85 | E204: 53.00 | F204: 52.10 | G204: 51.25 | H204: 54.75 | I204: 55.60 | J204: 56.50 | K204: 54.7 | L204: 52.95 | M204: 208.44507
A205: 196 | B205: UBL | C205: 1652.85 | D205: 1648.07 | E205: 1635.83 | F205: 1618.82 | G205: 1606.58 | H205: 1665.08 | I205: 1677.32 | J205: 1694.33 | K205: 1660.3 | L205: 1631.05 | M205: 1.93635
... 29 more rows

Sheet MidCap Intra
L5: Back To Main Page
A6: FOR INTRA DAY TRADING | K6: =Main!B10 -> 2022-11-01
A9: Sr.no | B9: Scrip | C9: CLOSE RATE | D9: Pivot Point | E9: Supports | H9: Resistances
E10: S1 | F10: S2 | G10: S3 | H10: R1 | I10: R2 | J10: R3 | K10: HIGH | L10: LOW | M10: Total Trade Quanity in Lakhs
A11: 1 | B11: 3MINDIA | C11: 23288.3 | D11: 23198.10 | E11: 23075.20 | F11: 22862.10 | G11: 22739.20 | H11: 23411.20 | I11: 23534.10 | J11: 23747.20 | K11: 23321 | L11: 22985 | M11: 0.04536
A12: 2 | B12: ABB | C12: 3049.75 | D12: 3024.40 | E12: 2986.95 | F12: 2924.15 | G12: 2886.70 | H12: 3087.20 | I12: 3124.65 | J12: 3187.45 | K12: 3061.85 | L12: 2961.6 | M12: 3.19759
A13: 3 | B13: ACC | C13: 2390.3 | D13: 2372.03 | E13: 2346.17 | F13: 2302.03 | G13: 2276.17 | H13: 2416.17 | I13: 2442.03 | J13: 2486.17 | K13: 2397.9 | L13: 2327.9 | M13: 5.84214
A14: 4 | B14: AIAENG | C14: 2681.75 | D14: 2677.25 | E14: 2645.50 | F14: 2609.25 | G14: 2577.50 | H14: 2713.50 | I14: 2745.25 | J14: 2781.50 | K14: 2709 | L14: 2641 | M14: 0.43433
A15: 5 | B15: APLAPOLLO | C15: 1078.95 | D15: 1079.07 | E15: 1065.93 | F15: 1052.92 | G15: 1039.78 | H15: 1092.08 | I15: 1105.22 | J15: 1118.23 | K15: 1092.2 | L15: 1066.05 | M15: 1.47279
A16: 6 | B16: AUBANK | C16: 589.55 | D16: 585.63 | E16: 581.07 | F16: 572.58 | G16: 568.02 | H16: 594.12 | I16: 598.68 | J16: 607.17 | K16: 590.2 | L16: 577.15 | M16: 11.70001
A17: 7 | B17: AARTIDRUGS | C17: 479.3 | D17: 474.72 | E17: 469.43 | F17: 459.57 | G17: 454.28 | H17: 484.58 | I17: 489.87 | J17: 499.73 | K17: 480 | L17: 464.85 | M17: 1.565
A18: 8 | B18: AAVAS | C18: 2018.8 | D18: 1996.62 | E18: 1967.23 | F18: 1915.67 | G18: 1886.28 | H18: 2048.18 | I18: 2077.57 | J18: 2129.13 | K18: 2026 | L18: 1945.05 | M18: 0.91162
A19: 9 | B19: ABBOTINDIA | C19: 19246.95 | D19: 19183.33 | E19: 19033.67 | F19: 18820.38 | G19: 18670.72 | H19: 19396.62 | I19: 19546.28 | J19: 19759.57 | K19: 19333 | L19: 18970.05 | M19: 0.18533
A20: 10 | B20: ADANIENT | C20: 3347.45 | D20: 3344.52 | E20: 3329.03 | F20: 3310.62 | G20: 3295.13 | H20: 3362.93 | I20: 3378.42 | J20: 3396.83 | K20: 3360 | L20: 3326.1 | M20: 5.75722
A21: 11 | B21: ADANIGREEN | C21: 2102.9 | D21: 2101.63 | E21: 2082.27 | F21: 2061.63 | G21: 2042.27 | H21: 2122.27 | I21: 2141.63 | J21: 2162.27 | K21: 2121 | L21: 2081 | M21: 8.54149
A22: 12 | B22: ADANIPORTS | C22: 823.55 | D22: 824.68 | E22: 818.37 | F22: 813.18 | G22: 806.87 | H22: 829.87 | I22: 836.18 | J22: 841.37 | K22: 831 | L22: 819.5 | M22: 44.87537
A23: 13 | B23: ATGL | C23: 3602.85 | D23: 3561.52 | E23: 3464.33 | F23: 3325.82 | G23: 3228.63 | H23: 3700.03 | I23: 3797.22 | J23: 3935.73 | K23: 3658.7 | L23: 3423 | M23: 2.84614
A24: 14 | B24: ADANITRANS | C24: 3348.7 | D24: 3327.72 | E24: 3280.43 | F24: 3212.17 | G24: 3164.88 | H24: 3395.98 | I24: 3443.27 | J24: 3511.53 | K24: 3375 | L24: 3259.45 | M24: 5.41936
A25: 15 | B25: AWL | C25: 672.4 | D25: 673.48 | E25: 665.92 | F25: 659.43 | G25: 651.87 | H25: 679.97 | I25: 687.53 | J25: 694.02 | K25: 681.05 | L25: 667 | M25: 13.47016
A26: 16 | B26: ABCAPITAL | C26: 116.85 | D26: 116.80 | E26: 115.90 | F26: 114.95 | G26: 114.05 | H26: 117.75 | I26: 118.65 | J26: 119.60 | K26: 117.7 | L26: 115.85 | M26: 14.9563
A27: 17 | B27: ABFRL | C27: 353.9 | D27: 350.77 | E27: 346.13 | F27: 338.37 | G27: 333.73 | H27: 358.53 | I27: 363.17 | J27: 370.93 | K27: 355.4 | L27: 343 | M27: 32.77184
A28: 18 | B28: ABSLAMC | C28: 407.8 | D28: 411.27 | E28: 402.53 | F28: 397.27 | G28: 388.53 | H28: 416.53 | I28: 425.27 | J28: 430.53 | K28: 420 | L28: 406 | M28: 0.99599
A29: 19 | B29: AEGISCHEM | C29: 310.9 | D29: 312.88 | E29: 307.37 | F29: 303.83 | G29: 298.32 | H29: 316.42 | I29: 321.93 | J29: 325.47 | K29: 318.4 | L29: 309.35 | M29: 7.63055
A30: 20 | B30: AETHER | C30: 966.25 | D30: 969.65 | E30: 946.60 | F30: 926.95 | G30: 903.90 | H30: 989.30 | I30: 1012.35 | J30: 1032.00 | K30: 992.7 | L30: 950 | M30: 0.67391
A31: 21 | B31: AFFLE | C31: 1154.5 | D31: 1155.70 | E31: 1144.30 | F31: 1134.10 | G31: 1122.70 | H31: 1165.90 | I31: 1177.30 | J31: 1187.50 | K31: 1167.1 | L31: 1145.5 | M31: 1.98593
A32: 22 | B32: AJANTPHARM | C32: 1294.95 | D32: 1297.17 | E32: 1274.58 | F32: 1254.22 | G32: 1231.63 | H32: 1317.53 | I32: 1340.12 | J32: 1360.48 | K32: 1319.75 | L32: 1276.8 | M32: 0.64663
A33: 23 | B33: APLLTD | C33: 550.1 | D33: 552.83 | E33: 545.77 | F33: 541.43 | G33: 534.37 | H33: 557.17 | I33: 564.23 | J33: 568.57 | K33: 559.9 | L33: 548.5 | M33: 0.77091
A34: 24 | B34: ALKEM | C34: 3155.2 | D34: 3144.87 | E34: 3129.73 | F34: 3104.27 | G34: 3089.13 | H34: 3170.33 | I34: 3185.47 | J34: 3210.93 | K34: 3160 | L34: 3119.4 | M34: 0.39597
A35: 25 | B35: ALKYLAMINE | C35: 2953.15 | D35: 2955.00 | E35: 2935.00 | F35: 2916.85 | G35: 2896.85 | H35: 2973.15 | I35: 2993.15 | J35: 3011.30 | K35: 2975 | L35: 2936.85 | M35: 0.2517
A36: 26 | B36: ALLCARGO | C36: 432.75 | D36: 433.25 | E36: 424.50 | F36: 416.25 | G36: 407.50 | H36: 441.50 | I36: 450.25 | J36: 458.50 | K36: 442 | L36: 425 | M36: 9.92004
A37: 27 | B37: ALOKINDS | C37: 15.5 | D37: 15.62 | E37: 15.23 | F37: 14.97 | G37: 14.58 | H37: 15.88 | I37: 16.27 | J37: 16.53 | K37: 16 | L37: 15.35 | M37: 15.67802
A38: 28 | B38: AMARAJABAT | C38: 513.05 | D38: 510.33 | E38: 506.77 | F38: 500.48 | G38: 496.92 | H38: 516.62 | I38: 520.18 | J38: 526.47 | K38: 513.9 | L38: 504.05 | M38: 2.85177
A39: 29 | B39: AMBER | C39: 2065.05 | D39: 2071.77 | E39: 2048.28 | F39: 2031.52 | G39: 2008.03 | H39: 2088.53 | I39: 2112.02 | J39: 2128.78 | K39: 2095.25 | L39: 2055 | M39: 0.25791
A40: 30 | B40: AMBUJACEM | C40: 532.95 | D40: 530.97 | E40: 523.33 | F40: 513.72 | G40: 506.08 | H40: 540.58 | I40: 548.22 | J40: 557.83 | K40: 538.6 | L40: 521.35 | M40: 86.0198
A41: 31 | B41: ANGELONE | C41: 1602.65 | D41: 1610.55 | E41: 1586.10 | F41: 1569.55 | G41: 1545.10 | H41: 1627.10 | I41: 1651.55 | J41: 1668.10 | K41: 1635 | L41: 1594 | M41: 3.18009
A42: 32 | B42: ANURAS | C42: 759.95 | D42: 763.68 | E42: 742.37 | F42: 724.78 | G42: 703.47 | H42: 781.27 | I42: 802.58 | J42: 820.17 | K42: 785 | L42: 746.1 | M42: 6.56043
A43: 33 | B43: APOLLOHOSP | C43: 4517.5 | D43: 4544.67 | E43: 4464.33 | F43: 4411.17 | G43: 4330.83 | H43: 4597.83 | I43: 4678.17 | J43: 4731.33 | K43: 4625 | L43: 4491.5 | M43: 4.33481
A44: 34 | B44: APOLLOTYRE | C44: 290.7 | D44: 291.08 | E44: 288.77 | F44: 286.83 | G44: 284.52 | H44: 293.02 | I44: 295.33 | J44: 297.27 | K44: 293.4 | L44: 289.15 | M44: 23.33379
A45: 35 | B45: APTUS | C45: 315.7 | D45: 315.40 | E45: 309.10 | F45: 302.50 | G45: 296.20 | H45: 322.00 | I45: 328.30 | J45: 334.90 | K45: 321.7 | L45: 308.8 | M45: 1.6612
A46: 36 | B46: ASAHIINDIA | C46: 615.85 | D46: 613.98 | E46: 607.87 | F46: 599.88 | G46: 593.77 | H46: 621.97 | I46: 628.08 | J46: 636.07 | K46: 620.1 | L46: 606 | M46: 2.151
A47: 37 | B47: ASHOKLEY | C47: 153.3 | D47: 152.23 | E47: 150.67 | F47: 148.03 | G47: 146.47 | H47: 154.87 | I47: 156.43 | J47: 159.07 | K47: 153.8 | L47: 149.6 | M47: 137.7045
A48: 38 | B48: ASIANPAINT | C48: 3107.7 | D48: 3093.92 | E48: 3074.83 | F48: 3041.97 | G48: 3022.88 | H48: 3126.78 | I48: 3145.87 | J48: 3178.73 | K48: 3113 | L48: 3061.05 | M48: 8.14364
A49: 39 | B49: ASTERDM | C49: 247.3 | D49: 246.60 | E49: 244.70 | F49: 242.10 | G49: 240.20 | H49: 249.20 | I49: 251.10 | J49: 253.70 | K49: 248.5 | L49: 244 | M49: 2.46541
A50: 40 | B50: ASTRAZEN | C50: 3299.55 | D50: 3300.03 | E50: 3257.07 | F50: 3214.58 | G50: 3171.62 | H50: 3342.52 | I50: 3385.48 | J50: 3427.97 | K50: 3343 | L50: 3257.55 | M50: 0.13601
A51: 41 | B51: ASTRAL | C51: 2031.15 | D51: 2012.88 | E51: 1980.97 | F51: 1930.78 | G51: 1898.87 | H51: 2063.07 | I51: 2094.98 | J51: 2145.17 | K51: 2044.8 | L51: 1962.7 | M51: 4.51563
A52: 42 | B52: ATUL | C52: 8373.3 | D52: 8382.07 | E52: 8311.23 | F52: 8249.17 | G52: 8178.33 | H52: 8444.13 | I52: 8514.97 | J52: 8577.03 | K52: 8452.9 | L52: 8320 | M52: 0.14001
A53: 43 | B53: AUROPHARMA | C53: 538.15 | D53: 534.05 | E53: 528.10 | F53: 518.05 | G53: 512.10 | H53: 544.10 | I53: 550.05 | J53: 560.10 | K53: 540 | L53: 524 | M53: 14.71383
A54: 44 | B54: AVANTIFEED | C54: 441.35 | D54: 440.98 | E54: 435.02 | F54: 428.68 | G54: 422.72 | H54: 447.32 | I54: 453.28 | J54: 459.62 | K54: 446.95 | L54: 434.65 | M54: 2.86077
A55: 45 | B55: DMART | C55: 4320.9 | D55: 4319.63 | E55: 4291.27 | F55: 4261.63 | G55: 4233.27 | H55: 4349.27 | I55: 4377.63 | J55: 4407.27 | K55: 4348 | L55: 4290 | M55: 1.86409
A56: 46 | B56: AXISBANK | C56: 906 | D56: 908.70 | E56: 899.40 | F56: 892.80 | G56: 883.50 | H56: 915.30 | I56: 924.60 | J56: 931.20 | K56: 918 | L56: 902.1 | M56: 90.38777
A57: 47 | B57: BASF | C57: 2868.8 | D57: 2843.37 | E57: 2791.83 | F57: 2714.87 | G57: 2663.33 | H57: 2920.33 | I57: 2971.87 | J57: 3048.83 | K57: 2894.9 | L57: 2766.4 | M57: 0.31921
A58: 48 | B58: BSE | C58: 590.1 | D58: 594.62 | E58: 584.48 | F58: 578.87 | G58: 568.73 | H58: 600.23 | I58: 610.37 | J58: 615.98 | K58: 604.75 | L58: 589 | M58: 6.27224
A59: 49 | B59: BAJAJ-AUTO | C59: 3671.85 | D59: 3679.10 | E59: 3651.85 | F59: 3631.85 | G59: 3604.60 | H59: 3699.10 | I59: 3726.35 | J59: 3746.35 | K59: 3706.35 | L59: 3659.1 | M59: 3.14769
A60: 50 | B60: BAJAJELEC | C60: 1169.05 | D60: 1165.18 | E60: 1150.37 | F60: 1131.68 | G60: 1116.87 | H60: 1183.87 | I60: 1198.68 | J60: 1217.37 | K60: 1180 | L60: 1146.5 | M60: 0.68365
A61: 51 | B61: BAJFINANCE | C61: 7144.1 | D61: 7113.23 | E61: 7076.87 | F61: 7009.63 | G61: 6973.27 | H61: 7180.47 | I61: 7216.83 | J61: 7284.07 | K61: 7149.6 | L61: 7046 | M61: 8.18986
A62: 52 | B62: BAJAJFINSV | C62: 1687.5 | D62: 1679.83 | E62: 1669.82 | F62: 1652.13 | G62: 1642.12 | H62: 1697.52 | I62: 1707.53 | J62: 1725.22 | K62: 1689.85 | L62: 1662.15 | M62: 22.17631
A63: 53 | B63: BAJAJHLDNG | C63: 6660.6 | D63: 6653.15 | E63: 6606.30 | F63: 6552.00 | G63: 6505.15 | H63: 6707.45 | I63: 6754.30 | J63: 6808.60 | K63: 6700 | L63: 6598.85 | M63: 0.77196
A64: 54 | B64: BALAMINES | C64: 3025 | D64: 3022.73 | E64: 2997.47 | F64: 2969.93 | G64: 2944.67 | H64: 3050.27 | I64: 3075.53 | J64: 3103.07 | K64: 3048 | L64: 2995.2 | M64: 0.32544
A65: 55 | B65: BALKRISIND | C65: 1962.75 | D65: 1960.92 | E65: 1947.83 | F65: 1932.92 | G65: 1919.83 | H65: 1975.83 | I65: 1988.92 | J65: 2003.83 | K65: 1974 | L65: 1946 | M65: 2.96991
A66: 56 | B66: BALRAMCHIN | C66: 315.95 | D66: 314.52 | E66: 308.73 | F66: 301.52 | G66: 295.73 | H66: 321.73 | I66: 327.52 | J66: 334.73 | K66: 320.3 | L66: 307.3 | M66: 29.17659
A67: 57 | B67: BANDHANBNK | C67: 238.55 | D67: 245.42 | E67: 230.38 | F67: 222.22 | G67: 207.18 | H67: 253.58 | I67: 268.62 | J67: 276.78 | K67: 260.45 | L67: 237.25 | M67: 489.27022
A68: 58 | B68: BANKBARODA | C68: 147.7 | D68: 147.10 | E68: 145.60 | F68: 143.50 | G68: 142.00 | H68: 149.20 | I68: 150.70 | J68: 152.80 | K68: 148.6 | L68: 145 | M68: 213.73095
A69: 59 | B69: BANKINDIA | C69: 60.25 | D69: 59.77 | E69: 58.78 | F69: 57.32 | G69: 56.33 | H69: 61.23 | I69: 62.22 | J69: 63.68 | K69: 60.75 | L69: 58.3 | M69: 176.16159
A70: 60 | B70: MAHABANK | C70: 20.3 | D70: 20.58 | E70: 19.97 | F70: 19.63 | G70: 19.02 | H70: 20.92 | I70: 21.53 | J70: 21.87 | K70: 21.2 | L70: 20.25 | M70: 58.81162
A71: 61 | B71: BATAINDIA | C71: 1828.35 | D71: 1823.47 | E71: 1814.93 | F71: 1801.52 | G71: 1792.98 | H71: 1836.88 | I71: 1845.42 | J71: 1858.83 | K71: 1832 | L71: 1810.05 | M71: 2.46552
A72: 62 | B72: BAYERCROP | C72: 4678.45 | D72: 4683.37 | E72: 4640.53 | F72: 4602.62 | G72: 4559.78 | H72: 4721.28 | I72: 4764.12 | J72: 4802.03 | K72: 4726.2 | L72: 4645.45 | M72: 0.1183
A73: 63 | B73: BERGEPAINT | C73: 585.8 | D73: 583.08 | E73: 579.17 | F73: 572.53 | G73: 568.62 | H73: 589.72 | I73: 593.63 | J73: 600.27 | K73: 587 | L73: 576.45 | M73: 4.72921
A74: 64 | B74: BDL | C74: 958.2 | D74: 964.62 | E74: 945.58 | F74: 932.97 | G74: 913.93 | H74: 977.23 | I74: 996.27 | J74: 1008.88 | K74: 983.65 | L74: 952 | M74: 7.86398
A75: 65 | B75: BEL | C75: 106.85 | D75: 106.40 | E75: 105.60 | F75: 104.35 | G75: 103.55 | H75: 107.65 | I75: 108.45 | J75: 109.70 | K75: 107.2 | L75: 105.15 | M75: 127.93983
A76: 66 | B76: BHARATFORG | C76: 834.2 | D76: 835.58 | E76: 824.17 | F76: 814.13 | G76: 802.72 | H76: 845.62 | I76: 857.03 | J76: 867.07 | K76: 847 | L76: 825.55 | M76: 18.05765
A77: 67 | B77: BHEL | C77: 74.05 | D77: 73.90 | E77: 73.10 | F77: 72.15 | G77: 71.35 | H77: 74.85 | I77: 75.65 | J77: 76.60 | K77: 74.7 | L77: 72.95 | M77: 325.7152
A78: 68 | B78: BPCL | C78: 303.65 | D78: 303.68 | E78: 301.37 | F78: 299.08 | G78: 296.77 | H78: 305.97 | I78: 308.28 | J78: 310.57 | K78: 306 | L78: 301.4 | M78: 40.8406
A79: 69 | B79: BHARATRAS | C79: 10928.7 | D79: 10902.52 | E79: 10805.03 | F79: 10681.37 | G79: 10583.88 | H79: 11026.18 | I79: 11123.67 | J79: 11247.33 | K79: 11000 | L79: 10778.85 | M79: 0.00875
A80: 70 | B80: BHARTIARTL | C80: 832 | D80: 828.60 | E80: 823.40 | F80: 814.80 | G80: 809.60 | H80: 837.20 | I80: 842.40 | J80: 851.00 | K80: 833.8 | L80: 820 | M80: 54.87233
A81: 71 | B81: BIOCON | C81: 269.85 | D81: 271.87 | E81: 267.18 | F81: 264.52 | G81: 259.83 | H81: 274.53 | I81: 279.22 | J81: 281.88 | K81: 276.55 | L81: 269.2 | M81: 13.69705
A82: 72 | B82: BIRLACORPN | C82: 923 | D82: 920.40 | E82: 905.80 | F82: 888.60 | G82: 874.00 | H82: 937.60 | I82: 952.20 | J82: 969.40 | K82: 935 | L82: 903.2 | M82: 1.23521
A83: 73 | B83: BSOFT | C83: 270.85 | D83: 269.55 | E83: 266.60 | F83: 262.35 | G83: 259.40 | H83: 273.80 | I83: 276.75 | J83: 281.00 | K83: 272.5 | L83: 265.3 | M83: 25.30321
A84: 74 | B84: BLUEDART | C84: 7587.05 | D84: 7721.53 | E84: 7422.12 | F84: 7257.18 | G84: 6957.77 | H84: 7886.47 | I84: 8185.88 | J84: 8350.82 | K84: 8020.95 | L84: 7556.6 | M84: 0.55799
A85: 75 | B85: BLUESTARCO | C85: 1236.15 | D85: 1235.72 | E85: 1221.43 | F85: 1206.72 | G85: 1192.43 | H85: 1250.43 | I85: 1264.72 | J85: 1279.43 | K85: 1250 | L85: 1221 | M85: 0.56187
A86: 76 | B86: BBTC | C86: 873.25 | D86: 876.37 | E86: 867.88 | F86: 862.52 | G86: 854.03 | H86: 881.73 | I86: 890.22 | J86: 895.58 | K86: 884.85 | L86: 871 | M86: 0.18485
A87: 77 | B87: BORORENEW | C87: 563.7 | D87: 562.57 | E87: 556.93 | F87: 550.17 | G87: 544.53 | H87: 569.33 | I87: 574.97 | J87: 581.73 | K87: 568.2 | L87: 555.8 | M87: 1.9874
A88: 78 | B88: BOSCHLTD | C88: 16488.6 | D88: 16388.73 | E88: 16222.47 | F88: 15956.33 | G88: 15790.07 | H88: 16654.87 | I88: 16821.13 | J88: 17087.27 | K88: 16555 | L88: 16122.6 | M88: 0.30738
A89: 79 | B89: BRIGADE | C89: 499.55 | D89: 499.77 | E89: 490.78 | F89: 482.02 | G89: 473.03 | H89: 508.53 | I89: 517.52 | J89: 526.28 | K89: 508.75 | L89: 491 | M89: 1.47332
A90: 80 | B90: BCG | C90: 33.05 | D90: 33.57 | E90: 32.28 | F90: 31.52 | G90: 30.23 | H90: 34.33 | I90: 35.62 | J90: 36.38 | K90: 34.85 | L90: 32.8 | M90: 167.48592
A91: 81 | B91: BRITANNIA | C91: 3766.55 | D91: 3768.63 | E91: 3737.27 | F91: 3707.98 | G91: 3676.62 | H91: 3797.92 | I91: 3829.28 | J91: 3858.57 | K91: 3800 | L91: 3739.35 | M91: 1.98318
A92: 82 | B92: MAPMYINDIA | C92: 1308.25 | D92: 1312.17 | E92: 1287.13 | F92: 1266.02 | G92: 1240.98 | H92: 1333.28 | I92: 1358.32 | J92: 1379.43 | K92: 1337.2 | L92: 1291.05 | M92: 0.85211
A93: 83 | B93: CCL | C93: 500.85 | D93: 499.05 | E93: 493.10 | F93: 485.35 | G93: 479.40 | H93: 506.80 | I93: 512.75 | J93: 520.50 | K93: 505 | L93: 491.3 | M93: 3.05136
A94: 84 | B94: CESC | C94: 76.75 | D94: 77.07 | E94: 76.33 | F94: 75.92 | G94: 75.18 | H94: 77.48 | I94: 78.22 | J94: 78.63 | K94: 77.8 | L94: 76.65 | M94: 9.20546
A95: 85 | B95: CGPOWER | C95: 260 | D95: 259.00 | E95: 255.65 | F95: 251.30 | G95: 247.95 | H95: 263.35 | I95: 266.70 | J95: 271.05 | K95: 262.35 | L95: 254.65 | M95: 15.88235
A96: 86 | B96: CRISIL | C96: 2997.8 | D96: 3002.10 | E96: 2955.20 | F96: 2912.60 | G96: 2865.70 | H96: 3044.70 | I96: 3091.60 | J96: 3134.20 | K96: 3049 | L96: 2959.5 | M96: 0.25134
A97: 87 | B97: CSBBANK | C97: 227.25 | D97: 229.68 | E97: 224.57 | F97: 221.88 | G97: 216.77 | H97: 232.37 | I97: 237.48 | J97: 240.17 | K97: 234.8 | L97: 227 | M97: 4.12958
A98: 88 | B98: CAMPUS | C98: 578.05 | D98: 573.13 | E98: 560.92 | F98: 543.78 | G98: 531.57 | H98: 590.27 | I98: 602.48 | J98: 619.62 | K98: 585.35 | L98: 556 | M98: 9.16212
A99: 89 | B99: CANFINHOME | C99: 524.35 | D99: 522.47 | E99: 518.93 | F99: 513.52 | G99: 509.98 | H99: 527.88 | I99: 531.42 | J99: 536.83 | K99: 526 | L99: 517.05 | M99: 4.84944
A100: 90 | B100: CANBK | C100: 290.4 | D100: 289.13 | E100: 286.47 | F100: 282.53 | G100: 279.87 | H100: 293.07 | I100: 295.73 | J100: 299.67 | K100: 291.8 | L100: 285.2 | M100: 116.06785
A101: 91 | B101: CAPLIPOINT | C101: 724.85 | D101: 727.98 | E101: 713.82 | F101: 702.78 | G101: 688.62 | H101: 739.02 | I101: 753.18 | J101: 764.22 | K101: 742.15 | L101: 716.95 | M101: 0.21704
A102: 92 | B102: CGCL | C102: 749.65 | D102: 748.05 | E102: 739.40 | F102: 729.15 | G102: 720.50 | H102: 758.30 | I102: 766.95 | J102: 777.20 | K102: 756.7 | L102: 737.8 | M102: 1.5325
A103: 93 | B103: CARBORUNIV | C103: 845.85 | D103: 849.93 | E103: 833.37 | F103: 820.88 | G103: 804.32 | H103: 862.42 | I103: 878.98 | J103: 891.47 | K103: 866.5 | L103: 837.45 | M103: 2.54786
A104: 94 | B104: CASTROLIND | C104: 124.3 | D104: 124.88 | E104: 122.92 | F104: 121.53 | G104: 119.57 | H104: 126.27 | I104: 128.23 | J104: 129.62 | K104: 126.85 | L104: 123.5 | M104: 8.48932
A105: 95 | B105: CEATLTD | C105: 1541.95 | D105: 1541.07 | E105: 1523.13 | F105: 1504.32 | G105: 1486.38 | H105: 1559.88 | I105: 1577.82 | J105: 1596.63 | K105: 1559 | L105: 1522.25 | M105: 1.29317
A106: 96 | B106: CENTRALBK | C106: 20.35 | D106: 20.50 | E106: 20.15 | F106: 19.95 | G106: 19.60 | H106: 20.70 | I106: 21.05 | J106: 21.25 | K106: 20.85 | L106: 20.3 | M106: 31.32788
A107: 97 | B107: CDSL | C107: 1223.55 | D107: 1226.55 | E107: 1218.10 | F107: 1212.65 | G107: 1204.20 | H107: 1232.00 | I107: 1240.45 | J107: 1245.90 | K107: 1235 | L107: 1221.1 | M107: 2.04519
A108: 98 | B108: CENTURYPLY | C108: 598.1 | D108: 596.47 | E108: 589.48 | F108: 580.87 | G108: 573.88 | H108: 605.08 | I108: 612.07 | J108: 620.68 | K108: 603.45 | L108: 587.85 | M108: 3.30863
A109: 99 | B109: CENTURYTEX | C109: 856.2 | D109: 861.23 | E109: 847.07 | F109: 837.93 | G109: 823.77 | H109: 870.37 | I109: 884.53 | J109: 893.67 | K109: 875.4 | L109: 852.1 | M109: 0.9741
A110: 100 | B110: CERA | C110: 5575.35 | D110: 5518.78 | E110: 5437.57 | F110: 5299.78 | G110: 5218.57 | H110: 5656.57 | I110: 5737.78 | J110: 5875.57 | K110: 5600 | L110: 5381 | M110: 0.16973
A111: 101 | B111: CHALET | C111: 365.25 | D111: 362.60 | E111: 355.20 | F111: 345.15 | G111: 337.75 | H111: 372.65 | I111: 380.05 | J111: 390.10 | K111: 370 | L111: 352.55 | M111: 1.79753
A112: 102 | B112: CHAMBLFERT | C112: 326.4 | D112: 323.62 | E112: 318.78 | F112: 311.17 | G112: 306.33 | H112: 331.23 | I112: 336.07 | J112: 343.68 | K112: 328.45 | L112: 316 | M112: 12.39778
A113: 103 | B113: CHEMPLASTS | C113: 375.2 | D113: 379.35 | E113: 369.20 | F113: 363.20 | G113: 353.05 | H113: 385.35 | I113: 395.50 | J113: 401.50 | K113: 389.5 | L113: 373.35 | M113: 1.36171
A114: 104 | B114: CHOLAHLDNG | C114: 628.25 | D114: 627.32 | E114: 624.63 | F114: 621.02 | G114: 618.33 | H114: 630.93 | I114: 633.62 | J114: 637.23 | K114: 630 | L114: 623.7 | M114: 5.566
A115: 105 | B115: CHOLAFIN | C115: 709.35 | D115: 712.25 | E115: 701.40 | F115: 693.45 | G115: 682.60 | H115: 720.20 | I115: 731.05 | J115: 739.00 | K115: 723.1 | L115: 704.3 | M115: 17.06648
A116: 106 | B116: CIPLA | C116: 1167.4 | D116: 1168.10 | E116: 1158.35 | F116: 1149.30 | G116: 1139.55 | H116: 1177.15 | I116: 1186.90 | J116: 1195.95 | K116: 1177.85 | L116: 1159.05 | M116: 15.5467
A117: 107 | B117: CUB | C117: 186 | D117: 186.60 | E117: 183.40 | F117: 180.80 | G117: 177.60 | H117: 189.20 | I117: 192.40 | J117: 195.00 | K117: 189.8 | L117: 184 | M117: 19.24954
A118: 108 | B118: CLEAN | C118: 1572.2 | D118: 1584.05 | E118: 1553.15 | F118: 1534.10 | G118: 1503.20 | H118: 1603.10 | I118: 1634.00 | J118: 1653.05 | K118: 1614.95 | L118: 1565 | M118: 0.70042
A119: 109 | B119: COALINDIA | C119: 245.95 | D119: 245.67 | E119: 243.83 | F119: 241.72 | G119: 239.88 | H119: 247.78 | I119: 249.62 | J119: 251.73 | K119: 247.5 | L119: 243.55 | M119: 83.65329
A120: 110 | B120: COCHINSHIP | C120: 538.55 | D120: 540.82 | E120: 530.73 | F120: 522.92 | G120: 512.83 | H120: 548.63 | I120: 558.72 | J120: 566.53 | K120: 550.9 | L120: 533 | M120: 6.62164
A121: 111 | B121: COFORGE | C121: 3809.6 | D121: 3795.03 | E121: 3763.07 | F121: 3716.53 | G121: 3684.57 | H121: 3841.57 | I121: 3873.53 | J121: 3920.07 | K121: 3827 | L121: 3748.5 | M121: 1.53364
A122: 112 | B122: COLPAL | C122: 1631.75 | D122: 1632.25 | E122: 1617.60 | F122: 1603.45 | G122: 1588.80 | H122: 1646.40 | I122: 1661.05 | J122: 1675.20 | K122: 1646.9 | L122: 1618.1 | M122: 2.8563
A123: 113 | B123: CAMS | C123: 2549.15 | D123: 2558.72 | E123: 2530.43 | F123: 2511.72 | G123: 2483.43 | H123: 2577.43 | I123: 2605.72 | J123: 2624.43 | K123: 2587 | L123: 2540 | M123: 0.83732
A124: 114 | B124: CONCOR | C124: 798 | D124: 798.98 | E124: 787.02 | F124: 776.03 | G124: 764.07 | H124: 809.97 | I124: 821.93 | J124: 832.92 | K124: 810.95 | L124: 788 | M124: 28.54067
A125: 115 | B125: COROMANDEL | C125: 962.35 | D125: 967.47 | E125: 955.48 | F125: 948.62 | G125: 936.63 | H125: 974.33 | I125: 986.32 | J125: 993.18 | K125: 979.45 | L125: 960.6 | M125: 2.26908
A126: 116 | B126: CREDITACC | C126: 975.2 | D126: 967.23 | E126: 957.22 | F126: 939.23 | G126: 929.22 | H126: 985.22 | I126: 995.23 | J126: 1013.22 | K126: 977.25 | L126: 949.25 | M126: 0.57385
A127: 117 | B127: CROMPTON | C127: 362.3 | D127: 358.75 | E127: 354.15 | F127: 346.00 | G127: 341.40 | H127: 366.90 | I127: 371.50 | J127: 379.65 | K127: 363.35 | L127: 350.6 | M127: 25.3825
A128: 118 | B128: CUMMINSIND | C128: 1347.9 | D128: 1333.28 | E128: 1314.62 | F128: 1281.33 | G128: 1262.67 | H128: 1366.57 | I128: 1385.23 | J128: 1418.52 | K128: 1351.95 | L128: 1300 | M128: 16.22116
A129: 119 | B129: CYIENT | C129: 749.3 | D129: 747.67 | E129: 743.98 | F129: 738.67 | G129: 734.98 | H129: 752.98 | I129: 756.67 | J129: 761.98 | K129: 751.35 | L129: 742.35 | M129: 1.26668
A130: 120 | B130: DCMSHRIRAM | C130: 1045.6 | D130: 1053.72 | E130: 1032.88 | F130: 1020.17 | G130: 999.33 | H130: 1066.43 | I130: 1087.27 | J130: 1099.98 | K130: 1074.55 | L130: 1041 | M130: 0.29883
A131: 121 | B131: DLF | C131: 385.5 | D131: 385.80 | E131: 382.00 | F131: 378.50 | G131: 374.70 | H131: 389.30 | I131: 393.10 | J131: 396.60 | K131: 389.6 | L131: 382.3 | M131: 33.15136
A132: 122 | B132: DABUR | C132: 554.7 | D132: 554.47 | E132: 550.43 | F132: 546.17 | G132: 542.13 | H132: 558.73 | I132: 562.77 | J132: 567.03 | K132: 558.5 | L132: 550.2 | M132: 15.17302
A133: 123 | B133: DALBHARAT | C133: 1600.95 | D133: 1580.48 | E133: 1555.97 | F133: 1510.98 | G133: 1486.47 | H133: 1625.47 | I133: 1649.98 | J133: 1694.97 | K133: 1605 | L133: 1535.5 | M133: 3.13925
A134: 124 | B134: DEEPAKFERT | C134: 965.95 | D134: 969.92 | E134: 956.13 | F134: 946.32 | G134: 932.53 | H134: 979.73 | I134: 993.52 | J134: 1003.33 | K134: 983.7 | L134: 960.1 | M134: 2.78531
A135: 125 | B135: DEEPAKNTR | C135: 2313.95 | D135: 2297.00 | E135: 2267.60 | F135: 2221.25 | G135: 2191.85 | H135: 2343.35 | I135: 2372.75 | J135: 2419.10 | K135: 2326.4 | L135: 2250.65 | M135: 10.49252
A136: 126 | B136: DELHIVERY | C136: 344.2 | D136: 347.50 | E136: 338.00 | F136: 331.80 | G136: 322.30 | H136: 353.70 | I136: 363.20 | J136: 369.40 | K136: 357 | L136: 341.3 | M136: 17.83658
A137: 127 | B137: DELTACORP | C137: 223.15 | D137: 222.72 | E137: 221.08 | F137: 219.02 | G137: 217.38 | H137: 224.78 | I137: 226.42 | J137: 228.48 | K137: 224.35 | L137: 220.65 | M137: 21.3099
A138: 128 | B138: DEVYANI | C138: 193.55 | D138: 193.32 | E138: 191.63 | F138: 189.72 | G138: 188.03 | H138: 195.23 | I138: 196.92 | J138: 198.83 | K138: 195 | L138: 191.4 | M138: 15.30585
A139: 129 | B139: DHANI | C139: 57.1 | D139: 57.80 | E139: 55.35 | F139: 53.60 | G139: 51.15 | H139: 59.55 | I139: 62.00 | J139: 63.75 | K139: 60.25 | L139: 56.05 | M139: 61.18086
A140: 130 | B140: DBL | C140: 215.2 | D140: 216.57 | E140: 212.88 | F140: 210.57 | G140: 206.88 | H140: 218.88 | I140: 222.57 | J140: 224.88 | K140: 220.25 | L140: 214.25 | M140: 1.14463
A141: 131 | B141: DIVISLAB | C141: 3608.9 | D141: 3598.78 | E141: 3577.57 | F141: 3546.23 | G141: 3525.02 | H141: 3630.12 | I141: 3651.33 | J141: 3682.67 | K141: 3620 | L141: 3567.45 | M141: 3.56104
A142: 132 | B142: DIXON | C142: 4516.6 | D142: 4477.87 | E142: 4430.73 | F142: 4344.87 | G142: 4297.73 | H142: 4563.73 | I142: 4610.87 | J142: 4696.73 | K142: 4525 | L142: 4392 | M142: 2.44152
A143: 133 | B143: LALPATHLAB | C143: 2563.05 | D143: 2571.00 | E143: 2532.05 | F143: 2501.05 | G143: 2462.10 | H143: 2602.00 | I143: 2640.95 | J143: 2671.95 | K143: 2609.95 | L143: 2540 | M143: 1.13509
A144: 134 | B144: DRREDDY | C144: 4433.7 | D144: 4467.78 | E144: 4310.57 | F144: 4187.43 | G144: 4030.22 | H144: 4590.92 | I144: 4748.13 | J144: 4871.27 | K144: 4625 | L144: 4344.65 | M144: 18.25761
A145: 135 | B145: EIDPARRY | C145: 619.4 | D145: 608.93 | E145: 593.07 | F145: 566.73 | G145: 550.87 | H145: 635.27 | I145: 651.13 | J145: 677.47 | K145: 624.8 | L145: 582.6 | M145: 5.11596
A146: 136 | B146: EIHOTEL | C146: 193.85 | D146: 193.25 | E146: 189.00 | F146: 184.15 | G146: 179.90 | H146: 198.10 | I146: 202.35 | J146: 207.20 | K146: 197.5 | L146: 188.4 | M146: 8.70609
A147: 137 | B147: EPL | C147: 153.75 | D147: 155.07 | E147: 151.78 | F147: 149.82 | G147: 146.53 | H147: 157.03 | I147: 160.32 | J147: 162.28 | K147: 158.35 | L147: 153.1 | M147: 2.43273
A148: 138 | B148: EASEMYTRIP | C148: 387 | D148: 387.13 | E148: 384.02 | F148: 381.03 | G148: 377.92 | H148: 390.12 | I148: 393.23 | J148: 396.22 | K148: 390.25 | L148: 384.15 | M148: 6.66432
A149: 139 | B149: EDELWEISS | C149: 57.9 | D149: 58.20 | E149: 57.30 | F149: 56.70 | G149: 55.80 | H149: 58.80 | I149: 59.70 | J149: 60.30 | K149: 59.1 | L149: 57.6 | M149: 7.19002
A150: 140 | B150: EICHERMOT | C150: 3850.45 | D150: 3824.18 | E150: 3784.27 | F150: 3718.08 | G150: 3678.17 | H150: 3890.37 | I150: 3930.28 | J150: 3996.47 | K150: 3864.1 | L150: 3758 | M150: 6.78149
A151: 141 | B151: ELGIEQUIP | C151: 484.65 | D151: 493.08 | E151: 473.27 | F151: 461.88 | G151: 442.07 | H151: 504.47 | I151: 524.28 | J151: 535.67 | K151: 512.9 | L151: 481.7 | M151: 6.06406
A152: 142 | B152: EMAMILTD | C152: 474.05 | D152: 471.92 | E152: 466.18 | F152: 458.32 | G152: 452.58 | H152: 479.78 | I152: 485.52 | J152: 493.38 | K152: 477.65 | L152: 464.05 | M152: 1.09006
A153: 143 | B153: ENDURANCE | C153: 1354.3 | D153: 1357.35 | E153: 1347.05 | F153: 1339.80 | G153: 1329.50 | H153: 1364.60 | I153: 1374.90 | J153: 1382.15 | K153: 1367.65 | L153: 1350.1 | M153: 0.13897
A154: 144 | B154: ENGINERSIN | C154: 70.25 | D154: 69.87 | E154: 69.23 | F154: 68.22 | G154: 67.58 | H154: 70.88 | I154: 71.52 | J154: 72.53 | K154: 70.5 | L154: 68.85 | M154: 24.71571
A155: 145 | B155: EQUITASBNK | C155: 50.1 | D155: 49.83 | E155: 49.37 | F155: 48.63 | G155: 48.17 | H155: 50.57 | I155: 51.03 | J155: 51.77 | K155: 50.3 | L155: 49.1 | M155: 11.4134
A156: 146 | B156: ESCORTS | C156: 2038.35 | D156: 2028.78 | E156: 2010.57 | F156: 1982.78 | G156: 1964.57 | H156: 2056.57 | I156: 2074.78 | J156: 2102.57 | K156: 2047 | L156: 2001 | M156: 3.24319
A157: 147 | B157: EXIDEIND | C157: 165.75 | D157: 165.95 | E157: 165.05 | F157: 164.35 | G157: 163.45 | H157: 166.65 | I157: 167.55 | J157: 168.25 | K157: 166.85 | L157: 165.25 | M157: 13.27747
A158: 148 | B158: FDC | C158: 312.1 | D158: 313.43 | E158: 308.87 | F158: 305.63 | G158: 301.07 | H158: 316.67 | I158: 321.23 | J158: 324.47 | K158: 318 | L158: 310.2 | M158: 8.10387
A159: 149 | B159: NYKAA | C159: 1152.75 | D159: 1105.08 | E159: 1029.92 | F159: 907.08 | G159: 831.92 | H159: 1227.92 | I159: 1303.08 | J159: 1425.92 | K159: 1180.25 | L159: 982.25 | M159: 92.19935
A160: 150 | B160: FEDERALBNK | C160: 131.5 | D160: 131.23 | E160: 129.87 | F160: 128.23 | G160: 126.87 | H160: 132.87 | I160: 134.23 | J160: 135.87 | K160: 132.6 | L160: 129.6 | M160: 144.41082
A161: 151 | B161: FACT | C161: 117.8 | D161: 117.58 | E161: 116.17 | F161: 114.53 | G161: 113.12 | H161: 119.22 | I161: 120.63 | J161: 122.27 | K161: 119 | L161: 115.95 | M161: 0.9176
A162: 152 | B162: FINEORG | C162: 5741.2 | D162: 5920.40 | E162: 5510.80 | F162: 5280.40 | G162: 4870.80 | H162: 6150.80 | I162: 6560.40 | J162: 6790.80 | K162: 6330 | L162: 5690 | M162: 3.37944
A163: 153 | B163: FINCABLES | C163: 521.5 | D163: 521.18 | E163: 516.82 | F163: 512.13 | G163: 507.77 | H163: 525.87 | I163: 530.23 | J163: 534.92 | K163: 525.55 | L163: 516.5 | M163: 3.08698
A164: 154 | B164: FINPIPE | C164: 133.95 | D164: 133.63 | E164: 132.87 | F164: 131.78 | G164: 131.02 | H164: 134.72 | I164: 135.48 | J164: 136.57 | K164: 134.4 | L164: 132.55 | M164: 2.50231
A165: 155 | B165: FSL | C165: 103.85 | D165: 103.13 | E165: 102.07 | F165: 100.28 | G165: 99.22 | H165: 104.92 | I165: 105.98 | J165: 107.77 | K165: 104.2 | L165: 101.35 | M165: 30.08146
A166: 156 | B166: FORTIS | C166: 277.45 | D166: 276.93 | E166: 274.17 | F166: 270.88 | G166: 268.12 | H166: 280.22 | I166: 282.98 | J166: 286.27 | K166: 279.7 | L166: 273.65 | M166: 6.819
A167: 157 | B167: GRINFRA | C167: 1220.4 | D167: 1223.77 | E167: 1208.03 | F167: 1195.67 | G167: 1179.93 | H167: 1236.13 | I167: 1251.87 | J167: 1264.23 | K167: 1239.5 | L167: 1211.4 | M167: 0.04855
A168: 158 | B168: GAIL | C168: 91.3 | D168: 91.00 | E168: 90.50 | F168: 89.70 | G168: 89.20 | H168: 91.80 | I168: 92.30 | J168: 93.10 | K168: 91.5 | L168: 90.2 | M168: 126.58201
A169: 159 | B169: GMMPFAUDLR | C169: 1845.55 | D169: 1842.22 | E169: 1823.53 | F169: 1801.52 | G169: 1782.83 | H169: 1864.23 | I169: 1882.92 | J169: 1904.93 | K169: 1860.9 | L169: 1820.2 | M169: 0.58353
A170: 160 | B170: GMRINFRA | C170: 37.45 | D170: 37.27 | E170: 36.93 | F170: 36.42 | G170: 36.08 | H170: 37.78 | I170: 38.12 | J170: 38.63 | K170: 37.6 | L170: 36.75 | M170: 62.65164
A171: 161 | B171: GALAXYSURF | C171: 2908.85 | D171: 2894.92 | E171: 2868.83 | F171: 2828.82 | G171: 2802.73 | H171: 2934.93 | I171: 2961.02 | J171: 3001.03 | K171: 2921 | L171: 2854.9 | M171: 0.13821
A172: 162 | B172: GARFIBRES | C172: 3500.85 | D172: 3507.77 | E172: 3471.38 | F172: 3441.92 | G172: 3405.53 | H172: 3537.23 | I172: 3573.62 | J172: 3603.08 | K172: 3544.15 | L172: 3478.3 | M172: 0.07684
A173: 163 | B173: GICRE | C173: 123.75 | D173: 124.35 | E173: 122.20 | F173: 120.65 | G173: 118.50 | H173: 125.90 | I173: 128.05 | J173: 129.60 | K173: 126.5 | L173: 122.8 | M173: 1.50342
A174: 164 | B174: GLAND | C174: 1784.35 | D174: 1787.40 | E174: 1676.95 | F174: 1569.55 | G174: 1459.10 | H174: 1894.80 | I174: 2005.25 | J174: 2112.65 | K174: 1897.85 | L174: 1680 | M174: 34.487
A175: 165 | B175: GLAXO | C175: 1377.35 | D175: 1373.97 | E175: 1360.98 | F175: 1344.62 | G175: 1331.63 | H175: 1390.33 | I175: 1403.32 | J175: 1419.68 | K175: 1386.95 | L175: 1357.6 | M175: 1.38505
A176: 166 | B176: GLENMARK | C176: 404.55 | D176: 403.97 | E176: 398.68 | F176: 392.82 | G176: 387.53 | H176: 409.83 | I176: 415.12 | J176: 420.98 | K176: 409.25 | L176: 398.1 | M176: 7.31188
A177: 167 | B177: GOCOLORS | C177: 1399.4 | D177: 1387.15 | E177: 1364.30 | F177: 1329.20 | G177: 1306.35 | H177: 1422.25 | I177: 1445.10 | J177: 1480.20 | K177: 1410 | L177: 1352.05 | M177: 0.55616
A178: 168 | B178: GODFRYPHLP | C178: 1484.5 | D178: 1482.83 | E178: 1470.67 | F178: 1456.83 | G178: 1444.67 | H178: 1496.67 | I178: 1508.83 | J178: 1522.67 | K178: 1495 | L178: 1469 | M178: 0.76697
A179: 169 | B179: GODREJAGRO | C179: 500.9 | D179: 503.27 | E179: 496.63 | F179: 492.37 | G179: 485.73 | H179: 507.53 | I179: 514.17 | J179: 518.43 | K179: 509.9 | L179: 499 | M179: 0.75583
A180: 170 | B180: GODREJCP | C180: 829.3 | D180: 832.50 | E180: 824.30 | F180: 819.30 | G180: 811.10 | H180: 837.50 | I180: 845.70 | J180: 850.70 | K180: 840.7 | L180: 827.5 | M180: 7.48108
A181: 171 | B181: GODREJIND | C181: 429.35 | D181: 430.03 | E181: 425.37 | F181: 421.38 | G181: 416.72 | H181: 434.02 | I181: 438.68 | J181: 442.67 | K181: 434.7 | L181: 426.05 | M181: 1.78577
A182: 172 | B182: GODREJPROP | C182: 1263 | D182: 1258.28 | E182: 1247.57 | F182: 1232.13 | G182: 1221.42 | H182: 1273.72 | I182: 1284.43 | J182: 1299.87 | K182: 1269 | L182: 1242.85 | M182: 4.01807
A183: 173 | B183: GRANULES | C183: 372.65 | D183: 370.60 | E183: 367.35 | F183: 362.05 | G183: 358.80 | H183: 375.90 | I183: 379.15 | J183: 384.45 | K183: 373.85 | L183: 365.3 | M183: 16.61482
A184: 174 | B184: GRAPHITE | C184: 352.4 | D184: 354.30 | E184: 349.80 | F184: 347.20 | G184: 342.70 | H184: 356.90 | I184: 361.40 | J184: 364.00 | K184: 358.8 | L184: 351.7 | M184: 1.67626
A185: 175 | B185: GRASIM | C185: 1721.7 | D185: 1713.40 | E185: 1696.80 | F185: 1671.90 | G185: 1655.30 | H185: 1738.30 | I185: 1754.90 | J185: 1779.80 | K185: 1730 | L185: 1688.5 | M185: 5.91913
A186: 176 | B186: GESHIP | C186: 557.15 | D186: 557.43 | E186: 550.47 | F186: 543.78 | G186: 536.82 | H186: 564.12 | I186: 571.08 | J186: 577.77 | K186: 564.4 | L186: 550.75 | M186: 5.33432
A187: 177 | B187: GREENPANEL | C187: 372.1 | D187: 374.35 | E187: 367.75 | F187: 363.40 | G187: 356.80 | H187: 378.70 | I187: 385.30 | J187: 389.65 | K187: 380.95 | L187: 370 | M187: 1.70874
A188: 178 | B188: GRINDWELL | C188: 2103 | D188: 2111.35 | E188: 2061.70 | F188: 2020.40 | G188: 1970.75 | H188: 2152.65 | I188: 2202.30 | J188: 2243.60 | K188: 2161 | L188: 2070.05 | M188: 6.05372
A189: 179 | B189: GUJALKALI | C189: 891 | D189: 887.00 | E189: 876.00 | F189: 861.00 | G189: 850.00 | H189: 902.00 | I189: 913.00 | J189: 928.00 | K189: 898 | L189: 872 | M189: 1.75374
A190: 180 | B190: GAEL | C190: 252.8 | D190: 251.33 | E190: 244.17 | F190: 235.53 | G190: 228.37 | H190: 259.97 | I190: 267.13 | J190: 275.77 | K190: 258.5 | L190: 242.7 | M190: 7.33734
A191: 181 | B191: FLUOROCHEM | C191: 3790.95 | D191: 3837.38 | E191: 3735.82 | F191: 3680.68 | G191: 3579.12 | H191: 3892.52 | I191: 3994.08 | J191: 4049.22 | K191: 3938.95 | L191: 3782.25 | M191: 0.71349
A192: 182 | B192: GUJGASLTD | C192: 518.6 | D192: 516.20 | E192: 509.65 | F192: 500.70 | G192: 494.15 | H192: 525.15 | I192: 531.70 | J192: 540.65 | K192: 522.75 | L192: 507.25 | M192: 12.9978
A193: 183 | B193: GNFC | C193: 709.15 | D193: 708.13 | E193: 701.27 | F193: 693.38 | G193: 686.52 | H193: 716.02 | I193: 722.88 | J193: 730.77 | K193: 715 | L193: 700.25 | M193: 12.48756
A194: 184 | B194: GPPL | C194: 86 | D194: 85.52 | E194: 84.78 | F194: 83.57 | G194: 82.83 | H194: 86.73 | I194: 87.47 | J194: 88.68 | K194: 86.25 | L194: 84.3 | M194: 4.96612
A195: 185 | B195: GSFC | C195: 123.05 | D195: 123.03 | E195: 120.57 | F195: 118.08 | G195: 115.62 | H195: 125.52 | I195: 127.98 | J195: 130.47 | K195: 125.5 | L195: 120.55 | M195: 35.7487
A196: 186 | B196: GSPL | C196: 226.15 | D196: 224.62 | E196: 222.43 | F196: 218.72 | G196: 216.53 | H196: 228.33 | I196: 230.52 | J196: 234.23 | K196: 226.8 | L196: 220.9 | M196: 7.18261
A197: 187 | B197: HEG | C197: 1056.3 | D197: 1060.70 | E197: 1047.45 | F197: 1038.60 | G197: 1025.35 | H197: 1069.55 | I197: 1082.80 | J197: 1091.65 | K197: 1073.95 | L197: 1051.85 | M197: 0.68018
A198: 188 | B198: HCLTECH | C198: 1041.15 | D198: 1043.35 | E198: 1034.20 | F198: 1027.25 | G198: 1018.10 | H198: 1050.30 | I198: 1059.45 | J198: 1066.40 | K198: 1052.5 | L198: 1036.4 | M198: 24.18565
A199: 189 | B199: HDFCAMC | C199: 2074.6 | D199: 2077.60 | E199: 2062.50 | F199: 2050.40 | G199: 2035.30 | H199: 2089.70 | I199: 2104.80 | J199: 2116.90 | K199: 2092.7 | L199: 2065.5 | M199: 1.04592
A200: 190 | B200: HDFCBANK | C200: 1496.7 | D200: 1487.32 | E200: 1476.63 | F200: 1456.57 | G200: 1445.88 | H200: 1507.38 | I200: 1518.07 | J200: 1538.13 | K200: 1498 | L200: 1467.25 | M200: 64.15264
A201: 191 | B201: HDFCLIFE | C201: 540.45 | D201: 537.95 | E201: 534.60 | F201: 528.75 | G201: 525.40 | H201: 543.80 | I201: 547.15 | J201: 553.00 | K201: 541.3 | L201: 532.1 | M201: 16.2535
A202: 192 | B202: HFCL | C202: 82.7 | D202: 81.28 | E202: 79.17 | F202: 75.63 | G202: 73.52 | H202: 84.82 | I202: 86.93 | J202: 90.47 | K202: 83.4 | L202: 77.75 | M202: 425.34639
A203: 193 | B203: HLEGLAS | C203: 658.7 | D203: 656.93 | E203: 647.77 | F203: 636.83 | G203: 627.67 | H203: 667.87 | I203: 677.03 | J203: 687.97 | K203: 666.1 | L203: 646 | M203: 0.50323
A204: 194 | B204: HAPPSTMNDS | C204: 970.35 | D204: 974.07 | E204: 965.28 | F204: 960.22 | G204: 951.43 | H204: 979.13 | I204: 987.92 | J204: 992.98 | K204: 982.85 | L204: 969 | M204: 2.64701
A205: 195 | B205: HATSUN | C205: 957.65 | D205: 951.83 | E205: 943.77 | F205: 929.88 | G205: 921.82 | H205: 965.72 | I205: 973.78 | J205: 987.67 | K205: 959.9 | L205: 937.95 | M205: 0.10394
A206: 196 | B206: HAVELLS | C206: 1216.3 | D206: 1208.13 | E206: 1196.27 | F206: 1176.23 | G206: 1164.37 | H206: 1228.17 | I206: 1240.03 | J206: 1260.07 | K206: 1220 | L206: 1188.1 | M206: 7.18591
... 320 more rows

Sheet Bulk Deals
E6: Back To Main Page
A7: Subject : | B7: BULK DEAL | D7: =Main!B10 -> 2022-11-01
A9: Date | B9: Scrip code | C9: Scrip Name | D9: Client Name | E9: Buy / Sell | F9: Quantity Traded | G9: Trade Price / Wt.Avg.trade price | H9: Exchange
A10: 2022-10-31 | B10: 540615 | C10: 7NR | D10: HARSHA RAJESHBHAI JHAVERI | E10: SELL | F10: 7,832,078 | G10: 1.6 | H10: BSE
A11: 2022-10-31 | B11: 540615 | C11: 7NR | D11: VIKRAMKUMAR KARANRAJ SAKARIA HUF | E11: BUY | F11: 3,217,761 | G11: 1.6 | H11: BSE
A12: 2022-10-31 | B12: 540615 | C12: 7NR | D12: NATVARSINH T CHAVDA . . | E12: BUY | F12: 5,275,027 | G12: 1.59 | H12: BSE
A13: 2022-10-31 | B13: 540615 | C13: 7NR | D13: PRASHANT MUKUNDRAY SHAH | E13: SELL | F13: 2,200,050 | G13: 1.59 | H13: BSE
A14: 2022-10-31 | B14: 540615 | C14: 7NR | D14: PARAG MAMESHKUMARSHAH | E14: BUY | F14: 1,560,000 | G14: 1.6 | H14: BSE
A15: 2022-10-31 | B15: 540788 | C15: ASPIRA | D15: BHARAT SHANKARLAL MANGE | E15: SELL | F15: 51,740 | G15: 42.03 | H15: BSE
A16: 2022-10-31 | B16: 540788 | C16: ASPIRA | D16: ADITYA AGRAWAL | E16: BUY | F16: 83,142 | G16: 42 | H16: BSE
A17: 2022-10-31 | B17: 543211 | C17: BONLON | D17: RAJASTHAN GLOBAL SECURITIES PRIVATE LIMITED | E17: BUY | F17: 75,000 | G17: 74.1 | H17: BSE
A18: 2022-10-31 | B18: 535693 | C18: BRAHMINFRA | D18: SHAH SHARAD KANAYALAL | E18: SELL | F18: 175,000 | G18: 28 | H18: BSE
A19: 2022-10-31 | B19: 543439 | C19: BRANDBUCKT | D19: MILLENNIUM STOCK BROKING PVT LTD | E19: BUY | F19: 16,000 | G19: 29.95 | H19: BSE
A20: 2022-10-31 | B20: 540023 | C20: COLORCHIPS | D20: NEELAM NYATI | E20: BUY | F20: 800,000 | G20: 14.49 | H20: BSE
A21: 2022-10-31 | B21: 540023 | C21: COLORCHIPS | D21: PREETI JAIN | E21: SELL | F21: 600,000 | G21: 14.48 | H21: BSE
A22: 2022-10-31 | B22: 540023 | C22: COLORCHIPS | D22: VINIATO ADVISORS PRIVATE LIMITED | E22: SELL | F22: 700,000 | G22: 14.5 | H22: BSE
A23: 2022-10-31 | B23: 540023 | C23: COLORCHIPS | D23: COLOURSHINE HOSIERY PRIVATE LIMITED | E23: BUY | F23: 1,000,000 | G23: 14.48 | H23: BSE
A24: 2022-10-31 | B24: 542727 | C24: CPML | D24: DARWIN PARSHOTTAM PATEL | E24: SELL | F24: 20,000 | G24: 33.34 | H24: BSE
A25: 2022-10-31 | B25: 538868 | C25: CSL | D25: AMIT KHUTETA | E25: SELL | F25: 25,000 | G25: 42.2 | H25: BSE
A26: 2022-10-31 | B26: 531399 | C26: GGAUTO | D26: MULTIPLIER SHARE & STOCK ADVISORS PRIVATE LIMITED | E26: SELL | F26: 45,000 | G26: 32.65 | H26: BSE
A27: 2022-10-31 | B27: 531399 | C27: GGAUTO | D27: DILIP AMULAKHBHAI TANNA | E27: BUY | F27: 50,000 | G27: 32.67 | H27: BSE
A28: 2022-10-31 | B28: 531737 | C28: GREENCREST | D28: POOJA AMIT GADHIYA | E28: BUY | F28: 750,000 | G28: 2.16 | H28: BSE
A29: 2022-10-31 | B29: 531737 | C29: GREENCREST | D29: KHUSHBU BHAVIN SHAH | E29: SELL | F29: 200,000 | G29: 2.16 | H29: BSE
A30: 2022-10-31 | B30: 531737 | C30: GREENCREST | D30: ADR FINANCIAL SERVICES PRIVATE LIMITED | E30: SELL | F30: 462,830 | G30: 2.16 | H30: BSE
A31: 2022-10-31 | B31: 531737 | C31: GREENCREST | D31: HEMENDRA V SHAH HUF | E31: SELL | F31: 524,770 | G31: 2.16 | H31: BSE
A32: 2022-10-31 | B32: 531737 | C32: GREENCREST | D32: DIYA SARKAR | E32: SELL | F32: 260,000 | G32: 2.16 | H32: BSE
A33: 2022-10-31 | B33: 511628 | C33: IMCAP | D33: DALVINDER SINGH TREHAN | E33: SELL | F33: 39,307 | G33: 120.55 | H33: BSE
A34: 2022-10-31 | B34: 511628 | C34: IMCAP | D34: TIRUPATI CONTAINERS PRIVATE LIMITED | E34: BUY | F34: 39,456 | G34: 120.6 | H34: BSE
A35: 2022-10-31 | B35: 542924 | C35: JANUSCORP | D35: LEMON MANAGEMENT CONSULTANCY PRIVATE LIMITED | E35: SELL | F35: 90,000 | G35: 8.02 | H35: BSE
A36: 2022-10-31 | B36: 542924 | C36: JANUSCORP | D36: SYNEMATIC MEDIA AND CONSULTING PRIVATE LIMITED | E36: BUY | F36: 87,000 | G36: 8.02 | H36: BSE
A37: 2022-10-31 | B37: 530357 | C37: KBSINDIA | D37: JINESH ASHWIN MATALIA | E37: BUY | F37: 50,000 | G37: 60 | H37: BSE
A38: 2022-10-31 | B38: 530357 | C38: KBSINDIA | D38: SAIRAM INFRATRADE LLP | E38: BUY | F38: 50,000 | G38: 60 | H38: BSE
A39: 2022-10-31 | B39: 530357 | C39: KBSINDIA | D39: NAKSHATRA GARMENTS PRIVATE LIMITED | E39: BUY | F39: 50,000 | G39: 60 | H39: BSE
A40: 2022-10-31 | B40: 530357 | C40: KBSINDIA | D40: GOYENKA REAL ESTATE LLP | E40: SELL | F40: 150,000 | G40: 60 | H40: BSE
A41: 2022-10-31 | B41: 540696 | C41: KCDGROUP | D41: POONAM ASHOK TIWARI | E41: SELL | F41: 10,488 | G41: 54.82 | H41: BSE
A42: 2022-10-31 | B42: 540696 | C42: KCDGROUP | D42: YUVIKA TRADEWING LLP | E42: BUY | F42: 12,306 | G42: 55.23 | H42: BSE
A43: 2022-10-31 | B43: 543624 | C43: MAAGHADV | D43: MULTIPLIER SHARE & STOCK ADVISORS PRIVATE LIMITED | E43: SELL | F43: 34,000 | G43: 49.12 | H43: BSE
A44: 2022-10-31 | B44: 543613 | C44: MAFIA | D44: RESHMA VIPULKUMAR SHAH | E44: BUY | F44: 28,000 | G44: 27.16 | H44: BSE
A45: 2022-10-31 | B45: 543613 | C45: MAFIA | D45: LINTON TRADERS PRIVATE LIMITED | E45: SELL | F45: 76,000 | G45: 26.18 | H45: BSE
A46: 2022-10-31 | B46: 543613 | C46: MAFIA | D46: PRABHAT VISHNUSOMANI SOMANI | E46: SELL | F46: 4,000 | G46: 27.9 | H46: BSE
A47: 2022-10-31 | B47: 543613 | C47: MAFIA | D47: PRABHAT VISHNUSOMANI SOMANI | E47: BUY | F47: 32,000 | G47: 26.19 | H47: BSE
A48: 2022-10-31 | B48: 540080 | C48: NARAYANI | D48: SYKES AND RAY EQUITIES (INDIA) LIMITED | E48: BUY | F48: 3,000 | G48: 63.05 | H48: BSE
A49: 2022-10-31 | B49: 540080 | C49: NARAYANI | D49: YAMINI GOYAL | E49: BUY | F49: 4,129 | G49: 63.05 | H49: BSE
A50: 2022-10-31 | B50: 540080 | C50: NARAYANI | D50: RIKHAV SECURITIES LIMITED | E50: SELL | F50: 12,000 | G50: 63.05 | H50: BSE
A51: 2022-10-31 | B51: 540080 | C51: NARAYANI | D51: PARESH DHIRAJLAL SHAH | E51: BUY | F51: 5,000 | G51: 63.05 | H51: BSE
A52: 2022-10-31 | B52: 540080 | C52: NARAYANI | D52: PARESH DHIRAJLAL SHAH | E52: SELL | F52: 15 | G52: 63.05 | H52: BSE
A53: 2022-10-31 | B53: 543305 | C53: NAVODAYENT | D53: SYNEMATIC MEDIA AND CONSULTING PRIVATE LIMITED | E53: SELL | F53: 66,000 | G53: 11.66 | H53: BSE
A54: 2022-10-31 | B54: 543305 | C54: NAVODAYENT | D54: BALARAM PRADHAN | E54: BUY | F54: 24,000 | G54: 11.66 | H54: BSE
A55: 2022-10-31 | B55: 507864 | C55: PIONRINV | D55: VSS IRON AND MINERALS PRIVATE LIMITED | E55: BUY | F55: 150,000 | G55: 42.3 | H55: BSE
A56: 2022-10-31 | B56: 507864 | C56: PIONRINV | D56: AGANTUK PROPERTIES PRIVATE LIMITED | E56: SELL | F56: 150,271 | G56: 42.3 | H56: BSE
A57: 2022-10-31 | B57: 526773 | C57: PRESSURS | D57: SPS MULTI-COMMODITY LLP | E57: BUY | F57: 97,452 | G57: 88.34 | H57: BSE
A58: 2022-10-31 | B58: 530111 | C58: RAJPACK | D58: TINA JAIN | E58: BUY | F58: 51,681 | G58: 42.77 | H58: BSE
A59: 2022-10-31 | B59: 530111 | C59: RAJPACK | D59: MADANCHAND PRASAN CHAND | E59: SELL | F59: 40,000 | G59: 42.78 | H59: BSE
A60: 2022-10-31 | B60: 538540 | C60: RLFL | D60: RAJAT SINGH | E60: SELL | F60: 356,000 | G60: 1.32 | H60: BSE
A61: 2022-10-31 | B61: 543622 | C61: STML | D61: VINOD SOMANI HUF | E61: SELL | F61: 81,600 | G61: 235.61 | H61: BSE
A62: 2022-10-31 | B62: 543622 | C62: STML | D62: VINOD SOMANI HUF | E62: BUY | F62: 1,200 | G62: 232 | H62: BSE
A63: 2022-10-31 | B63: 511447 | C63: SYLPH | D63: ABHINAV COMMOSALES | E63: SELL | F63: 159,650 | G63: 15.42 | H63: BSE
A64: 2022-10-31 | B64: 511447 | C64: SYLPH | D64: ZEEL SANJAY SONI | E64: BUY | F64: 278,315 | G64: 15.44 | H64: BSE
A65: 2022-10-31 | B65: 511447 | C65: SYLPH | D65: ZEEL SANJAY SONI | E65: SELL | F65: 5,000 | G65: 15.4 | H65: BSE
A66: 2022-10-31 | B66: 539278 | C66: SYMBIOX | D66: SATGURU TRADING | E66: SELL | F66: 310,000 | G66: 12.82 | H66: BSE
A67: 2022-10-31 | B67: 539278 | C67: SYMBIOX | D67: MYRA APPARELS PRIVATE LIMITED . | E67: SELL | F67: 480,000 | G67: 12.82 | H67: BSE
A68: 2022-10-31 | B68: 539278 | C68: SYMBIOX | D68: SW CAPITAL PRIVATE LIMITED | E68: SELL | F68: 194,196 | G68: 12.82 | H68: BSE
A69: 2022-10-31 | B69: 539278 | C69: SYMBIOX | D69: SHANTABEN DAYASAKAR DAVE | E69: SELL | F69: 685,504 | G69: 12.82 | H69: BSE
A70: 2022-10-31 | B70: 539278 | C70: SYMBIOX | D70: SHANTABEN DAYASAKAR DAVE | E70: BUY | F70: 307,522 | G70: 12.82 | H70: BSE
A71: 2022-10-31 | B71: 539278 | C71: SYMBIOX | D71: JABIR MOHD SILAWAT | E71: BUY | F71: 300,000 | G71: 12.82 | H71: BSE
A72: 2022-10-31 | B72: 539278 | C72: SYMBIOX | D72: SWAPNA SINGH | E72: SELL | F72: 308,261 | G72: 12.82 | H72: BSE
A73: 2022-10-31 | B73: 540252 | C73: VSL | D73: YACOOBALI AIYUB MOHAMMED | E73: SELL | F73: 368,039 | G73: 19.57 | H73: BSE
A74: 2022-10-31 | B74: 540252 | C74: VSL | D74: YACOOBALI AIYUB MOHAMMED | E74: BUY | F74: 315,595 | G74: 19.45 | H74: BSE
A75: 2022-10-31 | B75: JAIPURKURT | C75: Nandani Creation Limited | D75: ZYANA STOCKS AND COMMODITIES | E75: BUY | F75: 100,000 | G75: 77.35 | H75: NSE
A76: 2022-10-31 | B76: JAIPURKURT | C76: Nandani Creation Limited | D76: L7 HITECH PRIVATE LIMITED | E76: BUY | F76: 150,000 | G76: 78 | H76: NSE
A77: 2022-10-31 | B77: JAIPURKURT | C77: Nandani Creation Limited | D77: KISHAN GOPAL MOHTA | E77: BUY | F77: 75,000 | G77: 77.3 | H77: NSE
A78: 2022-10-31 | B78: JAIPURKURT | C78: Nandani Creation Limited | D78: DIWAKAR SHARMA | E78: BUY | F78: 62,500 | G78: 78 | H78: NSE
A79: 2022-10-31 | B79: JAIPURKURT | C79: Nandani Creation Limited | D79: GAURISHANKAR JHALANI | E79: BUY | F79: 62,500 | G79: 77.5 | H79: NSE
A80: 2022-10-31 | B80: JAIPURKURT | C80: Nandani Creation Limited | D80: UPHAR HOMFIN PRIVATE LIMITED | E80: BUY | F80: 62,500 | G80: 77.5 | H80: NSE
A81: 2022-10-31 | B81: JAIPURKURT | C81: Nandani Creation Limited | D81: BHARAT MANTRI | E81: BUY | F81: 62,500 | G81: 78 | H81: NSE
A82: 2022-10-31 | B82: MAKS | C82: Maks Energy Sol India Ltd | D82: VINOD SOMANI HUF | E82: BUY | F82: 36,000 | G82: 43.53 | H82: NSE
A83: 2022-10-31 | B83: MITTAL | C83: Mittal Life Style Limited | D83: GOVIND RAM PATODIA | E83: BUY | F83: 1,150,000 | G83: 11.63 | H83: NSE
A84: 2022-10-31 | B84: RAMASTEEL | C84: Rama Steel Tubes Limited | D84: SW CAPITAL PRIVATE LIMITED | E84: BUY | F84: 583,289 | G84: 155.93 | H84: NSE
A85: 2022-10-31 | B85: TFCILTD | C85: Tourism Finance Corp | D85: RAJASTHAN GLOBAL SECURITIES PVT LTD | E85: BUY | F85: 670,958 | G85: 82.69 | H85: NSE
A86: 2022-10-31 | B86: TFCILTD | C86: Tourism Finance Corp | D86: M/S. PRARTHANA ENTERPRISES | E86: BUY | F86: 14,000 | G86: 84.65 | H86: NSE
A87: 2022-10-31 | B87: BLUECHIP | C87: Blue Chip India Ltd | D87: PURSHOTTAM AGARWAL | E87: SELL | F87: 302,840 | G87: 0.34 | H87: NSE
A88: 2022-10-31 | B88: GODHA | C88: Godha Cabcon Insulat Ltd | D88: SPARKLE SECURITIES SOLUTIONS PRIVATE LIMITED | E88: SELL | F88: 1,300,000 | G88: 2.65 | H88: NSE
A89: 2022-10-31 | B89: JAIPURKURT | C89: Nandani Creation Limited | D89: VANDNA MUNDRA | E89: SELL | F89: 436,000 | G89: 77.74 | H89: NSE
A90: 2022-10-31 | B90: JAIPURKURT | C90: Nandani Creation Limited | D90: SUNITA DEVI MUNDHRA | E90: SELL | F90: 194,000 | G90: 78.03 | H90: NSE
A91: 2022-10-31 | B91: JAIPURKURT | C91: Nandani Creation Limited | D91: ANUJ MUNDRA | E91: SELL | F91: 444,000 | G91: 77.4 | H91: NSE
A92: 2022-10-31 | B92: JAIPURKURT | C92: Nandani Creation Limited | D92: DWARKA DASS MUNDHRA | E92: SELL | F92: 75,000 | G92: 79.97 | H92: NSE
A93: 2022-10-31 | B93: MITTAL | C93: Mittal Life Style Limited | D93: CHOICE EQUITY BROKING PRIVATE LIMITED | E93: SELL | F93: 1,150,000 | G93: 11.63 | H93: NSE
A94: 2022-10-31 | B94: RAMASTEEL | C94: Rama Steel Tubes Limited | D94: SW CAPITAL PRIVATE LIMITED | E94: SELL | F94: 492,653 | G94: 157.75 | H94: NSE
A95: 2022-10-31 | B95: TFCILTD | C95: Tourism Finance Corp | D95: M/S. PRARTHANA ENTERPRISES | E95: SELL | F95: 460,270 | G95: 82.73 | H95: NSE

Sheet Call Tracker (Equity & F&O)
M5: Back To Main Page
A6: Retail Research Technical Calls & Fundamental Performance Report for the month of Oct-2022
M7: =Main!B10 -> 2022-11-01
B8: Positional Call
A9: Sr.no | B9: Date | D9: Company | E9: Rec | F9: Rec Price | G9: Stop Loss*** | H9: Call Closed At | I9: Target | J9: Remark | K9: Profit / Loss per Share | L9: All charges | M9: Net Gain / Loss % | N9: Status | O9: Closed Date | P9: Market Closing Price
A10: 1 | B10: 2022-09-06 | D10: COLPAL | E10: Buy | F10: 1610-1640 | G10: 1535 | I10: 1750-1800 | J10: Open | R10: H
A11: 2 | B11: 2022-09-12 | D11: GMMPFAUDLR | E11: Buy | F11: 1915 | G11: 1800 | H11: 1995 | I11: 2050-2150 | J11: Part profit of Rs.80/- | K11: =H11-F11 -> 80 | L11: =(F11*-0.7)/100 -> -13.41 | M11: =(K11+L11)/F11 -> 3.48% | N11: Successful | O11: 2022-09-13 | R11: N
A12: 3 | B12: 2022-09-19 | D12: BALKRISIND | E12: Buy | F12: 1900-1930 | G12: 1780 | I12: 2100-2200 | J12: Open | R12: H
A13: 4 | B13: 2022-09-20 | D13: MINDTREE | E13: Buy | F13: 3170 | G13: 2940 | H13: 3380 | I13: 3400-3600 | J13: Profit of Rs.210/- | K13: =H13-F13 -> 210 | L13: =(F13*-0.7)/100 -> -22.19 | M13: =(K13+L13)/F13 -> 5.92% | N13: Successful | O13: 2022-10-11 | R13: H
A14: 5 | B14: 2022-09-26 | D14: PIIND | E14: Buy | F14: 2995 | G14: 2740 | H14: 3175 | I14: 3300-3500 | J14: Profit of Rs.180/- | K14: 180 | L14: =(F14*-0.7)/100 -> -20.97 | M14: 5.31% | N14: Successful | O14: 2022-10-27 | R14: H
A15: 6 | B15: 2022-09-26 | D15: REDINGTON | E15: Buy | F15: 138 | G15: 129 | H15: 145 | I15: 150-160 | J15: Profit of Rs.7/- | K15: =H15-F15 -> 7 | L15: =(F15*-0.7)/100 -> -0.97 | M15: =(K15+L15)/F15 -> 4.37% | N15: Successful | O15: 2022-10-04 | R15: H
A16: 7 | B16: 2022-09-27 | D16: IGL | E16: Buy | F16: 406 | G16: 379 | H16: 399 | I16: 440-460 | J16: Loss of Rs.7 | K16: =H16-F16 -> -7 | L16: =(F16*-0.07)/100 -> -0.28 | M16: =(K16+L16)/F16 -> -1.79% | N16: Unsuccessful | O16: 2022-10-10 | R16: H
A17: 8 | B17: 2022-09-30 | D17: VTL | E17: Buy | F17: 325 | G17: 298 | H17: 346 | I17: 360-390 | J17: Profit of Rs.21/- | K17: =H17-F17 -> 21 | L17: =(F17*-0.4)/100 -> -1.30 | M17: =(K17+L17)/F17 -> 6.06% | N17: Successful | O17: 2022-10-06 | R17: H
A18: 9 | B18: 2022-10-06 | D18: ICICIGI | E18: Buy | F18: 1145-1165 | G18: 1075 | I18: 1250-1300 | J18: Open | R18: H
A19: 10 | B19: 2022-10-06 | D19: BATAINDIA | E19: Buy | F19: 1795-1815 | G19: 1690 | I19: 1920-2000 | J19: Open | R19: H
A20: 11 | B20: 2022-10-10 | D20: KPITTECH | E20: Buy | F20: 655 | G20: 615 | H20: 701.5 | I20: 700-720 | J20: Profit of Rs.46.5/- | K20: =H20-F20 -> 46.5 | L20: =(F20*-0.7)/100 -> -4.59 | M20: =(K20+L20)/F20 -> 6.40% | N20: Successful | O20: 2022-10-21 | R20: H
A21: 12 | B21: 2022-10-11 | D21: REDINGTON | E21: Buy | F21: 137-139 | G21: 127 | I21: 150-160 | J21: Open | R21: H
A22: 13 | B22: 2022-10-12 | D22: BEL | E22: Buy | F22: 101 | G22: 94 | H22: 107 | I22: 110-115 | J22: Profit of Rs.6/- | K22: =H22-F22 -> 6 | L22: =(F22*-0.7)/100 -> -0.71 | M22: =(K22+L22)/F22 -> 5.24% | N22: Successful | O22: 2022-10-19 | R22: H
A23: 14 | B23: 2022-10-14 | D23: BALAMINES | E23: Buy | F23: 3040-3070 | G23: 2795 | I23: 3400-3600 | J23: Open | R23: H
A24: 15 | B24: 2022-10-18 | D24: MINDTREE | E24: Buy | F24: 3340-3380 | G24: 3180 | I24: 3600-3700 | J24: Open | R24: H
A25: 16 | B25: 2022-10-21 | D25: KIMS | E25: Buy | F25: 1410 | G25: 1320 | H25: 1475 | I25: 1550-1600 | J25: Part profit of Rs.65/- | K25: =H25-F25 -> 65 | L25: =(F25*-0.7)/100 -> -9.87 | M25: =(K25+L25)/F25 -> 3.91% | N25: Successful | O25: 2022-10-31 | R25: N
A26: 17 | B26: 2022-10-27 | D26: ASHOKLEY | E26: Buy | F26: 146-148 | G26: 137 | I26: 160-170 | J26: Open | R26: N
A27: 18 | B27: 2022-10-27 | D27: VTL | E27: Buy | F27: 336-338 | G27: 310 | I27: 360-390 | J27: Open | R27: H
A28: 19 | B28: 2022-10-31 | D28: AFFLE | E28: Buy | F28: 1150-1158 | G28: 1090 | I28: 1250-1300 | J28: Open | R28: H
A32: CLBS = Closing Basis ***
A33: Dividend adjusted <> | F33: Reinitiated $
A34: Part book {} | D34: s | F34: Revised stoploss #
B36: Momentum Call
A37: Sr.no | B37: Date | D37: Company | E37: Rec | F37: Rec Price | G37: Stop Loss | H37: Call Closed At | I37: Target | J37: Remark | K37: Profit / Loss per Share/Lot | L37: All charges | M37: Net Gain / Loss % | N37: Status | O37: Closed Date
A38: 1 | B38: 2022-09-27 | D38: TCS | E38: Buy | F38: 3005 | G38: 2890 | H38: 3095 | I38: 3120-3200 | J38: Profit of Rs.90/- | K38: =H38-F38 -> 90 | L38: =(F38*-0.7)/100 -> -21.04 | M38: =(K38+L38)/F38 -> 2.30% | N38: Successful | O38: 2022-10-04 | R38: H
A39: 2 | B39: 2022-09-29 | D39: LTI | E39: Buy | F39: 4520 | G39: 4395 | H39: 4650 | I39: 4650-4750 | J39: Profit of Rs.130/- | K39: =H39-F39 -> 130 | L39: =(F39*-0.7)/100 -> -31.64 | M39: =(K39+L39)/F39 -> 2.18% | N39: Successful | O39: 2022-10-06 | R39: H
A40: 3 | B40: 2022-09-29 | D40: ICICIBANK | E40: Buy | F40: 849 | G40: 825 | H40: 871.5 | I40: 880-900 | J40: Profit of Rs.22.5/- | K40: =H40-F40 -> 22.5 | L40: =(F40*-0.7)/100 -> -5.94 | M40: =(K40+L40)/F40 -> 1.95% | N40: Successful | O40: 2022-10-04 | R40: H
A41: 4 | B41: 2022-09-30 | D41: COALINDIA | E41: Buy | F41: 214.5 | G41: 207 | H41: 220 | I41: 224-230 | J41: Profit of Rs.5.5/- | K41: 5.5 | L41: =(F41*-0.7)/100 -> -1.50 | M41: 1.86% | N41: Successful | O41: 2022-10-04 | R41: H
A42: 5 | B42: 2022-09-30 | D42: BIRLACORPN | E42: Buy | F42: 962 | G42: 927 | H42: 927 | I42: 1010-1030 | J42: Loss of Rs.35/- | K42: =H42-F42 -> -35 | L42: =(F42*-0.7)/100 -> -6.73 | M42: =(K42+L42)/F42 -> -4.34% | N42: Unsuccessful | O42: 2022-10-10 | R42: N
A43: 6 | B43: 2022-10-07 | D43: JUBLINGREA | E43: Buy | F43: 548 | G43: 530 | H43: 559 | I43: 570-590 | J43: Profit of Rs.11/- | K43: =H43-F43 -> 11 | L43: =(F43*-0.07)/100 -> -0.38 | M43: =(K43+L43)/F43 -> 1.94% | N43: Successful | O43: 2022-10-07 | R43: H
A44: 7 | B44: 2022-10-07 | D44: JUBLINGREA | E44: Buy | F44: 546 | G44: 529 | H44: 555 | I44: 570-590 | J44: Profit of Rs.9/- | K44: =H44-F44 -> 9 | L44: =(F44*-0.7)/100 -> -3.82 | M44: =(K44+L44)/F44 -> 0.95% | N44: Successful | O44: 2022-10-10 | R44: H
A45: 8 | B45: 2022-10-07 | D45: ASTRAL | E45: Buy | F45: 2250 | G45: 2185 | H45: 2185 | I45: 2350-2400 | J45: Loss of Rs.65/- | K45: -65 | L45: -15.75 | M45: -3.59% | N45: Unsuccessful | O45: 2022-10-11 | R45: H
A46: 9 | B46: 2022-10-12 | D46: BHARTIARTL | E46: Buy | F46: 775.5 | G46: 750 | H46: 796 | I46: 810-830 | J46: Profit of Rs.20.5/- | K46: 20.5 | L46: -5.43 | M46: 1.94% | N46: Successful | O46: 2022-10-21 | R46: H
A47: 10 | B47: 2022-10-12 | D47: ICICIBANK | E47: Buy | F47: 862.5 | G47: 837 | H47: 886.5 | I47: 890-910 | J47: Profit of Rs.24/- | K47: =H47-F47 -> 24 | L47: -6.04 | M47: =(K47+L47)/F47 -> 2.08% | N47: Successful | O47: 2022-10-17 | R47: H
A48: 11 | B48: 2022-10-13 | D48: JUBLINGREA | E48: Buy | F48: 538 | G48: 523 | H48: 523 | I48: 560-580 | J48: Loss of Rs.15/- | K48: -15 | L48: -3.77 | M48: -3.49% | N48: Unsuccessful | O48: 2022-10-17 | R48: H
A49: 12 | B49: 2022-10-19 | D49: CARBORUNIV | E49: Buy | F49: 871 | G49: 845 | H49: 845 | I49: 900-920 | J49: Loss of Rs.26/- | K49: =H49-F49 -> -26 | L49: -6.10 | M49: =(K49+L49)/F49 -> -3.69% | N49: Unsuccessful | O49: 2022-10-31 | R49: H
A50: 13 | B50: 2022-10-19 | D50: TATACONSUM | E50: Buy | F50: 770-774 | G50: 750 | I50: 800-820 | J50: Open | R50: H
A51: 14 | B51: 2022-10-19 | D51: ULTRACEMCO | E51: Buy | F51: 6360 | G51: 6140 | H51: 6542.5 | I51: 6700-6800 | J51: Profit of Rs.182.5/- | K51: =H51-F51 -> 182.5 | L51: =(F51*-0.7)/100 -> -44.52 | M51: =(K51+L51)/F51 -> 2.17% | N51: Successful | O51: 2022-10-31 | R51: H
A54: CLBS = Closing Basis *** | H54: *
A55: Dividend adjusted <> | F55: Reinitiated $
F56: Revised stoploss #
A58: Master Trade High Risk
A59: Sr.no | B59: Date | D59: Company | E59: Rec | F59: Rec Price | G59: Stop Loss | H59: Call Closed At | I59: Target | J59: Remark | K59: Profit / Loss per share | L59: All charges | M59: Gain / Loss per Lot | N59: Lot | O59: Status | P59: Closed Date
A60: 1 | B60: 2022-09-30 | D60: VOLTAS OCT FUT | E60: Sell | F60: 911 | G60: 936 | H60: 895 | I60: 880-870 | J60: Profit of Rs 16/- | K60: =F60-H60 -> 16 | L60: =(H60*N60)*0.07% -> 313.25 | M60: =(K60*N60)-L60 -> 7686.8 | N60: 500 | O60: Successful | P60: 2022-10-03 | R60: N
A61: 2 | B61: 2022-09-30 | D61: SBILIFE OCT FUT | E61: Sell | F61: 1258 | G61: 1276 | H61: 1245 | I61: 1235-1220 | J61: Profit of Rs 13/- | K61: =F61-H61 -> 13 | L61: 653.63 | M61: 9096.4 | N61: 750 | O61: Successful | P61: 2022-10-03 | R61: H
A62: 3 | B62: 2022-09-30 | D62: HCLTECH OCT FUT | E62: Buy | F62: 925 | G62: 905 | H62: 937.5 | I62: 950-970 | J62: Profit of Rs.12.50/- | K62: =H62-F62 -> 12.5 | L62: 459.38 | M62: 8290.6 | N62: 700 | O62: Successful | P62: 2022-10-04 | R62: H
A63: 4 | B63: 2022-09-30 | D63: RELIANCE OCT FUT | E63: Buy | F63: 2400 | G63: 2345 | H63: 2435 | I63: 2460-2500 | J63: Profit of Rs.35/- | K63: =H63-F63 -> 35 | L63: =(H63*N63)*0.07% -> 426.13 | M63: =(K63*N63)-L63 -> 8323.9 | N63: 250 | O63: Successful | P63: 2022-10-06 | R63: H
A64: 5 | B64: 2022-10-03 | D64: TECHM OCT FUT | E64: Buy | F64: 1006.5 | G64: 987 | H64: 1019.5 | I64: 1030-1050 | J64: Profit of Rs.13/- | K64: =H64-F64 -> 13 | L64: =(H64*N64)*0.07% -> 428.19 | M64: =(K64*N64)-L64 -> 7371.8 | N64: 600 | O64: Successful | P64: 2022-10-03 | R64: H
A65: 6 | B65: 2022-10-03 | D65: SUNPHARMA OCT FUT | E65: Buy | F65: 948 | G65: 928 | H65: 957.5 | I65: 970-980 | J65: Profit of Rs.9.5/- | K65: =H65-F65 -> 9.5 | L65: =(H65*N65)*0.07% -> 469.18 | M65: =(K65*N65)-L65 -> 6180.8 | N65: 700 | O65: Successful | P65: 2022-10-06 | R65: H
A66: 7 | B66: 2022-10-04 | D66: GSPL OCT FUT | E66: Buy | F66: 229.5 | G66: 224.5 | H66: 224.5 | I66: 236-242 | J66: Loss of Rs.5/- | K66: =H66-F66 -> -5 | L66: =(H66*N66)*0.07% -> 392.88 | M66: =(K66*N66)-L66 -> -12892.9 | N66: 2500 | O66: Unsuccessful | P66: 2022-10-04 | R66: N
A67: 8 | B67: 2022-10-04 | D67: VOLTAS OCT FUT | E67: Sell | F67: 926 | G67: 954 | H67: 926 | I67: 900-880 | J67: No profit no loss | K67: =F67-H67 -> 0 | L67: 324.10 | M67: -324.1 | N67: 500 | O67: Neutral | P67: 2022-10-06 | R67: N
A68: 9 | B68: 2022-10-04 | D68: SBILIFE OCT FUT | E68: Sell | F68: 1266.5 | G68: 1286 | H68: 1266.5 | I68: 1245-1230 | J68: No profit no loss | K68: =F68-H68 -> 0 | L68: 664.91 | M68: -664.9 | N68: 750 | O68: Neutral | P68: 2022-10-06 | R68: H
A69: 10 | B69: 2022-10-04 | D69: APOLLOHOSP OCT FUT | E69: Buy | F69: 4420 | G69: 4310 | H69: 4310 | I69: 4530-4600 | J69: Loss of Rs.110/- | K69: =H69-F69 -> -110 | L69: =(H69*N69)*0.07% -> 377.13 | M69: =(K69*N69)-L69 -> -14127.1 | N69: 125 | O69: Unsuccessful | P69: 2022-10-10 | R69: N
A70: 11 | B70: 2022-10-06 | D70: ACC OCT FUT | E70: Buy | F70: 2290 | G70: 2340 | H70: 2340 | I70: 2440-2470 | J70: Loss of Rs.50/- | K70: 50 | L70: 409.50 | M70: 12090.5 | N70: 250 | O70: Unsuccessful | P70: 2022-10-11 | R70: N
A71: 12 | B71: 2022-10-06 | D71: HDFCLIFE OCT FUT | E71: Buy | F71: 534 | G71: 523 | H71: 523 | I71: 550-560 | J71: Loss of Rs.11/- | K71: =H71-F71 -> -11 | L71: =(H71*N71)*0.07% -> 402.71 | M71: =(K71*N71)-L71 -> -12502.7 | N71: 1100 | O71: Unsuccessful | P71: 2022-10-10 | R71: H
A72: 13 | B72: 2022-10-07 | D72: NIFTY OCT FUT | E72: Buy | F72: 17250 | G72: 17140 | H72: 17350 | I72: 17400-17500 | J72: Profit of Rs.100/- | K72: =H72-F72 -> 100 | L72: =(H72*N72)*0.07% -> 607.25 | M72: =(K72*N72)-L72 -> 4392.8 | N72: 50 | O72: Successful | P72: 2022-10-07 | R72: H
A73: 14 | B73: 2022-10-07 | D73: UPL OCT FUT | E73: Buy | F73: 695 | G73: 684 | H73: 684 | I73: 710-720 | J73: Loss of Rs.11/- | K73: -11 | L73: 574.56 | M73: -13774.6 | N73: 1200 | O73: Unsuccessful | P73: 2022-10-10 | R73: H
A74: 15 | B74: 2022-10-07 | D74: LUPIN OCT FUT | E74: Buy | F74: 724 | G74: 710 | H74: 710 | I74: 740-750 | J74: Loss of Rs.14/- | K74: =H74-F74 -> -14 | L74: =(H74*N74)*0.07% -> 422.45 | M74: =(K74*N74)-L74 -> -12322.5 | N74: 850 | O74: Unsuccessful | P74: 2022-10-10 | R74: N
A75: 16 | B75: 2022-10-10 | D75: SIEMENS OCT FUT | E75: Buy | F75: 2792.5 | G75: 2745 | H75: 2750 | I75: 2850-2870 | J75: Loss of Rs.42.5/- | K75: -42.5 | L75: 529.38 | M75: -12216.9 | N75: 275 | O75: Unsuccessful | P75: 2022-10-11 | R75: N
A76: 17 | B76: 2022-10-10 | D76: RELIANCE OCT FUT | E76: Buy | F76: 2392.5 | G76: 2340 | H76: 2426.5 | I76: 2460-2500 | J76: Profit of Rs.34/- | K76: 34 | L76: 424.64 | M76: 8075.4 | N76: 250 | O76: Successful | P76: 2022-10-18 | R76: H
A77: 18 | B77: 2022-10-10 | D77: COLPAL OCT FUT | E77: Buy | F77: 1577.5 | G77: 1540 | H77: 1584 | I77: 1620-1640 | J77: Profit of Rs.6.5/- | K77: 6.5 | L77: 388.08 | M77: 1886.9 | N77: 350 | O77: Successful | P77: 2022-10-20 | R77: H
A78: 19 | B78: 2022-10-18 | D78: CROMPTON OCT FUT | E78: Buy | F78: 381 | G78: 372 | H78: 387 | I78: 390-395 | J78: Profit of Rs.6/- | K78: =H78-F78 -> 6 | L78: =(H78*N78)*0.07% -> 406.35 | M78: =(K78*N78)-L78 -> 8593.7 | N78: 1500 | O78: Successful | P78: 2022-10-18 | R78: N
A79: 20 | B79: 2022-10-18 | D79: TECHM OCT FUT | E79: Buy | F79: 1021 | G79: 998 | H79: 1036 | I79: 1050-1060 | J79: Profit of Rs.15/- | K79: 15 | L79: 435.12 | M79: 8564.9 | N79: 600 | O79: Successful | P79: 2022-10-20 | R79: N
A80: 21 | B80: 2022-10-19 | D80: CROMPTON OCT FUT | E80: Buy | F80: 381.5 | G80: 372 | H80: 372 | I80: 395-400 | J80: Loss of Rs.9.5/- | K80: -9.5 | L80: 390.60 | M80: -14640.6 | N80: 1500 | O80: Unsuccessful | P80: 2022-10-25 | R80: N
A81: 22 | B81: 2022-10-19 | D81: ICICIGI OCT FUT | E81: Buy | F81: 1141 | G81: 1114 | H81: 1157 | I81: 1170-1190 | J81: Profit of Rs.16/- | K81: =H81-F81 -> 16 | L81: =(H81*N81)*0.07% -> 344.21 | M81: =(K81*N81)-L81 -> 6455.8 | N81: 425 | O81: Successful | P81: 2022-10-25 | R81: H
A82: 23 | B82: 2022-10-21 | D82: HDFCBANK OCT FUT | E82: Buy | F82: 1436 | G82: 1412 | H82: 1464.5 | I82: 1470-1485 | J82: Profit of Rs.28.5/- | K82: =H82-F82 -> 28.5 | L82: =(H82*N82)*0.07% -> 563.83 | M82: =(K82*N82)-L82 -> 15111.2 | N82: 550 | O82: Successful | P82: 2022-10-24 | R82: H
A83: 24 | B83: 2022-10-27 | D83: BHARTIARTL NOV FUT | E83: Buy | F83: 813.5 | G83: 799 | H83: 822 | I83: 830-845 | J83: Profit of Rs.8.5/- | K83: =H83-F83 -> 8.5 | L83: =(H83*N83)*0.07% -> 546.63 | M83: =(K83*N83)-L83 -> 7528.4 | N83: 950 | O83: Successful | P83: 2022-10-31 | R83: H
A84: 25 | B84: 2022-10-28 | D84: SBIN NOV FUT | E84: Buy | F84: 576-578 | G84: 568 | I84: 590-600 | J84: Open | R84: H
A85: 26 | B85: 2022-10-31 | D85: NIFTY NOV FUT | E85: Sell | F85: 17980-17990 | G85: 18155 | I85: 17700-17500 | J85: Open | R85: H
A91: Master Trade Medium Risk
A92: Sr.no | B92: Date | D92: Company | E92: Rec | F92: Rec Price | G92: Stop Loss | H92: Call Closed At | I92: Target | J92: Remark | K92: Profit/ Loss per lot | L92: All charges | M92: Gain / Loss per Lot | N92: Lot | O92: Status | P92: Closed Date
A93: 1 | B93: 2022-10-10 | D93: INFY 1460 CE OCT | E93: Buy | F93: 30.5 | G93: 13 | H93: 36 | I93: 50-60 | J93: Profit of Rs.5.5/- | K93: =H93-F93 -> 5.5 | L93: 100.00 | M93: =(K93*N93)-L93 -> 1550.0 | N93: 300 | O93: Successful | P93: 2022-10-10 | R93: H
A94: 2 | B94: 2022-10-10 | D94: TATACONSUM OCT 780 CE | E94: Buy | F94: 14.5 | G94: 9 | H94: 9 | I94: 20-23 | J94: Loss of Rs.5.5/- | K94: =H94-F94 -> -5.5 | L94: 100.00 | M94: =(K94*N94)-L94 -> -5050.0 | N94: 900 | O94: Unsuccessful | P94: 2022-10-11 | R94: H
A95: 3 | B95: 2022-10-10 | D95: AMARAJABAT OCT 500 CE | E95: Buy | F95: 12.5 | G95: 7.5 | H95: 7.75 | I95: 18-22.0 | J95: Loss of Rs.4.75/- | K95: =H95-F95 -> -4.75 | L95: 100.00 | M95: =(K95*N95)-L95 -> -4850.0 | N95: 1000 | O95: Unsuccessful | P95: 2022-10-12 | R95: N
A96: 4 | B96: 2022-10-11 | D96: ICICIGI OCT 1160 CE | E96: Buy | F96: 28 | G96: 15 | H96: 31 | I96: 40-50 | J96: Profit of Rs.3/- | K96: 3 | L96: 100.00 | M96: 1175.0 | N96: 425 | O96: Successful | P96: 2022-10-19 | R96: H
A97: 5 | B97: 2022-10-11 | D97: INFY 1460 CE 29-SEP | E97: Buy | F97: 30.5 | G97: 13 | H97: 42.5 | I97: 55-65 | J97: Profit of Rs.12/- | K97: =H97-F97 -> 12 | L97: 100.00 | M97: =(K97*N97)-L97 -> 3500.0 | N97: 300 | O97: Successful | P97: 2022-10-14 | R97: H
A98: 6 | B98: 2022-10-11 | D98: NIFTY 17200 CE 13-OCT | E98: Buy | F98: 72 | G98: 30 | H98: 30 | I98: 120-150 | J98: Loss of Rs.42/- | K98: =H98-F98 -> -42 | L98: 100.00 | M98: =(K98*N98)-L98 -> -2200.0 | N98: 50 | O98: Unsuccessful | P98: 2022-10-12 | R98: N
A99: 7 | B99: 2022-10-11 | D99: LUPIN 700 CE OCT | E99: Buy | F99: 16 | G99: 10.5 | H99: 10.5 | I99: 22-26 | J99: Loss of Rs.5.5/- | K99: =H99-F99 -> -5.5 | L99: 100.00 | M99: =(K99*N99)-L99 -> -4775.0 | N99: 850 | O99: Unsuccessful | P99: 2022-10-12 | R99: N
A100: 8 | B100: 2022-10-13 | D100: NIFTY 17300 CE 27-OCT | E100: Buy | F100: 125 | G100: 60 | H100: 145 | I100: 200-280 | J100: Profit of Rs.20/- | K100: 20 | L100: 100.00 | M100: 900.0 | N100: 50 | O100: Successful | P100: 2022-10-13 | R100: H
A101: 9 | B101: 2022-10-14 | D101: NIFTY 17500 CE 27-OCT | E101: Buy | F101: 127 | G101: 60 | H101: 156 | I101: 200-280 | J101: Profit of Rs.29/- | K101: =H101-F101 -> 29 | L101: 100.00 | M101: =(K101*N101)-L101 -> 1350.0 | N101: 50 | O101: Successful | P101: 2022-10-14 | R101: H
A102: 10 | B102: 2022-10-19 | D102: ICICIBANK 900 CE 27-OCT | E102: Buy | F102: 10 | G102: 6 | H102: 14.75 | I102: 16-20 | J102: Profit of Rs.4.75/- | K102: =H102-F102 -> 4.75 | L102: 100.00 | M102: =(K102*N102)-L102 -> 6431.3 | N102: 1375 | O102: Successful | P102: 2022-10-21 | R102: H
A103: 11 | B103: 2022-10-19 | D103: TECHM 1040 CE 27-OCT | E103: Buy | F103: 11 | G103: 4 | H103: 14 | I103: 20-25 | J103: Profit of Rs.3/- | K103: =H103-F103 -> 3 | L103: 100.00 | M103: =(K103*N103)-L103 -> 1700.0 | N103: 600 | O103: Successful | P103: 2022-10-20 | R103: H
A104: 12 | B104: 2022-10-19 | D104: ACC 2260 CE 27-OCT | E104: Buy | F104: 37 | G104: 19 | H104: 45 | I104: 60-80 | J104: Profit of Rs.8/- | K104: =H104-F104 -> 8 | L104: 100.00 | M104: =(K104*N104)-L104 -> 1900.0 | N104: 250 | O104: Successful | P104: 2022-10-20 | R104: N
A105: 13 | B105: 2022-10-20 | D105: NIFTY 17500 CE 20-OCT | E105: Buy | F105: 14.5 | H105: 26.5 | I105: 30-40 | J105: Profit of Rs.12/- | K105: =H105-F105 -> 12 | L105: 100.00 | M105: =(K105*N105)-L105 -> 500.0 | N105: 50 | O105: Successful | P105: 2022-10-20 | R105: N
A106: 14 | B106: 2022-10-20 | D106: BANKNIFTY 40100 CE 27-OCT | E106: Buy | F106: 450 | G106: 220 | H106: 450 | I106: 700-800 | J106: Profit of Rs.79/- | K106: 0 | L106: 100.00 | M106: 0.0 | N106: 25 | O106: Successful | P106: 2022-10-20 | R106: H
D107: BANKNIFTY 40200 CE 20-OCT | E107: Sell | F107: 80 | H107: 1 | K107: =F107-H107 -> 79 | L107: 100.00 | M107: =K107*N106 -> 1975.0
A108: 15 | B108: 2022-10-20 | D108: HINDUNILVR 2620 CE 27-OCT | E108: Buy | F108: 31 | G108: 15 | H108: 42 | I108: 50-60 | J108: Profit of Rs.11/- | K108: =H108-F108 -> 11 | L108: 100.00 | M108: =(K108*N108)-L108 -> 3200.0 | N108: 300 | O108: Successful | P108: 2022-10-21 | R108: N
A109: 16 | B109: 2022-10-25 | D109: NIFTY 17750 CE OCT | E109: Buy | F109: 43 | G109: 10 | H109: 70 | I109: 80-100 | J109: Profit of Rs.27/- | K109: 27 | L109: 100.00 | M109: 1250.0 | N109: 50 | O109: Successful | P109: 2022-10-27 | R109: H
A110: 17 | B110: 2022-10-25 | D110: BANKNIFTY 41600 CE OCT | E110: Sell | F110: 100 | G110: 201 | H110: 37.5 | I110: 0.1 | J110: Profit of Rs.62.5/- | K110: =F110-H110 -> 62.5 | L110: 100.00 | M110: =(K110*N110)-L110 -> 1462.5 | N110: 25 | O110: Successful | P110: 2022-10-25 | R110: H
A111: 18 | B111: 2022-10-27 | D111: BANKNIFTY 41400 PE OCT | E111: Buy | F111: 95 | H111: 145 | I111: 200-280 | J111: Profit of Rs.50/- | K111: =H111-F111 -> 50 | L111: 100.00 | M111: 1150.0 | N111: 25 | O111: Successful | P111: 2022-10-27 | R111: H
A112: 19 | B112: 2022-10-27 | D112: BANKNIFTY 41500 CE 03-NOV | E112: Buy | F112: 375 | G112: 240 | H112: 240 | I112: 500-600 | J112: Loss of Rs.135/- | K112: -135 | L112: 100.00 | M112: -3475.0 | N112: 25 | O112: Unsuccessful | P112: 2022-10-28 | R112: N
A113: 20 | B113: 2022-10-27 | D113: NIFTY 17700 CE OCT | E113: Buy | F113: 17 | H113: 24 | I113: 40-60 | J113: Profit of Rs.7/- | K113: =H113-F113 -> 7 | L113: 100.00 | M113: =(K113*N113)-L113 -> 250.0 | N113: 50 | O113: Successful | P113: 2022-10-27 | R113: N
A114: 21 | B114: 2022-10-28 | D114: NIFTY 18000 CE 03-NOV | E114: Sell | F114: 53 | G114: 95 | H114: 35.5 | I114: 0.1 | J114: Profit of Rs.17.5/- | K114: =F114-H114 -> 17.5 | L114: 100.00 | M114: 775.0 | N114: 50 | O114: Successful | P114: 2022-10-28 | R114: H
A115: 22 | B115: 2022-10-31 | D115: BANKNIFTY 41000 PE 03-NOV | E115: Buy | F115: 215 | G115: 90 | H115: 270 | I115: 400-500 | J115: Profit of Rs.55/- | K115: =H115-F115 -> 55 | L115: 100.00 | M115: 1275.0 | N115: 25 | O115: Successful | P115: 2022-10-31 | R115: H
A116: 23 | B116: 2022-10-31 | D116: BANKNIFTY 41000 PE 03-NOV | E116: Buy | F116: 215-225 | G116: 90 | I116: 400-500 | J116: Open | R116: H
A119: Techno -Funda (positional)
A120: Sr.no | B120: Date | D120: Company | E120: Rec | F120: Rec Price | G120: Stop Loss*** | H120: Call Closed At | I120: Target | J120: Remark | K120: Profit / Loss per Share/Lot | L120: All charges | M120: Net Gain / Loss % | N120: Status | O120: Closed Date | P120: Market Closing Price
A121: 1 | B121: 2022-10-06 | D121: HDFCBANK | E121: Buy | F121: 1360-1450 | G121: 1240 | I121: 1700-1800 | J121: Open | R121: H
A122: 2 | B122: 2022-10-06 | D122: AMBIKCO | E122: Buy | F122: 1420-1620 | G122: 1220 | I122: 2000-2300 | J122: Open | R122: H
A124: CLBS = Closing Basis *** | F124: Reinitiated $
A125: Dividend adjusted <> | F125: Revised stoploss # | H125: .................
B129: Investment Idea
A130: Sr.no | B130: Date | D130: Company | E130: Rec | F130: Rec Price | G130: Point of Review | H130: Close Rate | I130: Target | J130: Remark | K130: Profit / Loss per Share | L130: Gain / Loss % | M130: Status | N130: Closed Date
A131: 1 | B131: 2013-11-01 | D131: L&T Finance Holding | E131: Accu | F131: 82.00 | G131: - | H131: 100 | I131: 100.00 | J131: Target Achieved | K131: =H131-F131 -> 18.00 | L131: =K131/F131 -> 21.95% | M131: Successful | N131: 2016-10-14
A132: 2 | B132: 2014-06-04 | D132: Finolex Inds | E132: Buy | F132: 257.00 | G132: - | H132: 300 | I132: 300.00 | J132: Target Achieved | K132: 43.00 | L132: 16.73% | M132: Successful | N132: 2014-07-02
A133: 3 | B133: 2014-07-08 | D133: JK Cement | E133: Buy | F133: 393.00 | G133: - | H133: 468 | I133: 468.00 | J133: Target Achieved | K133: 75.00 | L133: 19.08% | M133: Successful | N133: 2014-08-12
A134: 4 | B134: 2014-08-06 | D134: Finolex Cables | E134: Buy | F134: 205.00 | G134: - | H134: 275 | I134: 250.00 | J134: Target Achieved | K134: 70.00 | L134: 34.15% | M134: Successful | N134: 2014-11-19
A135: 5 | B135: 2014-09-04 | D135: Exide Inds | E135: Buy | F135: 162.00 | G135: - | H135: 190 | I135: 190.00 | J135: Target Achieved | K135: 28.00 | L135: 17.28% | M135: Successful | N135: 2015-01-02
A136: 6 | B136: 2014-09-04 | D136: Deepak Nitrite | E136: Buy | F136: 75.00 | G136: - | H136: 91.5 | I136: 95-100 | J136: Profit of Rs.16.50/- | K136: 16.50 | L136: 22.00% | M136: Successful | N136: 2014-11-11
A137: 7 | B137: 2014-10-01 | D137: Mercks | E137: Buy | F137: 850.00 | G137: - | H137: 982.5 | I137: 1050.00 | J137: Profit of Rs.132.50/- | K137: 132.50 | L137: 15.59% | M137: Successful | N137: 2015-02-04
A138: 8 | B138: 2014-10-01 | D138: Grindwell Norton | E138: Buy | F138: 475.00 | G138: - | H138: 515 | I138: 600.00 | J138: Profit of Rs.40/- | K138: 40.00 | L138: 8.42% | M138: Successful | N138: 2014-10-27
A139: 9 | B139: 2014-10-01 | D139: Snowman Logistics | E139: Buy | F139: 86.00 | G139: - | H139: 99 | I139: 140.00 | J139: Profit of Rs.13.00/- | K139: 13.00 | L139: 15.12% | M139: Successful | N139: 2014-10-27
A140: 10 | B140: 2014-10-14 | D140: Birla Corp | E140: Buy | F140: 496.60 | G140: - | H140: 621 | I140: 580.00 | J140: Target Achieved | K140: 124.40 | L140: 25.05% | M140: Successful | N140: 2016-08-23
A141: 11 | B141: 2014-10-14 | D141: Ultratech Cem | E141: Buy | F141: 2481.90 | G141: - | H141: 2840 | I141: 2870.00 | J141: Profit of Rs.358.10/- | K141: 358.10 | L141: 14.43% | M141: Successful | N141: 2015-01-13
A142: 12 | B142: 2014-10-16 | D142: Sintex Inds | E142: Buy | F142: 84.50 | G142: - | H142: 93 | I142: 110.00 | J142: Profit of Rs.8.50/- | K142: 8.50 | L142: 10.06% | M142: Successful | N142: 2014-10-27
A143: 13 | B143: 2014-10-16 | D143: HSIL | E143: Buy | F143: 401.00 | G143: - | H143: 428 | I143: 450.00 | J143: Profit of Rs.27.00/- | K143: 27.00 | L143: 6.73% | M143: Successful | N143: 2015-01-16
A144: 14 | B144: 2014-10-16 | D144: Eveready Inds | E144: Buy | F144: 101.00 | G144: - | H144: 112 | I144: 120.00 | J144: Profit of Rs.11.00/- | K144: 11.00 | L144: 10.89% | M144: Successful | N144: 2014-10-27
A145: 15 | B145: 2014-11-11 | D145: Pennar Inds | E145: Buy | F145: 59.00 | G145: - | H145: 76 | I145: 76.00 | J145: Target Achieved | K145: 17.00 | L145: 28.81% | M145: Successful | N145: 2017-10-24
A146: 16 | B146: 2014-11-11 | D146: Snowman Logistics | E146: Buy | F146: 99.00 | G146: - | H146: 120 | I146: 120.00 | J146: Profit of Rs.21/- | K146: 21.00 | L146: 21.21% | M146: Successful | N146: 2014-11-17
A147: 17 | B147: 2014-11-13 | D147: Dharamsi Morarji Chem | E147: Buy | F147: 22.00 | G147: - | H147: 33.55 | I147: 32.00 | J147: Profit of Rs 11.55/- | K147: 11.55 | L147: 52.50% | M147: Successful | N147: 2015-07-03
A148: 18 | B148: 2014-12-03 | D148: Tatachem | E148: Buy | F148: 440.00 | G148: - | H148: 520 | I148: 520.00 | J148: Profit of Rs 80.00/- | K148: 80.00 | L148: 18.18% | M148: Successful | N148: 2015-07-23
A149: 19 | B149: 2014-12-03 | D149: Advanta | E149: Buy | F149: 360.00 | G149: - | H149: 427 | I149: 425.00 | J149: Profit of Rs.67.00/- | K149: 67.00 | L149: 18.61% | M149: Successful | N149: 2015-02-23
A150: 20 | B150: 2015-01-08 | D150: GDL | E150: Buy | F150: 360.00 | G150: - | H150: 455 | I150: 420.00 | J150: Profit of Rs.95.00/- | K150: 95.00 | L150: 26.39% | M150: Successful | N150: 2015-01-20
A151: 21 | B151: 2015-01-08 | D151: NRB Bearing | E151: Buy | F151: 130.00 | H151: 175.5 | I151: 165.00 | J151: Profit of Rs 45.50/- | K151: 45.50 | L151: 35.00% | M151: Successful | N151: 2017-12-19
A152: 22 | B152: 2015-02-05 | D152: GSFC | E152: Accu | F152: 98.00 | H152: 120 | I152: 120.00 | J152: Target Achieved | K152: 22.00 | L152: 22.45% | M152: Successful | N152: 2017-01-18
A153: 23 | B153: 2015-02-05 | D153: Sundrmfast | E153: Accu | F153: 196.00 | H153: 262 | I153: 255.00 | J153: Target Achieved | K153: 66.00 | L153: 33.67% | M153: Successful | N153: 2016-08-17
A154: 24 | B154: 2015-03-04 | D154: GPPL | E154: Accu | F154: 235 | H154: 77.00 | I154: 280-285 | J154: Loss of Rs.158/- | K154: -158.00 | L154: -67.23% | M154: Unsuccessful | N154: 2019-02-26
A155: 25 | B155: 2015-03-04 | D155: ORIENTCEM | E155: Accu | F155: 185.00 | H155: 224 | I155: 220-225 | J155: Target Achieved | K155: 39.00 | L155: 21.08% | M155: Successful | N155: 2016-10-04
A156: 26 | B156: 2015-03-27 | D156: PFS | E156: Accu | F156: 49.5 | H156: 15.85 | I156: 67.00 | J156: Loss of Rs.33.65/- | K156: -33.65 | L156: -68% | M156: Unsuccessful | N156: 2019-06-11
A157: 27 | B157: 2015-03-30 | D157: Walchandnagar Ind Ltd | E157: Accu | F157: 183.50 | H157: 219 | I157: 218.00 | J157: Profit of Rs.35.50/- | K157: 35.50 | L157: 19.35% | M157: Successful | N157: 2015-04-09
A158: 28 | B158: 2015-04-20 | D158: Kalpataru Power Transmission Ltd | E158: Accu | F158: =(227+237)/2 -> 232.00 | H158: 298 | I158: 298.00 | J158: Target Achieved | K158: 66.00 | L158: 28.45% | M158: Successful | N158: 2017-03-29
A159: 29 | B159: 2015-05-04 | D159: Mastek Ltd | E159: Buy | F159: 385.00 | H159: =212.5+331 -> 543.5 | I159: 510.00 | J159: Profit of Rs 158.50/- | K159: 158.50 | L159: 41.17% | M159: Successful | N159: 2015-08-19
A160: 30 | B160: 2015-05-04 | D160: Suprajit Eng | E160: Buy | F160: 115.50 | H160: 146 | I160: 142.00 | J160: Profit of Rs 30.50/- | K160: 30.50 | L160: 26.41% | M160: Successful | N160: 2015-07-17
A161: 31 | B161: 2015-05-27 | D161: TCI | E161: Buy | F161: 237.50 | H161: 279.5 | I161: 278.00 | J161: Target Achieved | K161: 42.00 | L161: 17.68% | M161: Successful | N161: 2015-08-06
A162: 32 | B162: 2015-06-19 | D162: HSIL | E162: Accu | F162: 340.00 | H162: 448 | I162: 448.00 | J162: Target Achieved | K162: 108.00 | L162: 31.76% | M162: Successful | N162: 2017-10-10
A163: 33 | B163: 2015-07-06 | D163: Capital First | E163: Accu | F163: 390.00 | H163: 460 | I163: 460.00 | J163: Target Achieved | K163: 70.00 | L163: 17.95% | M163: Successful | N163: 2016-04-18
A164: 34 | B164: 2015-07-10 | D164: Dolphin OffShore | E164: Accu | F164: 122.5 | H164: 61.00 | I164: 172.00 | J164: Loss of Rs.61.50/- | K164: -61.50 | L164: -50.20% | M164: Unsuccessful | N164: 2018-08-21
A165: 35 | B165: 2015-08-03 | D165: Allcargo logistics | E165: Accu | F165: 297.50 | H165: 350 | I165: 360.00 | J165: Profit of Rs 52.50/- | K165: 52.50 | L165: 17.65% | M165: Successful | N165: 2015-08-16
A166: 36 | B166: 2015-08-03 | D166: Camline Fine | E166: Accu | F166: 115.50 | H166: 149 | I166: 140.00 | J166: Profit of Rs 33.50/- | K166: 33.50 | L166: 29.00% | M166: Successful | N166: 2017-01-05
A167: 37 | B167: 2015-09-04 | D167: TCI | E167: Accu | F167: 226.00 | H167: 292 | I167: 292.00 | J167: Target Achieved | K167: 66.00 | L167: 29.20% | M167: Successful | N167: 2015-10-09
A168: 38 | B168: 2015-09-07 | D168: Kalpataru Power Transmission Ltd | E168: Accu | F168: 232.50 | H168: 312.5 | I168: 310.00 | J168: Target Achieved | K168: 80.00 | L168: 34.41% | M168: Successful | N168: 2017-03-29
A169: 39 | B169: 2015-09-21 | D169: LLOYD ELECTRIC & ENG LTD | E169: Accu | F169: 196.50 | H169: 238 | I169: 238.00 | J169: Target Achieved | K169: 41.50 | L169: 21.12% | M169: Successful | N169: 2015-10-14
A170: 40 | B170: 2015-09-24 | D170: L&T Finance Holding | E170: Accu | F170: 65.00 | H170: 82 | I170: 82.00 | J170: Target Achieved | K170: 17.00 | L170: 26.15% | M170: Successful | N170: 2016-07-27
A171: 41 | B171: 2015-10-14 | D171: KEC International ltd | E171: Accu | F171: 144.00 | H171: 182.5 | I171: 181.00 | J171: Target Achieved | K171: 38.50 | L171: 26.74% | M171: Successful | N171: 2017-03-23
A172: 42 | B172: 2015-10-14 | D172: Gruh Finance | E172: Accu | F172: 264.00 | H172: 311 | I172: 311.00 | J172: Target Achieved | K172: 47.00 | L172: 17.80% | M172: Successful | N172: 2016-08-22
A173: 43 | B173: 2015-11-10 | D173: Pidilitind | E173: Buy | F173: 549.50 | H173: 630 | I173: 630.00 | J173: Target Achieved | K173: 80.50 | L173: 14.65% | M173: Successful | N173: 2016-02-19
A174: 44 | B174: 2015-12-04 | D174: Zensar Technology | E174: Accu | F174: 1027.50 | H174: 1315 | I174: 1250.00 | J174: Target Achieved | K174: 287.50 | L174: 27.98% | M174: Successful | N174: 2018-05-24
A175: 45 | B175: 2015-12-29 | D175: Vinati Organics Ltd | E175: Accu | F175: 465.00 | H175: 540 | I175: 540.00 | J175: Target Achieved | K175: 75.00 | L175: 16.13% | M175: Successful | N175: 2016-06-09
A176: 46 | B176: 2016-01-11 | D176: GSFC | E176: Buy | F176: 81.00 | H176: 110 | I176: 110.00 | J176: Target Achieved | K176: 29.00 | L176: 35.80% | M176: Successful | N176: 2017-01-10
A177: 47 | B177: 2016-01-13 | D177: SSWL | E177: Buy | F177: 417.50 | H177: 547 | I177: 535.00 | J177: Target Achieved | K177: 129.50 | L177: 31.02% | M177: Successful | N177: 2016-07-27
A178: 48 | B178: 2016-02-08 | D178: Persistent System Ltd | E178: Accu | F178: 650.00 | H178: 800 | I178: 800.00 | J178: Target Achieved | K178: 150.00 | L178: 23.08% | M178: Successful | N178: 2018-02-23
A179: 49 | B179: 2016-03-04 | D179: UPL | E179: Accu | F179: 437.50 | H179: 504.5 | I179: 522.00 | J179: Profit of Rs.67/- | K179: 67.00 | L179: 15.31% | M179: Successful | N179: 2016-04-20
A180: 50 | B180: 2016-03-09 | D180: Ashoka Buildcon Ltd | E180: Accu | F180: 189.50 | H180: 218 | I180: 218.00 | J180: Target Achieved | K180: 28.50 | L180: 15.04% | M180: Successful | N180: 2017-10-26
A181: 51 | B181: 2016-04-11 | D181: PTC INDIA FIN SERV LTD | E181: Accu | F181: 36.5 | H181: 15.85 | I181: 60.00 | J181: Loss of Rs.20.65/- | K181: -20.65 | L181: -56.58% | M181: Unsuccessful | N181: 2019-06-11
A182: 52 | B182: 2016-04-12 | D182: CAMLINFINE $ | E182: Accu | F182: 93.00 | H182: 149 | I182: 140.00 | J182: Profit of Rs 56/- | K182: 56.00 | L182: 60.22% | M182: Successful | N182: 2017-01-05
A183: 53 | B183: 2016-04-12 | D183: Greaves Cotton Ltd. | E183: Accu | F183: 130.00 | H183: 150 | I183: 150-155 | J183: Target Achieved | K183: 20.00 | L183: 15.38% | M183: Successful | N183: 2016-07-13
A184: 54 | B184: 2016-04-13 | D184: DHFL | E184: Accu | F184: 196.00 | H184: 299 | I184: 299.00 | J184: Target Achieved | K184: 103.00 | L184: 52.55% | M184: Successful | N184: 2016-09-07
A185: 55 | B185: 2016-04-13 | D185: Magma | E185: Accu | F185: 88.00 | H185: 103 | I185: 103.00 | J185: Target Achieved | K185: 15.00 | L185: 17.05% | M185: Successful | N185: 2016-06-09
A186: 56 | B186: 2016-05-02 | D186: KEC International ltd $ | E186: Accu | F186: 127.50 | H186: 148 | I186: 148-150 | J186: Target Achieved | K186: =H186-F186 -> 20.50 | L186: =K186/F186 -> 16.08% | M186: Successful | N186: 2016-07-13
A187: 57 | B187: 2016-05-03 | D187: Mindtree | E187: Accu | F187: 675.00 | H187: 815 | I187: 790-800 | J187: Target Achieved | K187: =H187-F187 -> 140.00 | L187: =K187/F187 -> 20.74% | M187: Successful | N187: 2018-02-23
A188: 58 | B188: 2016-06-01 | D188: Atulauto | E188: Accu | F188: 500 | H188: 232.50 | I188: 565-570 | J188: Loss of Rs.267.50 /- | K188: =H188-F188 -> -267.50 | L188: =K188/F188 -> -53.50% | M188: Unsuccessful | N188: 2019-09-27
A189: 59 | B189: 2016-06-06 | D189: TRITURBINE | E189: Accu | F189: 110.00 | H189: 126.5 | I189: 125.00 | J189: Profit of Rs.16.50/- | K189: =H189-F189 -> 16.50 | L189: =K189/F189 -> 15.00% | M189: Successful | N189: 2016-07-01
A190: 60 | B190: 2016-06-17 | D190: Pennar Industries Ltd | E190: Accu | F190: 44.00 | H190: 69.5 | I190: 69.50 | J190: Profit of Rs.25.50/- | K190: =H190-F190 -> 25.50 | L190: =K190/F190 -> 57.95% | M190: Successful | N190: 2017-08-30
A191: 61 | B191: 2016-06-28 | D191: EVEREADY | E191: Accu | F191: 262.50 | H191: 340 | I191: 333.00 | J191: Profit of Rs.77.50/- | K191: 77.50 | L191: 29.52% | M191: Successful | N191: 2017-10-09
A192: 62 | B192: 2016-06-28 | D192: FIEMIND | E192: Accu | F192: 840.00 | H192: 1230 | I192: 1230.00 | J192: Target Achieved | K192: 390.00 | L192: 46.43% | M192: Successful | N192: 2016-10-06
A193: 63 | B193: 2016-07-05 | D193: Bajaj Corp Ltd | E193: Accu | F193: 395 | H193: =(468.5+342.5)/2 -> 405.50 | I193: 510.00 | J193: Profit of Rs.10.50/- | K193: =H193-F193 -> 10.50 | L193: =K193/F193 -> 3% | M193: Neutral | N193: 2019-05-21
A194: 64 | B194: 2016-08-02 | D194: GPPL $ | E194: Buy | F194: =169.5-12.8 -> 156.7 | H194: 77.00 | I194: 198-200 | J194: Loss of Rs.79.7/- | K194: -79.70 | L194: -50.86% | M194: Unsuccessful | N194: 2019-02-26
A195: 65 | B195: 2016-08-04 | D195: WONDERLA HOLIDAYS LTD | E195: Accu | F195: 400 | H195: 305.00 | I195: 475.00 | J195: Loss of Rs.95/- | K195: -95.00 | L195: -23.75% | M195: Unsuccessful | N195: 2019-05-21
A196: 66 | B196: 2016-08-11 | D196: CAMLINFINE | E196: Accu | F196: 86.50 | H196: 130 | I196: 130.00 | J196: Profit of Rs.43.50/- | K196: 43.50 | L196: 50.29% | M196: Successful | N196: 2017-12-22
A197: 67 | B197: 2016-08-18 | D197: GRANULES | E197: Accu | F197: 133.5 | H197: 126.50 | I197: 178.00 | J197: Exit | K197: -7.00 | L197: -5.24% | M197: Unsuccessful | N197: 2016-09-02
A198: 68 | B198: 2016-08-31 | D198: VA TECH WABAG | E198: Accu | F198: 560.00 | H198: 725 | I198: 725.00 | J198: Target Achieved | K198: 165.00 | L198: 29.46% | M198: Successful | N198: 2016-03-27
A199: 69 | B199: 2016-09-01 | D199: SKIPPER LIMITED | E199: Accu | F199: 160.50 | H199: 210 | I199: 210.00 | J199: Target Achieved | K199: 49.50 | L199: 30.84% | M199: Successful | N199: 2017-05-16
A200: 70 | B200: 2016-10-03 | D200: IFBIND | E200: Accu | F200: 430.00 | H200: 596 | I200: 575.00 | J200: Profit of Rs.166/- | K200: 166.00 | L200: 38.60% | M200: Successful | N200: 2017-02-03
A201: 71 | B201: 2016-10-14 | D201: ASIANTILES | E201: Accu | F201: 280.00 | H201: 345 | I201: 345.00 | J201: Target Achieved | K201: =H201-F201 -> 65.00 | L201: =K201/F201 -> 23.21% | M201: Successful | N201: 2017-03-20
A202: 72 | B202: 2016-10-14 | D202: DEEPIND | E202: Accu | F202: 245.00 | H202: 325.5 | I202: 330.00 | J202: Profit of Rs.80.5/- | K202: 80.50 | L202: =K202/F202 -> 32.86% | M202: Successful | N202: 2017-02-03
A203: 73 | B203: 2016-10-17 | D203: DCBBANK | E203: Accu | F203: 125.00 | H203: 160 | I203: 160.00 | J203: Target Achieved | K203: 35.00 | L203: 28.00% | M203: Successful | N203: 2017-03-09
A204: 74 | B204: 2016-10-17 | D204: ORIENTREF | E204: Accu | F204: 114.00 | H204: 145 | I204: 145.00 | J204: Target Achieved | K204: 31.00 | L204: =K204/F204 -> 27.19% | M204: Successful | N204: 2017-05-04
A205: 75 | B205: 2016-10-17 | D205: GANECOS | E205: Accu | F205: 212.00 | H205: 280 | I205: 276.00 | J205: Profit of Rs.68/- | K205: 68.00 | L205: =K205/F205 -> 32.08% | M205: Successful | N205: 2017-05-03
A206: 76 | B206: 2016-11-04 | D206: NBCC | E206: Accu | F206: 155.00 | H206: 210 | I206: 210.00 | J206: Profit of Rs.55/- | K206: 55.00 | L206: =K206/F206 -> 35.48% | M206: Successful | N206: 2017-07-28
A207: 77 | B207: 2016-12-06 | D207: PRECAM | E207: Accu | F207: 150.5 | H207: 72.50 | I207: 174.00 | J207: Loss of Rs.78/- | K207: -78.00 | L207: -51.83% | M207: Unsuccessful | N207: 2018-08-21
A208: 78 | B208: 2016-12-08 | D208: INFRATEL | E208: Accu | F208: 380.00 | H208: 478 | I208: 468.00 | J208: Target Achieved | K208: =H208-F208 -> 98.00 | L208: =K208/F208 -> 25.79% | M208: Successful | N208: 2017-10-17
A209: 79 | B209: 2016-12-30 | D209: GODREJPROP | E209: Accu | F209: 305.00 | H209: 375 | I209: 375.00 | J209: Target Achieved | K209: =H209-F209 -> 70.00 | L209: =K209/F209 -> 22.95% | M209: Successful | N209: 2017-02-02
A210: 80 | B210: 2017-01-04 | D210: DEEPAKNTR | E210: Accu | F210: 99.50 | H210: 158 | I210: 158.00 | J210: Target Achieved | K210: =H210-F210 -> 58.50 | L210: =K210/F210 -> 58.79% | M210: Successful | N210: 2017-06-12
A211: 81 | B211: 2017-01-04 | D211: DEEPAKNTR | E211: Accu | F211: 99.50 | H211: 158 | I211: 158.00 | J211: Target Achieved | K211: 58.50 | L211: 58.79% | M211: Successful | N211: 2017-06-12
A212: 82 | B212: 2017-02-20 | D212: RECLTD | E212: Accu | F212: 140.50 | H212: 220 | I212: 220.00 | J212: Target Achieved | K212: =H212-F212 -> 79.50 | L212: =K212/F212 -> 56.58% | M212: Successful | N212: 2017-05-09
A213: 83 | B213: 2017-02-20 | D213: SUBROS | E213: Accu | F213: 202.50 | H213: 234 | I213: 234.00 | J213: Target Achieved | K213: 31.50 | L213: 15.56% | M213: Successful | N213: 2017-04-11
A214: 84 | B214: 2017-03-24 | D214: VRLLOG | E214: Accu | F214: 300.50 | H214: 417.5 | I214: 420.00 | J214: Profit of Rs.117/- | K214: =H214-F214 -> 117.00 | L214: =K214/F214 -> 38.94% | M214: Successful | N214: 2017-12-01
A215: 85 | B215: 2017-03-24 | D215: FIEMIND | E215: Accu | F215: 850.00 | H215: 1042.5 | I215: 1023.00 | J215: Profit of Rs 192.50/- | K215: 192.50 | L215: 22.65% | M215: Successful | N215: 2017-04-05
A216: 86 | B216: 2017-04-05 | D216: RATNAMANI | E216: Accu | F216: 785.00 | H216: 930 | I216: 920.00 | J216: Profit of Rs.145/- | K216: =H216-F216 -> 145.00 | L216: =K216/F216 -> 18.47% | M216: Successful | N216: 2017-08-29
A217: 87 | B217: 2017-04-06 | D217: ZEEMEDIA | E217: Accu | F217: 40 | H217: 13.10 | I217: 60.00 | J217: Loss of Rs.26.9/- | K217: -26.90 | L217: -67.25% | M217: Unsuccessful | N217: 2018-02-07
A218: 88 | B218: 2017-04-12 | D218: DABUR | E218: Accu | F218: 289.50 | H218: 354 | I218: 360.00 | J218: Profit of Rs.64.5/- | K218: =H218-F218 -> 64.50 | L218: =K218/F218 -> 22.28% | M218: Successful | N218: 2017-11-01
A219: 89 | B219: 2017-04-20 | D219: KPRMILL | E219: Accu | F219: 700.00 | H219: 840 | I219: 840.00 | J219: Profit of Rs.140/- | K219: 140.00 | L219: 20.00% | M219: Successful | N219: 2017-06-07
A220: 90 | B220: 2017-06-01 | D220: ESSELPACK | E220: Accu | F220: 130.00 | H220: 144.25 | I220: 170.00 | J220: Profit of Rs.14.25/- | K220: 14.25 | L220: 10.96% | M220: Successful | N220: 2019-07-29
A221: 91 | B221: 2017-06-15 | D221: KEI | E221: Accu | F221: 214.50 | H221: 262 | I221: 262.00 | J221: Profit of Rs.47.5/- | K221: 47.50 | L221: 22.14% | M221: Successful | N221: 2017-08-30
A222: 92 | B222: 2017-07-17 | D222: MAYURUNIQ | E222: Accu | F222: 370.00 | H222: 447.5 | I222: 450.00 | J222: Target Achieved | K222: 77.50 | L222: 20.95% | M222: Successful | N222: 2017-10-27
... 90 more rows
